Workbook

Sheet Примерное меню на 2 недели
A1: Согласовано: | H1: Утверждаю:
A2: Заведующая МБДОУ детский сад"Заря" с.Старое Алпарово | H2: Председатель СПОСПК "Эдем"
A3: Алькеевского муниципиального района РТ
A4: _________________Вахитова Г.Г. | H4: _________Турнина А. А.
A6: Примерное двухнедельное меню для организации питания детей в дошкольных организациях с 10 часовым прибыванием детей
A8: Наименование | B8: Номер рецептуры по сборнику | C8: Выход блюд, в гр. | E8: Белки | G8: Жиры | I8: Углеводы | K8: Энергетическая ценность | M8: Витамин С
C9: 1-3 года | D9: 3- 7 лет | E9: 1-3 года | F9: 3- 7 лет | G9: 1-3 года | H9: 3- 7 лет | I9: 1-3 года | J9: 3- 7 лет | K9: 1-3 года | L9: 3- 7 лет | M9: 1-3 года | N9: 3- 7 лет
A10: День 1/ Понедельник 1 неделя
A11: Завтрак
A12: Суп молочный с крупой (пшенный) | B12: 101 | C12: 150 | D12: 180 | E12: 5.41 | F12: 6.99 | G12: 6.7 | H12: 8.04 | I12: 16.92 | J12: 19.8 | K12: 105.89 | L12: 128.76 | M12: 1.36 | N12: 1.63
A13: Какао с молоком | B13: 416 | C13: 150 | D13: 200 | E13: 3.06 | F13: 4.08 | G13: 2.96 | H13: 3.94 | I13: 12.47 | J13: 16.6 | K13: 87.6 | L13: 116.8 | M13: 1.07 | N13: 1.42
A14: Бутерброд с маслом | B14: 1 | C14: 40/10 | D14: 50/10 | E14: 2.91 | F14: 3.62 | G14: 5.88 | H14: 5.97 | I14: 17.43 | J14: 21.8 | K14: 143 | L14: 164.33 | M14: 0 | N14: 0
A15: Итого: | E15: =E14+E13+E12 -> 11.38 | F15: 14.69 | G15: 15.54 | H15: 17.95 | I15: 46.82 | J15: 58.2 | K15: 336.49 | L15: 409.89 | M15: 2.43 | N15: 3.05
A16: 2-ой завтрак
A17: Кисломолочный продукт | B17: 420 | C17: 120 | D17: 150 | E17: 3.12 | F17: 3.9 | G17: 3 | H17: 3.75 | I17: 4.8 | J17: 6 | K17: 52.92 | L17: 66.15 | M17: 0 | N17: 0
A18: Фрукт | B18: 386 | C18: 85 | D18: 85 | E18: 1.44 | F18: 1.44 | G18: 0.17 | H18: 0.17 | I18: 6.88 | J18: 6.88 | K18: 32.13 | L18: 32.13 | M18: 51 | N18: 51
A19: Итого: | E19: =E18+E17 -> 4.56 | F19: 5.34 | G19: 3.17 | H19: 3.92 | I19: 11.68 | J19: 12.88 | K19: 85.05 | L19: 98.28 | M19: 51 | N19: 51
A20: Обед
A21: Огурцы свежие | B21: 15 | C21: 40 | D21: 60 | E21: 0.32 | F21: 0.48 | G21: 0.04 | H21: 0.06 | I21: 1.04 | J21: 1.56 | K21: 5.8 | L21: 8.7 | M21: 1.72 | N21: 2.61
A22: Борщ с капустой и картофелем со сметаной на мкб | B22: 63 | C22: 180/10/7 | D22: 200/12/8 | E22: 4.69 | F22: 5.23 | G22: 4.51 | H22: 5.03 | I22: 7.17 | J22: 9.58 | K22: 117.34 | L22: 136.82 | M22: 11.22 | N22: 14.3
A23: Картофельное пюре | B23: 339 | C23: 100 | D23: 130 | E23: 2.28 | F23: 2.96 | G23: 3.77 | H23: 4.72 | I23: 13.92 | J23: 18.09 | K23: 104.96 | L23: 128.3 | M23: 18.2 | N23: 21.87
A24: Котлета мясная (Ясли) | B24: 299 | C24: 50 | E24: 8.36 | G24: 6.44 | I24: 6.7 | K24: 114.37 | M24: 0.4
A25: Сосиски отварные (сад) | B25: 291 | D25: 50 | F25: 8.83 | H25: 8.66 | J25: 10.98 | L25: 170 | N25: 0
A26: Хлеб ржано -пшеничный | C26: 30 | D26: 50 | E26: 1.91 | F26: 3.19 | G26: 0.24 | H26: 0.4 | I26: 12.43 | J26: 20.71 | K26: 52.61 | L26: 87.68 | M26: 0 | N26: 0
A27: Кисель | B27: 359 | C27: 120 | D27: 150 | E27: 0 | F27: 0 | G27: 0 | H27: 0 | I27: 19.44 | J27: 24.3 | K27: 61.98 | L27: 87.48 | M27: 0 | N27: 0
A28: Итого: | E28: =E21+E22+E23+E24+E25+E26+E27 -> 17.56 | F28: 20.69 | G28: 15 | H28: 18.87 | I28: 60.7 | J28: 85.22 | K28: 457.06 | L28: 618.98 | M28: 31.54 | N28: 38.78
A29: Полдник
A30: Булочка с повидлом | C30: 60 | D30: 60 | E30: 5.11 | F30: 5.11 | G30: 4.83 | H30: 4.83 | I30: 31.91 | J30: 31.91 | K30: 218.4 | L30: 218.4 | M30: 0.25 | N30: 0.25
A31: Чай с сахаром | B31: 411 | C31: 150/9 | D31: 200/12 | E31: 0.11 | F31: 0.15 | G31: 0.03 | H31: 0.04 | I31: 9.1 | J31: 12.13 | K31: 41.37 | L31: 55.16 | M31: 0.075 | N31: 0.1
A32: Итого: | E32: =E31+E30 -> 5.22 | F32: 5.26 | G32: 4.86 | H32: 4.87 | I32: 41.01 | J32: 44.04 | K32: 259.77 | L32: 273.56 | M32: 0.325 | N32: 0.35
A33: Итого за 1 день: | E33: 38.72 | F33: 45.98 | G33: 38.57 | H33: 45.61 | I33: 160.21 | J33: 200.34 | K33: 1138.37 | L33: 1400.71 | M33: 85.295 | N33: 93.18
A34: День 2/вторник 1 неделя
A35: Завтрак
A36: Запеканка творожная с изюмом и со сгущенкой | B36: 251 | C36: 100/20 | D36: 120/20 | E36: 8.4 | F36: 10.08 | G36: 8 | H36: 9.6 | I36: 18.62 | J36: 22.34 | K36: 154.15 | L36: 188 | M36: 0.72 | N36: 0.77
A37: Кофейный напиток с молоком | B37: 414 | C37: 180 | D37: 200 | E37: 2.52 | F37: 2.8 | G37: 2.59 | H37: 2.87 | I37: 13.68 | J37: 15.2 | K37: 87.14 | L37: 96.82 | M37: 1.17 | N37: 1.75
A38: Бутерброд с маслом и сыром | B38: 3 | C38: 55 | D38: 70 | E38: 5.8 | F38: 7.89 | G38: 6.67 | H38: 8.1 | I38: 19.65 | J38: 24.64 | K38: 143.62 | L38: 182.71 | M38: 0.02 | N38: 0.04
A39: Итого: | E39: =E38+E37+E36 -> 16.72 | F39: 20.77 | G39: 17.26 | H39: 20.57 | I39: 51.95 | J39: 62.18 | K39: 384.91 | L39: 467.53 | M39: 1.91 | N39: 2.56
A40: 2-ой завтрак
A41: Сок | B41: 418 | C41: 150 | D41: 150 | E41: 0.75 | F41: 0.75 | G41: 0 | H41: 0 | I41: 8.99 | J41: 8.99 | K41: 61.56 | L41: 61.56 | M41: 3.24 | N41: 3.24
A42: Фрукт | B42: 386 | C42: 85 | D42: 85 | E42: 1.2 | F42: 1.2 | G42: 0.12 | H42: 0.12 | I42: 5.18 | J42: 5.18 | K42: 21.77 | L42: 21.77 | M42: 0.1 | N42: 0.1
A43: Итого: | E43: =E42+E41 -> 1.95 | F43: =F42+F41 -> 1.95 | G43: 0.12 | H43: 0.12 | I43: 14.17 | J43: 14.17 | K43: 83.33 | L43: 83.33 | M43: 3.34 | N43: 3.34
A44: Обед
A45: Салат из белокочанной капусты (до 1 марта) Винегрет овощной (после 1 марта) | B45: 21 | C45: 40 | D45: 60 | E45: 0.57 | F45: 0.86 | G45: 1.81 | H45: 2.74 | I45: 3.86 | J45: 5.23 | K45: 37.54 | L45: 49.18 | M45: 13.21 | N45: 19.8
A46: Суп крестьянский на мкб со сметаной | B46: 98 | C46: 180/10/7 | D46: 200/12/8 | E46: 5.32 | F46: 6.95 | G46: 4.26 | H46: 5.75 | I46: 16.28 | J46: 17.14 | K46: 128.52 | L46: 143.52 | M46: 11.87 | N46: 12.02
A47: Макароны отварные со сливочным маслом | B47: 335 | C47: 100 | D47: 150 | E47: 3.32 | F47: 4.25 | G47: 3.69 | H47: 5.11 | I47: 24.46 | J47: 29.45 | K47: 120.4 | L47: 180.6 | M47: 0 | N47: 0
A48: Кнели куриные | B48: 329 | C48: 60 | D48: 75 | E48: 5.54 | F48: 8.1 | G48: 3.72 | H48: 4.65 | I48: 3.85 | J48: 4.81 | K48: 117.5 | L48: 146.87 | M48: 3.62 | N48: 4.53
A49: Хлеб ржано -пшеничный | C49: 30 | D49: 50 | E49: 1.91 | F49: 3.19 | G49: 0.24 | H49: 0.4 | I49: 12.43 | J49: 20.71 | K49: 52.61 | L49: 87.68 | M49: 0 | N49: 0
A50: Компот из сухофруктов | B50: 394 | C50: 120 | D50: 150 | E50: 0.03 | F50: 0.04 | I50: 11.32 | J50: 13.4 | K50: 45.42 | L50: 53.79 | M50: 0.024 | N50: 0.03
A51: Итого: | E51: =E50+E49+E48+E47+E46+E45 -> 16.69 | F51: 23.39 | G51: 13.72 | H51: 18.65 | I51: 72.2 | J51: 90.74 | K51: 501.99 | L51: 661.64 | M51: 28.724 | N51: 36.38
A52: Полдник
A53: Кисломолочный продукт | B53: 420 | C53: 200 | D53: 200 | E53: 5.2 | F53: 5.2 | G53: 5 | H53: 5 | I53: 8 | J53: 8 | K53: 88.2 | L53: 88.2 | M53: 0 | N53: 0
A54: Кондитерское изделие | C54: 25 | D54: 50 | E54: 0.64 | F54: 1.29 | G54: 0.56 | H54: 1.13 | I54: 13.24 | J54: 26.48 | K54: 69.26 | L54: 138.52 | M54: 0.13 | N54: 0.26
A55: Итого: | E55: =E54+E53 -> 5.84 | F55: 6.49 | G55: 5.56 | H55: 6.13 | I55: 21.24 | J55: 34.48 | K55: 157.46 | L55: 226.72 | M55: 0.13 | N55: 0.26
A56: Итого за 1 день: | E56: 41.2 | F56: 52.6 | G56: 36.66 | H56: 46.47 | I56: 159.56 | J56: 201.57 | K56: 1127.69 | L56: 1439.22 | M56: 34.104 | N56: 42.54
A58: День 3 /Среда 1 неделя
A59: Завтрак
A60: Каша манная молочная со сливочным маслом | B60: 199 | C60: 150/5/5 | D60: 180/7/7 | E60: 4.83 | F60: 5.8 | G60: 8.13 | H60: 10.46 | I60: 15.63 | J60: 21.27 | K60: 126.72 | L60: 185.85 | M60: 1.79 | N60: 2.14
A61: Чай сладкий с молоком | B61: 413 | C61: 150 | D61: 200 | E61: 2.03 | F61: 2.71 | G61: 2.32 | H61: 3.1 | I61: 12.18 | J61: 16.24 | K61: 79.23 | L61: 105.65 | M61: 0.94 | N61: 1.26
A62: Бутерброд с повидлом | B62: 2 | C62: 60 | D62: 75 | E62: 2.47 | F62: 3.28 | G62: 3.5 | H62: 3.7 | I62: 24.29 | J62: 31.57 | K62: 128.12 | L62: 144.13 | M62: 0.07 | N62: 0.1
A63: Итого: | E63: =E62+E61+E60 -> 9.33 | F63: 11.79 | G63: 13.95 | H63: 17.26 | I63: 52.1 | J63: 69.08 | K63: 334.07 | L63: 435.63 | M63: 2.8 | N63: 3.5
A64: 2-ой завтрак
A65: Сок | B65: 418 | C65: 150 | D65: 150 | E65: 0.75 | F65: 0.75 | G65: 0 | H65: 0 | I65: 8.99 | J65: 8.99 | K65: 61.56 | L65: 61.56 | M65: 3.24 | N65: 3.24
A66: Итого: | E66: =E65 -> 0.75 | F66: 0.75 | G66: 0 | H66: 0 | I66: 8.99 | J66: 8.99 | K66: 61.56 | L66: 61.56 | M66: 3.24 | N66: 3.24
A67: Обед
A68: Салат из моркови с изюмом (до 1 марта)/ Зеленый горошек консервированный (после 1 марта) | B68: 42 | C68: 40 | D68: 60 | E68: 0.5 | F68: 0.75 | G68: 4.03 | H68: 6.04 | I68: 4.8 | J68: 7.2 | K68: 57.59 | L68: 86.38 | M68: 1.95 | N68: 2.92
A69: Щи из свежей капусты с картофелем со сметаной на мкб | B69: 73 | C69: 180/10/7 | D69: 200/12/8 | E69: 4.48 | F69: 6.14 | G69: 5.09 | H69: 7.08 | I69: 6.82 | J69: 7.53 | K69: 109 | L69: 140.9 | M69: 21.86 | N69: 24.21
A70: Жаркое по домашнему из говядины | B70: 290 | C70: 160 | D70: 190 | E70: 15.36 | F70: 19.43 | G70: 8.58 | H70: 10.75 | I70: 20.1 | J70: 28.87 | K70: 257.6 | L70: 305.9 | M70: 23.92 | N70: 28.4
A71: Хлеб ржано -пшеничный | C71: 30 | D71: 50 | E71: 1.91 | F71: 3.19 | G71: 0.24 | H71: 0.4 | I71: 12.43 | J71: 20.71 | K71: 52.61 | L71: 87.68 | M71: 0 | N71: 0
A72: Компот из яблок и изюма | B72: 390 | C72: 120 | D72: 150 | E72: 0.17 | F72: 0.21 | G72: 0.05 | H72: 0.06 | I72: 15.13 | J72: 18.92 | K72: 51.7 | L72: 64.62 | M72: 1.76 | N72: 2.21
A73: Итого: | E73: =E72+E71+E70+E69+E68 -> 22.42 | F73: 29.72 | G73: 17.99 | H73: 24.33 | I73: 59.28 | J73: 83.23 | K73: 528.5 | L73: 685.48 | M73: 49.49 | N73: 57.74
A74: Полдник
A75: Булочка домашняя | B75: 452 | C75: 60 | D75: 60 | E75: 4.86 | F75: 4.86 | G75: 5.3 | H75: 5.3 | I75: 36.8 | J75: 36.8 | K75: 188.32 | L75: 188.32 | M75: 0.15 | N75: 0.15
A76: Кисломолочный продукт | B76: 420 | C76: 150 | D76: 200 | E76: 3.9 | F76: 5.2 | G76: 3.37 | H76: 4.5 | I76: 5.67 | J76: 7.56 | K76: 65.9 | L76: 87.86 | M76: 0.4 | N76: 0.54
A77: Итого: | E77: =E76+E75 -> 8.76 | F77: 10.06 | G77: 8.67 | H77: 9.8 | I77: 42.47 | J77: 44.36 | K77: 254.22 | L77: 276.18 | M77: 0.55 | N77: 0.69
A78: Итого за 1 день: | E78: 41.26 | F78: 52.32 | G78: 40.61 | H78: 51.39 | I78: 162.84 | J78: 205.66 | K78: 1178.35 | L78: 1458.85 | M78: 56.08 | N78: 65.17
A79: День 4 /Четверг 1 неделя
A80: Завтрак
A81: Суп молочный вермишелевый | B81: 100 | C81: 150 | D81: 180 | E81: 4.78 | F81: 5.73 | G81: 4.44 | H81: 5.72 | I81: 17.31 | J81: 20.78 | K81: 106.72 | L81: 129.69 | M81: 1.22 | N81: 1.46
A82: Какао с молоком | B82: 416 | C82: 150 | D82: 200 | E82: 3.06 | F82: 4.08 | G82: 2.96 | H82: 3.94 | I82: 12.47 | J82: 16.6 | K82: 87.6 | L82: 116.8 | M82: 1.07 | N82: 1.42
A83: Бутерброд с маслом | B83: 1 | C83: 40/10 | D83: 50/10 | E83: 2.91 | F83: 3.62 | G83: 5.88 | H83: 5.97 | I83: 17.43 | J83: 21.8 | K83: 143 | L83: 164.33 | M83: 0 | N83: 0
A84: Итого: | E84: =E83+E82+E81 -> 10.75 | F84: 13.43 | G84: 13.28 | H84: 15.63 | I84: 47.21 | J84: 59.18 | K84: 337.32 | L84: 410.82 | M84: 2.29 | N84: 2.88
A85: 2-ой завтрак
A86: Кисломолочный продукт | B86: 420 | C86: 120 | D86: 150 | E86: 3.12 | F86: 3.9 | G86: 3 | H86: 3.75 | I86: 4.8 | J86: 6 | K86: 52.92 | L86: 66.15 | M86: 0 | N86: 0
A87: Фрукт | C87: 85 | D87: 85 | E87: 0.72 | F87: 0.72 | G87: 0.2 | H87: 0.2 | I87: 6.48 | J87: 6.48 | K87: 34.4 | L87: 34.4 | M87: 48 | N87: 48
A88: Итого: | E88: =E86+E87 -> 3.84 | F88: =F86+F87 -> 4.62 | G88: 3.2 | H88: 3.95 | I88: 11.28 | J88: 12.48 | K88: 87.32 | L88: 100.55 | M88: 48 | N88: 48
A89: Обед
A90: Салат из отварной свеклы | B90: 34 | C90: 40 | D90: 60 | E90: 0.57 | F90: 0.87 | G90: 2.43 | H90: 4.05 | I90: 3.49 | J90: 5.27 | K90: 38.2 | L90: 61.07 | M90: 3.8 | N90: 5.8
A91: Суп с клецками на мкб со сметаной | B91: 91 | C91: 180/10/7 | D91: 200/12/8 | E91: 5.36 | F91: 7.55 | G91: 6.66 | H91: 8.55 | I91: 16.79 | J91: 18.57 | K91: 124.36 | L91: 174.21 | M91: 9.57 | N91: 11.09
A92: Запеканка рыбная с рисом | C92: 120 | D92: 150 | E92: 6.95 | F92: 8.82 | G92: 7.6 | H92: 9.5 | I92: 20.49 | J92: 22.61 | K92: 188.5 | L92: 235.62 | M92: 17.74 | N92: 22.1
A93: Хлеб ржано -пшеничный | C93: 30 | D93: 50 | E93: 1.91 | F93: 3.19 | G93: 0.24 | H93: 0.4 | I93: 12.43 | J93: 20.71 | K93: 52.61 | L93: 87.68 | M93: 0 | N93: 0
A94: Кисель | C94: 120 | D94: 150 | E94: 0 | F94: 0 | G94: 0 | H94: 0 | I94: 19.44 | J94: 21.77 | K94: 71.28 | L94: 87.48 | M94: 0 | N94: 0
A95: Итого: | E95: =E94+E93+E92+E91+E90 -> 14.79 | F95: 20.43 | G95: 16.93 | H95: 22.5 | I95: 72.64 | J95: 88.93 | K95: 474.95 | L95: 646.06 | M95: 31.11 | N95: 38.99
A96: Полдник
A97: Оладьи со сгущенным молоком | B97: 432 | C97: 80/10 | D97: 120/10 | E97: 5.4 | F97: 8.1 | G97: 4.95 | H97: 7.43 | I97: 32.26 | J97: 48.4 | K97: 200.48 | L97: 289.58 | M97: 0.44 | N97: 0.66
A98: Чай без сахара | B98: 411 | C98: 150 | D98: 200 | E98: 0.01 | F98: 0.01 | G98: 0 | H98: 0 | I98: 0.02 | J98: 0.03 | K98: 0.06 | L98: 0.09 | M98: 0.04 | N98: 0.05
A99: Итого: | E99: =E98+E97 -> 5.41 | F99: 8.11 | G99: 4.95 | H99: 7.43 | I99: 32.28 | J99: 48.43 | K99: 200.54 | L99: 289.67 | M99: 0.48 | N99: 0.71
A100: Итого на 1 день: | E100: =E99+E95+E88+E84 -> 34.79 | F100: 46.59 | G100: 38.36 | H100: 49.51 | I100: 163.02 | J100: 208.89 | K100: 1100.13 | L100: 1447.1 | M100: 81.88 | N100: 90.58
A101: День 5 /Пятница 1 неделя
A102: Завтрак
A103: Омлет натуральный со сливочным маслом | B103: 229 | C103: 120/5 | D103: 150/5 | E103: 6.15 | F103: 7.68 | G103: 7.6 | H103: 9.5 | I103: 15.42 | J103: 19.27 | K103: 146.7 | L103: 184.5 | M103: 0.88 | N103: 1.1
A104: Кофейный напиток с молоком | B104: 414 | C104: 180 | D104: 200 | E104: 2.52 | F104: 2.8 | G104: 2.59 | H104: 2.87 | I104: 13.68 | J104: 15.2 | K104: 87.14 | L104: 96.82 | M104: 1.17 | N104: 1.75
A105: Бутерброд с маслом и сыром | B105: 3 | C105: 55 | D105: 70 | E105: 5.8 | F105: 7.89 | G105: 6.67 | H105: 8.1 | I105: 19.65 | J105: 24.64 | K105: 143.62 | L105: 182.71 | M105: 0.02 | N105: 0.04
A106: Итого: | E106: =E105+E104+E103 -> 14.47 | F106: 18.37 | G106: 16.86 | H106: 20.47 | I106: 48.75 | J106: 59.11 | K106: 377.46 | L106: 464.03 | M106: 2.07 | N106: 2.89
A107: 2-ой завтрак
A108: Кисломолочный продукт | B108: 420 | C108: 120 | D108: 150 | E108: 3.12 | F108: 3.9 | G108: 3 | H108: 3.75 | I108: 4.8 | J108: 6 | K108: 52.92 | L108: 66.15 | M108: 0 | N108: 0
A109: Фрукт | B109: 386 | C109: 85 | D109: 85 | E109: 1.44 | F109: 1.44 | G109: 0.17 | H109: 0.17 | I109: 6.88 | J109: 6.88 | K109: 32.13 | L109: 32.13 | M109: 51 | N109: 51
A110: Итого: | E110: =E109+E108 -> 4.56 | F110: 5.34 | G110: 3.17 | H110: 3.92 | I110: 11.68 | J110: 12.88 | K110: 85.05 | L110: 98.28 | M110: 51 | N110: 51
A111: Обед
A112: Салат" Витаминный" ( до 1 марта) / Салат картофельный с солеными огурцами (после 1 марта) | B112: 21 | C112: 40 | D112: 60 | E112: 0.57 | F112: 0.86 | G112: 1.81 | H112: 2.74 | I112: 3.86 | J112: 5.23 | K112: 37.54 | L112: 49.18 | M112: 13.21 | N112: 19.8
A113: Суп картофельный с бобовыми (гороховый) на мкб | B113: 87 | C113: 180/10 | D113: 200/12 | E113: 5.48 | F113: 6.11 | G113: 4.87 | H113: 8.24 | I113: 11.87 | J113: 17.1 | K113: 117.31 | L113: 130.89 | M113: 6.8 | N113: 9.1
A114: Каша гречневая со сливочным маслом | B114: 330 | C114: 100 | D114: 130 | E114: 4.45 | F114: 5.85 | G114: 4.78 | H114: 6.59 | I114: 25.8 | J114: 33.54 | K114: 148 | L114: 197.37 | M114: 0 | N114: 0
A115: Гуляш из говядины | B115: 293 | C115: 35/35 | D115: 40/40 | E115: 5.96 | F115: 6.92 | G115: 5 | H115: 5.71 | I115: 14.77 | J115: 16.88 | K115: 157.3 | L115: 187.56 | M115: 1.19 | N115: 1
A116: Хлеб ржано -пшеничный | C116: 30 | D116: 50 | E116: 1.91 | F116: 3.19 | G116: 0.24 | H116: 0.4 | I116: 12.43 | J116: 20.71 | K116: 52.61 | L116: 87.68 | M116: 0 | N116: 0
A117: Компот из сухофруктов | B117: 394 | C117: 120 | D117: 150 | E117: 0.03 | F117: 0.04 | I117: 11.32 | J117: 13.4 | K117: 45.42 | L117: 53.79 | M117: 0.024 | N117: 0.03
A118: Итого: | E118: =E117+E116+E115+E114+E113+E112 -> 18.4 | F118: 22.97 | G118: 16.7 | H118: 23.68 | I118: 80.05 | J118: 106.86 | K118: 558.18 | L118: 706.47 | M118: 21.224 | N118: 29.93
A119: Полдник
A120: Сырники из творога | B120: 245 | C120: 50/10 | D120: 80/20 | E120: 4.2 | F120: 6.72 | G120: 2.33 | H120: 2.73 | I120: 8.93 | J120: 14.28 | K120: 74.7 | L120: 122.3 | M120: 0.22 | N120: 0.36
A121: Чай с сахаром | B121: 411 | C121: 150/9 | D121: 200/12 | E121: 0.11 | F121: 0.15 | G121: 0.03 | H121: 0.04 | I121: 9.1 | J121: 12.13 | K121: 41.37 | L121: 55.16 | M121: 0.075 | N121: 0.1
A122: Итого: | E122: =E121+E120 -> 4.31 | F122: 6.87 | G122: 2.36 | H122: 2.77 | I122: 18.03 | J122: 26.41 | K122: 116.07 | L122: 177.46 | M122: 0.295 | N122: 0.46
A123: Итого за 1 день: | E123: =E122+E118+E110+E106 -> 41.74 | F123: 53.55 | G123: 39.09 | H123: 50.84 | I123: 158.51 | J123: 205.26 | K123: 1136.76 | L123: 1446.24 | M123: 74.589 | N123: 84.28
A124: День 6 / Суббота 1 неделя
A125: Завтрак
A126: Каша молочная пшенная со сливочным маслом | B126: 199 | C126: 150/5/5 | D126: 180/7/7 | E126: 5.49 | F126: 5.8 | G126: 8.52 | H126: 9.99 | I126: 16.62 | J126: 18.34 | K126: 188.7 | L126: 202.44 | M126: 1.52 | N126: 1.75
A127: Чай сладкий с молоком | B127: 413 | C127: 150 | D127: 200 | E127: 2.03 | F127: 2.71 | G127: 2.32 | H127: 3.1 | I127: 12.18 | J127: 16.24 | K127: 79.23 | L127: 105.65 | M127: 0.94 | N127: 1.26
A128: Батан нарезной | C128: 40 | D128: 50 | E128: 3 | F128: 4.5 | G128: 1.2 | H128: 1.7 | I128: 20.6 | J128: 30.8 | K128: 104.8 | L128: 157.2 | M128: 1.2 | N128: 1.5
A129: Яйцо отварное | B129: 227 | C129: 40 | D129: 40 | E129: 4.41 | F129: 4.41 | G129: 2.72 | H129: 2.72 | I129: 0.22 | J129: 0.22 | K129: 40.6 | L129: 40.6 | M129: 0 | N129: 0
A130: Итого: | E130: 14.93 | F130: 17.42 | G130: 14.76 | H130: 17.51 | I130: 29.02 | J130: 34.8 | K130: 308.53 | L130: 348.69 | M130: 3.66 | N130: 4.51
A131: 2-ой завтрак
A132: Кисломолочный продукт | B132: 420 | C132: 120 | D132: 150 | E132: 3.12 | F132: 3.9 | G132: 3 | H132: 3.75 | I132: 4.8 | J132: 6 | K132: 52.92 | L132: 66.15 | M132: 0 | N132: 0
A133: Фрукт | C133: 85 | D133: 85 | E133: 1.44 | F133: 1.44 | G133: 0.17 | H133: 0.17 | I133: 6.88 | J133: 6.88 | K133: 32.13 | L133: 32.13 | M133: 51 | N133: 51
A134: Итого: | E134: =E133+E132 -> 4.56 | F134: 5.34 | G134: 3.17 | H134: 3.92 | I134: 11.68 | J134: 12.88 | K134: 85.05 | L134: 98.28 | M134: 51 | N134: 51
A135: Обед
A136: Свекла отварная | B136: 21 | C136: 40 | D136: 60 | E136: 0.58 | F136: 0.87 | G136: 2.69 | H136: 4.04 | I136: 3.51 | J136: 5.27 | K136: 40.71 | L136: 61.07 | M136: 3.86 | N136: 5.8
A137: Суп картофельный с макаронными изделиями на мкб со сметаной | B137: 88 | C137: 180/10/7 | D137: 200/12/8 | E137: 6.35 | F137: 8.02 | G137: 7.25 | H137: 9.62 | I137: 13.5 | J137: 17.9 | K137: 152.63 | L137: 190.4 | M137: 12.81 | N137: 14.39
A138: Картофель, тушеный в соусе | B138: 144 | C138: 100 | D138: 150 | E138: 1.95 | F138: 3.05 | G138: 5.49 | H138: 9.01 | I138: 17.7 | J138: 26.55 | K138: 120.93 | L138: 190 | M138: 17.5 | N138: 27.54
A139: Тефтели мясные | B139: 304 | C139: 60 | D139: 75 | E139: 5.47 | F139: 6.84 | G139: 4.6 | H139: 5.76 | I139: 14.5 | J139: 18.13 | K139: 142.14 | L139: 177.68 | M139: 1.09 | N139: 1.37
A140: Хлеб ржано -пшеничный | C140: 30 | D140: 50 | E140: 1.91 | F140: 3.19 | G140: 0.24 | H140: 0.4 | I140: 12.43 | J140: 20.71 | K140: 52.61 | L140: 87.68 | M140: 0 | N140: 0
A141: Компот из изюма | B141: 394 | C141: 120 | D141: 150 | E141: 0.19 | F141: 0.23 | G141: 0 | H141: 0 | I141: 16.11 | J141: 20.14 | K141: 65.21 | L141: 81.51 | M141: 0.024 | N141: 0.03
A142: Итого: | E142: 16.45 | F142: 22.2 | G142: 20.27 | H142: 28.83 | I142: 77.75 | J142: 108.7 | K142: 574.23 | L142: 788.34 | M142: 35.284 | N142: 49.13
A143: Полдник
A144: Кондитерское изделие | C144: 25 | D144: 50 | E144: 0.64 | F144: 1.29 | G144: 0.56 | H144: 1.13 | I144: 13.24 | J144: 26.48 | K144: 69.26 | L144: 138.52 | M144: 0.13 | N144: 0.26
A145: Кисель | B145: 359 | C145: 200 | D145: 200 | E145: 0 | F145: 0 | G145: 0 | H145: 0 | I145: 27.02 | J145: 27.02 | K145: 106.64 | L145: 106.64 | M145: 0 | N145: 0
A146: Итого: | E146: 0.64 | F146: 1.29 | G146: 0.56 | H146: 1.13 | I146: 40.26 | J146: 52.5 | K146: 175.9 | L146: 245.16 | M146: 0.13 | N146: 0.26
A147: Итого за 1 день: | E147: 36.58 | F147: 46.25 | G147: 38.76 | H147: 51.39 | I147: 158.71 | J147: 208.88 | K147: 1143.71 | L147: 1480.47 | M147: 90.074 | N147: 104.9
A148: День 7 / Понедельник 2 неделя
A149: Завтрак
A150: Каша молочная геркулесовая со сливочным маслом | B150: 199 | C150: 150/5/5 | D150: 180/7/7 | E150: 5.49 | F150: 5.8 | G150: 8.52 | H150: 9.99 | I150: 20.62 | J150: 26.14 | K150: 192.33 | L150: 222.44 | M150: 1.52 | N150: 1.75
A151: Чай сладкий с молоком | B151: 413 | C151: 150 | D151: 200 | E151: 2.03 | F151: 2.71 | G151: 2.32 | H151: 3.1 | I151: 12.18 | J151: 16.24 | K151: 79.23 | L151: 105.65 | M151: 0.94 | N151: 1.26
A152: Бутерброд с повидлом | B152: 2 | C152: 60 | D152: 75 | E152: 2.47 | F152: 3.28 | G152: 3.5 | H152: 3.7 | I152: 24.29 | J152: 31.57 | K152: 128.12 | L152: 144.13 | M152: 0.07 | N152: 0.1
A153: Итого: | E153: =E152+E151+E150 -> 9.99 | F153: 11.79 | G153: 14.34 | H153: 16.79 | I153: 57.09 | J153: 73.95 | K153: 399.68 | L153: 472.22 | M153: 2.53 | N153: 3.11
A154: 2-ой завтрак
A155: Сок | B155: 418 | C155: 150 | D155: 150 | E155: 0.75 | F155: 0.75 | G155: 0 | H155: 0 | I155: 8.99 | J155: 8.99 | K155: 61.56 | L155: 61.56 | M155: 3.24 | N155: 3.24
A156: Фрукт | B156: 386 | C156: 85 | D156: 85 | E156: 0.72 | F156: 0.72 | G156: 0.2 | H156: 0.2 | I156: 6.48 | J156: 6.48 | K156: 34.4 | L156: 34.4 | M156: 48 | N156: 48
A157: Итого: | E157: =E155+E156 -> 1.47 | F157: =F155+F156 -> 1.47 | G157: 0.2 | H157: 0.2 | I157: 15.47 | J157: 15.47 | K157: 95.96 | L157: 95.96 | M157: 51.24 | N157: 51.24
A158: Обед
A159: Салат из моркови (до 1 марта) /Салат из припущенной моркови с яблоком( после 1 марта) | B159: 42 | C159: 40 | D159: 60 | E159: 0.49 | F159: 0.73 | G159: 4.06 | H159: 6.09 | I159: 4.49 | J159: 6.73 | K159: 52.48 | L159: 78.72 | M159: 2.8 | N159: 3.12
A160: Борщ с капустой и картофелем со сметаной на мкб | B160: 63 | C160: 180/10/7 | D160: 200/12/8 | E160: 4.69 | F160: 5.23 | G160: 4.51 | H160: 5.03 | I160: 7.17 | J160: 10.58 | K160: 117.34 | L160: 136.82 | M160: 11.22 | N160: 14.3
A161: Рыба, запеченная в омлете | B161: 263 | C161: 120 | D161: 150 | E161: 13.72 | F161: 17.15 | G161: 7.52 | H161: 9.4 | I161: 8.58 | J161: 11.72 | K161: 152.96 | L161: 191.2 | M161: 1.65 | N161: 2.06
A162: Хлеб ржано -пшеничный | C162: 30 | D162: 50 | E162: 1.91 | F162: 3.19 | G162: 0.24 | H162: 0.4 | I162: 12.43 | J162: 20.71 | K162: 52.61 | L162: 87.68 | M162: 0 | N162: 0
A163: Компот из яблок и изюма | B163: 390 | C163: 120 | D163: 150 | E163: 0.17 | F163: 0.21 | G163: 0.05 | H163: 0.06 | I163: 15.13 | J163: 18.92 | K163: 51.7 | L163: 64.62 | M163: 1.76 | N163: 2.21
A164: Итого: | E164: =E163+E162+E161+E160+E159 -> 20.98 | F164: 26.51 | G164: 16.38 | H164: 20.98 | I164: 47.8 | J164: 68.66 | K164: 427.09 | L164: 559.04 | M164: 17.43 | N164: 21.69
A165: Полдник
A166: Слойка с сахаром | B166: 441 | C166: 60 | D166: 60 | E166: 4.86 | F166: 4.86 | G166: 7.3 | H166: 7.3 | I166: 38.8 | J166: 38.8 | K166: 202.5 | L166: 202.5 | M166: 0.15 | N166: 0.15
A167: Кисломолочный продукт | B167: 420 | C167: 150 | D167: 200 | E167: 3.9 | F167: 5.2 | G167: 3.37 | H167: 4.5 | I167: 5.67 | J167: 7.56 | K167: 65.9 | L167: 87.86 | M167: 0.4 | N167: 0.54
A168: Итого: | E168: =E167+E166 -> 8.76 | F168: 10.06 | G168: 10.67 | H168: 11.8 | I168: 44.47 | J168: 46.36 | K168: 268.4 | L168: 290.36 | M168: 0.55 | N168: 0.69
A169: Итого за 1 день: | E169: 41.21 | F169: 49.85 | G169: 41.56 | H169: 49.72 | I169: 165.14 | J169: 204.91 | K169: 1196.24 | L169: 1425.24 | M169: 70.9 | N169: 76.53
A171: День 8 / Вторник 2 неделя
A172: Завтрак
A173: Запеканка творожная с изюмом и со сгущенкой | B173: 251 | C173: 100/20 | D173: 120/20 | E173: 8.4 | F173: 10.08 | G173: 6 | H173: 6.5 | I173: 17.62 | J173: 19.02 | K173: 154.15 | L173: 188 | M173: 0.72 | N173: 0.77
A174: Какао с молоком | B174: 416 | C174: 150 | D174: 200 | E174: 3.06 | F174: 4.08 | G174: 2.96 | H174: 3.94 | I174: 12.47 | J174: 16.6 | K174: 87.6 | L174: 116.8 | M174: 1.07 | N174: 1.42
A175: Бутерброд с маслом | B175: 1 | C175: 40/10 | D175: 50/10 | E175: 2.91 | F175: 3.62 | G175: 5.88 | H175: 5.97 | I175: 17.43 | J175: 21.8 | K175: 143 | L175: 164.33 | M175: 0 | N175: 0
A176: Яйцо отварное | C176: 40 | D176: 40 | E176: 4.41 | F176: 4.41 | G176: 2.72 | H176: 2.72 | I176: 0.22 | J176: 0.22 | K176: 40.6 | L176: 40.6 | M176: 0 | N176: 0
A177: Итого: | E177: =E175+E174+E173+E176 -> 18.78 | F177: 22.19 | G177: 17.56 | H177: 19.13 | I177: 47.74 | J177: 57.64 | K177: 425.35 | L177: 509.73 | M177: 1.79 | N177: 2.19
A178: 2-ой завтрак
A179: Кисель | B179: 359 | C179: 120 | D179: 150 | E179: 0 | F179: 0 | G179: 0 | H179: 0 | I179: 19.44 | J179: 21.77 | K179: 71.28 | L179: 87.48 | M179: 0 | N179: 0
A180: Итого: | E180: =E179 -> 0 | F180: =F179 -> 0 | G180: 0 | H180: 0 | I180: 19.44 | J180: 21.77 | K180: 71.28 | L180: 87.48 | M180: 0 | N180: 0
A181: Обед
A182: Салат" Витаминный" (до 1 марта) / Огурцы соленые (после 1 марта) | B182: 21 | C182: 40 | D182: 60 | E182: 0.57 | F182: 0.86 | G182: 1.81 | H182: 2.74 | I182: 3.86 | J182: 5.23 | K182: 37.54 | L182: 49.18 | M182: 13.21 | N182: 19.8
A183: Суп картофельный с крупой ( гречневый ) на мкб со сметаной | B183: 86 | C183: 180/10/7 | D183: 200/12/8 | E183: 4.58 | F183: 6.18 | G183: 5.78 | H183: 6.8 | I183: 18.84 | J183: 23.1 | K183: 133.91 | L183: 156.6 | M183: 7.87 | N183: 8.82
A184: Рагу овощное | B184: 362 | C184: 100 | D184: 150 | E184: 1.66 | F184: 2.49 | G184: 3.86 | H184: 5.8 | I184: 12.38 | J184: 14.07 | K184: 85.78 | L184: 128.67 | M184: 20.6 | N184: 31
A185: Котлета куриная | B185: 299 | C185: 60 | D185: 75 | E185: 7.66 | F185: 9.57 | G185: 4.3 | H185: 4.9 | I185: 8.5 | J185: 10.62 | K185: 117.44 | L185: 146.8 | M185: 0.5 | N185: 0.62
A186: Хлеб ржано -пшеничный | C186: 30 | D186: 50 | E186: 1.91 | F186: 3.19 | G186: 0.24 | H186: 0.4 | I186: 12.43 | J186: 20.71 | K186: 52.61 | L186: 87.68 | M186: 0 | N186: 0
A187: Компот из свежих фруктов | B187: 390 | C187: 120 | D187: 150 | E187: 0.03 | F187: 0.04 | G187: 0 | H187: 0 | I187: 10.19 | J187: 12.74 | K187: 41 | L187: 51.11 | M187: 0.02 | N187: 0.03
A188: Итого: | E188: =E187+E186+E185+E184+E183+E182 -> 16.41 | F188: 22.33 | G188: 15.99 | H188: 20.64 | I188: 66.2 | J188: 86.47 | K188: 468.28 | L188: 620.04 | M188: 42.2 | N188: 60.27
A189: Полдник
A190: Кисломолочный продукт | B190: 420 | C190: 200 | D190: 200 | E190: 5.2 | F190: 5.2 | G190: 5 | H190: 5 | I190: 8 | J190: 8 | K190: 88.2 | L190: 88.2 | M190: 0 | N190: 0
A191: Кондитерское изделие | C191: 25 | D191: 50 | E191: 0.64 | F191: 1.29 | G191: 0.56 | H191: 1.13 | I191: 13.24 | J191: 26.48 | K191: 69.26 | L191: 138.52 | M191: 0.13 | N191: 0.26
A192: Итого: | E192: =E191+E190 -> 5.84 | F192: 6.49 | G192: 5.56 | H192: 6.13 | I192: 21.24 | J192: 34.48 | K192: 157.46 | L192: 226.72 | M192: 0.13 | N192: 0.26
A193: Итого за 1 день: | E193: =E192+E188+E180+E177 -> 41.03 | F193: 51.01 | G193: 39.11 | H193: 45.9 | I193: 154.62 | J193: 200.36 | K193: 1122.37 | L193: 1443.97 | M193: 44.12 | N193: 62.72
A195: День 9 / Среда 2 неделя
A196: Завтрак
A197: Каша"дружба" молочная со сливочным маслом | B197: 199 | C197: 150/5/5 | D197: 180/7/7 | E197: 5.02 | F197: 6.1 | G197: 7.96 | H197: 10.3 | I197: 16.96 | J197: 22.75 | K197: 159.48 | L197: 228.8 | M197: 1.62 | N197: 1.95
A198: Кофейный напиток с молоком | B198: 414 | C198: 180 | D198: 200 | E198: 2.52 | F198: 2.8 | G198: 2.59 | H198: 2.87 | I198: 13.68 | J198: 15.2 | K198: 87.14 | L198: 96.82 | M198: 1.17 | N198: 1.75
A199: Бутерброд с маслом и сыром | B199: 3 | C199: 55 | D199: 70 | E199: 5.8 | F199: 7.89 | G199: 6.67 | H199: 8.1 | I199: 19.65 | J199: 24.64 | K199: 143.62 | L199: 182.71 | M199: 0.02 | N199: 0.04
A200: Итого: | E200: =E199+E198+E197 -> 13.34 | F200: 16.79 | G200: 17.22 | H200: 21.27 | I200: 50.29 | J200: 62.59 | K200: 390.24 | L200: 508.33 | M200: 2.81 | N200: 3.74
A201: 2-ой завтрак
A202: Сок | B202: 418 | C202: 150 | D202: 150 | E202: 0.75 | F202: 0.75 | G202: 0 | H202: 0 | I202: 8.99 | J202: 8.99 | K202: 61.56 | L202: 61.56 | M202: 3.24 | N202: 3.24
A203: Фрукт | B203: 386 | C203: 85 | D203: 85 | E203: 1.44 | F203: 1.44 | G203: 0.17 | H203: 0.17 | I203: 6.88 | J203: 6.88 | K203: 32.13 | L203: 32.13 | M203: 51 | N203: 51
A204: Итого: | E204: =E202+E203 -> 2.19 | F204: =F202+F203 -> 2.19 | G204: 0.17 | H204: 0.17 | I204: 15.87 | J204: 15.87 | K204: 93.69 | L204: 93.69 | M204: 54.24 | N204: 54.24
A205: Обед
... 78 more rows

Sheet Сличительное меню
A2: День1/ Понедельник 1 неделя | B2: День2/ Вторник 1 неделя | C2: День 3 / Среда 1 неделя | D2: День 4 / Четверг 1 неделя | E2: День 5 / Пятница 1 неделя | F2: День 6/ Суббота 1 неделя
A3: Завтрак | B3: Завтрак | C3: Завтрак | D3: Завтрак | E3: Завтрак | F3: Завтрак
A4: Суп молочный пшенный | B4: Запеканка творожная с изюмом и со сгущенкой | C4: Каша манная молочная со сливочным маслом | D4: суп молочный с вермишелевый | E4: Омлет натуральный со сливочным маслом | F4: Каша пшенная молочная со сливочным маслом
A5: Какао с молоком | B5: Кофейный напиток с молоком | C5: Чай сладкий с молоком | D5: Какао с молоком | E5: Кофейный напиток с молоком | F5: Чай сладкий с молоком
A6: Бутерброд с маслом | B6: Бутерброд с маслом и сыром | C6: Бутерброд с повидлом | D6: Бутерброд с маслом | E6: Бутерброд с маслом и сыром | F6: Батон нарезной
F7: Яйцо отварное
A8: 2-ой завтрак | B8: 2-ой завтрак | C8: 2-ой завтрак | D8: 2-ой завтрак | E8: 2-ой завтрак | F8: 2-ой завтрак
A9: Кисломолочный продукт | B9: Сок | C9: Сок | D9: Кисломолочный продукт | E9: Кисломолочный продукт | F9: Кисломолочный продукт
A10: Фрукт | B10: Фрукт | D10: Фрукт | E10: Фрукт | F10: Фрукт
A11: Обед | B11: Обед | C11: Обед | D11: Обед | E11: Обед | F11: Обед
A12: Огурцы свежие | B12: Салат из свежей капусты (до 1 марта)/ Винегрет овощной (после 1 марта) | C12: Салат из моркови с изюмом( до 1 марта) / Зел. горошек консервированный (после 1 марта) | D12: Салат из отварной свеклы | E12: Салат Витаманный (до 1 марта) Салат картофельный с огурцами (после 1 марта) | F12: Свекла отварная
A13: Борщ на мкб со сметаной | B13: Суп крестянский на мкб со сметаной | C13: Щи на мкб со сметаной | D13: Суп с клецками на мкб со сметаной | E13: Суп картофельный с бобовыми на мкб | F13: Суп картофельный с макаронными изделиями со сметаной
A14: Пюре картофельное | B14: Макароны отварные со сливочным маслом | C14: Жаркое домашнее из говядины | D14: Запеканка рыбная с рисом | E14: Каша гречневая отварная со сливочным маслом | F14: Картофель тушеный в соусе
A15: Котлета мясная (ясли) /Сосиска отварная сад | B15: Кнели куриные | E15: Гуляш из говядины | F15: Тефтели мясные
A16: Хлеб пшеничный /ржано-пшеничный | B16: Хлеб пшеничный /ржано-пшеничный | C16: Хлеб пшеничный /ржано-пшеничный | D16: Хлеб пшеничный /ржано-пшеничный | E16: Хлеб пшеничный /ржано-пшеничный | F16: Компот из изюма
A17: Кисель вишневый | B17: Компот из сухофруктов | C17: Компот из яблок и изюма | D17: Кисель вишневый | E17: Компот из сухофруктов | F17: Хлеб пшеничный /ржано-пшеничный
A19: Полдник | B19: Полдник | C19: Полдник | D19: Полдник | E19: Полдник | F19: Полдник
A20: булочка с повидлом | B20: Кисломолочный продукт | C20: Булочка домашняя | D20: Чай без сахара | E20: Сырники творожные запеченные | F20: Кисель
A21: Чай с сахаром | B21: Кондитерское изделие | C21: Кисломолочный продукт | D21: Оладьи со сгущенным молоком | E21: Чай с сахаром | F21: Кондитерское изделие
A25: День 7 /Понедельник 2 неделя | B25: День 8/Вторник 2 неделя | C25: День 9 /Среда 2 неделя | D25: День 10 /Четверг 2 неделя | E25: День 11 /Пятница 2 неделя | F25: День 12 /Суббота 2 неделя
A26: Завтрак | B26: Завтрак | C26: Завтрак | D26: Завтрак | E26: Завтрак | F26: Завтрак
A27: Каша молочная жидкая геркулесовая со сливочным маслом | B27: Запеканка творожная с изюмом и со сгущенкой | C27: Каша "Дружба" жидкая молочная со сливочным маслом | D27: Суп молочный рисовый | E27: Каша ячневая жидкая молочная со сливочным маслом | F27: Запеканка творожная с изюмом и со сгущенкой
A28: Бутеррод с повидлом | B28: Бутерброд с маслом | C28: Кофейный напиток с молоком | D28: Бутерброд с повидлом | E28: Какао с молоком | F28: Кофейный напиток с молоком
A29: Чай сладкий с молоком | B29: Какао с молоком | C29: Бутерброд с маслом и сыром | D29: Чай сладкий с молоком | E29: Бутерброд с маслом | F29: Бутерброд с маслом и сыром
B30: Яйцо отварное
A32: 2-ой завтрак | B32: 2-ой завтрак | C32: 2-ой завтрак | D32: 2-ой завтрак | E32: 2-ой завтрак | F32: 2-ой завтрак
A33: Сок | B33: Кисель клюквенный | C33: Сок | D33: Кисломолочный продукт | E33: Сок | F33: Сок
A34: Фрукт | C34: Фрукт | D34: Фрукт | E34: Фрукт | F34: Фрукт
A35: Обед | B35: Обед | C35: Обед | D35: Обед | E35: Обед | F35: Обед
A36: Салат из моркови (до 1 марта)/ Салат из припущенной моркови с яблоком (после 1 марта) | B36: Салат Витаминный (до 1 марта)/ Огурцы соленые (после 1 марта) | C36: Салат из отварной свеклы | D36: Огурцы свежие | E36: Салат из свежей капусты(до 1 марта)/ Винегрет овощной (после 1 марта) | F36: Свекла отварная
A37: Борщ на мкб со сметаной | B37: Суп картофельный с крупой (гречневый) на мкб | C37: Суп картофельный с макаронными изделиями со сметаной | D37: Щи на мкб со сметаной | E37: Суп картофельный с бобовыми на мкб | F37: Суп картофельный с крупой (пшенный) со сметаной на мкб
A38: Рыба под омлетом | B38: Рагу овощное | C38: Голубцы ленивые | D38: Картофельное пюре | E38: Плов из говядины | F38: Жаркое по домашнему из говядины
A39: Хлеб пшеничный /ржано-пшеничный | B39: Котлета куриная | C39: Хлеб пшеничный /ржано-пшеничный | D39: Биточки рыбные | E39: Хлеб пшеничный /ржано-пшеничный | F39: Хлеб пшеничный /ржано-пшеничный
A40: Компот из яблок и изюма | B40: Хлеб пшеничный /ржано-пшеничный | C40: Компот из сухофруктов | D40: Хлеб пшеничный /ржано-пшеничный | E40: Компот из яблок | F40: Компот из сухофруктов
B41: Компот из яблок | D41: Компот из яблок и изюма
A43: Полдник | B43: Полдник | C43: Полдник | D43: Полдник | E43: Полдник | F43: Полдник
A44: Слойка с сахаром | B44: Кисломолочный продукт | C44: Булочка домашняя | D44: Чай без сахара | E44: Кондитерское изделие | F44: Кисель
A45: Кисломолочный продукт | B45: Кондитерское изделие | C45: Кисломолочный продукт | D45: Оладьи со сгущенным молоком | E45: Кисломолочный продукт | F45: Кондитерское изделие

Sheet Суммарные объёмы блюд
A1: Суммарные объемы блюд по приему пищи
A3: От 1 -3 года
A4: Наименование | B4: Норма | C4: День 1 | D4: День 2 | E4: День 3 | F4: День 4 | G4: День 5 | H4: День 6 | I4: День 7 | J4: День 8 | K4: День 9 | L4: День 10 | M4: День 11 | N4: День 12 | O4: Общий | P4: Усредненные данные
A5: Завтрак | B5: 350-450 | C5: 350 | D5: 355 | E5: 370 | F5: 350 | G5: 360 | H5: 385 | I5: 370 | J5: 360 | K5: 395 | L5: 360 | M5: 360 | N5: 355 | O5: =C5+D5+E5+F5+G5+I5+J5+K5+L5+M5+H5+N5 -> 4370 | P5: 364
A6: 2-ой завтрак | C6: 205 | D6: 235 | E6: 150 | F6: 205 | G6: 205 | H6: 205 | I6: 235 | J6: 120 | K6: 235 | L6: 205 | M6: 235 | N6: 235 | O6: =C6+D6+E6+F6+G6+I6+J6+K6+L6+M6+H6+N6 -> 2470 | P6: 205.8
A7: Обед | B7: 450-550 | C7: 537 | D7: 537 | E7: 547 | F7: 507 | G7: 550 | H7: 547 | I7: 507 | J7: 547 | K7: 547 | L7: 547 | M7: 540 | N7: 547 | O7: 6460 | P7: 539
A8: Полдник | B8: 200-250 | C8: 219 | D8: 225 | E8: 210 | F8: 240 | G8: 219 | H8: 225 | I8: 210 | J8: 225 | K8: 210 | L8: 240 | M8: 225 | N8: 225 | O8: 2673 | P8: =O8/12 -> 222.75
A11: От 3-7 лет
A12: Наименование | B12: Норма | C12: День 1 | D12: День 2 | E12: День 3 | F12: День 4 | G12: День 5 | H12: День 6 | I12: День 7 | J12: День 8 | K12: День 9 | L12: День 10 | M12: День 11 | N12: День 12 | O12: Общий | P12: Усредненные данные
A13: Завтрак | B13: 400-550 | C13: 445 | D13: 410 | E13: 469 | F13: 445 | G13: 425 | H13: 484 | I13: 469 | J13: 445 | K13: 464 | L13: 455 | M13: 459 | N13: 410 | O13: =C13+D13+E13+F13+G13+I13+J13+K13+L13+M13+H13+N13 -> 5380 | P13: 448
A14: 2-ой завтрак | C14: 235 | D14: 235 | E14: 150 | F14: 235 | G14: 235 | H14: 235 | I14: 235 | J14: 150 | K14: 235 | L14: 235 | M14: 235 | N14: 235 | O14: =C14+D14+E14+F14+G14+I14+J14+K14+L14+M14+H14+N14 -> 2650 | P14: 221
A15: Обед | B15: 600-800 | C15: 660 | D15: 685 | E15: 670 | F15: 630 | G15: 682 | H15: 708 | I15: 630 | J15: 705 | K15: 670 | L15: 685 | M15: 662 | N15: 673 | O15: 8060 | P15: 672
A16: Полдник | B16: 250-350 | C16: 272 | D16: 250 | E16: 260 | F16: 330 | G16: 312 | H16: 250 | I16: 260 | J16: 250 | K16: 260 | L16: 330 | M16: 250 | N16: 250 | O16: 3274 | P16: 273

Sheet Пищевая ценность
A1: Химический состав за 10 дней
B2: Пищевая ценность | H2: Энергетическая ценность | J2: Витамин С
B3: белки | D3: жиры | F3: углеводы
B4: 1-3 года | C4: 3-7 лет | D4: 1-3 года | E4: 3-7 лет | F4: 1-3 года | G4: 3-7 лет | H4: 1-3 года | I4: 3-7 лет | J4: 1-3 года | K4: 3-7 лет
A5: День 1 | B5: 38.72 | C5: 45.98 | D5: 38.57 | E5: 45.61 | F5: 160.21 | G5: 200.34 | H5: 1138.37 | I5: 1400.71 | J5: 85.295 | K5: 93.18
A6: День 2 | B6: 41.2 | C6: 52.6 | D6: 36.66 | E6: 46.47 | F6: 159.56 | G6: 201.57 | H6: 1127.69 | I6: 1439.22 | J6: 34.104 | K6: 42.54
A7: День 3 | B7: 41.26 | C7: 52.32 | D7: 40.61 | E7: 51.39 | F7: 162.84 | G7: 205.66 | H7: 1178.35 | I7: 1458.85 | J7: 56.08 | K7: 65.17
A8: День 4 | B8: 34.79 | C8: 46.59 | D8: 38.36 | E8: 49.51 | F8: 163.02 | G8: 208.89 | H8: 1100.13 | I8: 1447.1 | J8: 81.88 | K8: 90.58
A9: День 5 | B9: 41.74 | C9: 53.55 | D9: 39.09 | E9: 50.84 | F9: 158.51 | G9: 205.26 | H9: 1136.76 | I9: 1446.24 | J9: 74.589 | K9: 84.28
A10: День 6 | B10: 36.58 | C10: 46.25 | D10: 38.76 | E10: 51.39 | F10: 158.71 | G10: 208.88 | H10: 1143.71 | I10: 1480.47 | J10: 90.074 | K10: 104.9
A11: День 7 | B11: 41.21 | C11: 49.85 | D11: 41.56 | E11: 49.72 | F11: 165.14 | G11: 204.91 | H11: 1196.24 | I11: 1425.24 | J11: 70.9 | K11: 76.53
A12: День 8 | B12: 41.03 | C12: 51.01 | D12: 39.11 | E12: 45.9 | F12: 154.62 | G12: 200.36 | H12: 1122.37 | I12: 1443.97 | J12: 44.12 | K12: 62.72
A13: День 9 | B13: 37.86 | C13: 46.76 | D13: 42.26 | E13: 52.28 | F13: 163.1 | G13: 198.94 | H13: 1182.46 | I13: 1455.83 | J13: 114.374 | K13: 126.5
A14: День 10 | B14: 36.8 | C14: 48.74 | D14: 38.48 | E14: 47.34 | F14: 154.27 | G14: 203.6 | H14: 1154.17 | I14: 1410.76 | J14: 48.83 | K14: 57.6
A15: День 11 | B15: 36.35 | C15: 44.2 | D15: 36.33 | E15: 46.3 | F15: 155.81 | G15: 204.91 | H15: 1135.85 | I15: 1404.72 | J15: 30.94 | K15: 40.93
A16: День 12 | B16: 40.87 | C16: 52.82 | D16: 36.22 | E16: 43.65 | F16: 161.71 | G16: 206.17 | H16: 1171.07 | I16: 1446.59 | J16: 45.154 | K16: 53.31
A17: Итого за 12 дней | B17: =B5+B6+B7+B8+B9+B11+B12+B13+B14+B15+B10+B16 -> 468.41 | C17: =C5+C6+C7+C8+C9+C11+C12+C13+C14+C15+C10+C16 -> 590.67 | D17: 466.01 | E17: 580.4 | F17: 1917.5 | G17: 2449.49 | H17: 13787.17 | I17: 17259.7 | J17: 776.34 | K17: 898.24
A18: Усредненые данные | B18: =B17/12 -> 39.03416667 | C18: =C17/12 -> 49.2225 | D18: 38.83416667 | E18: 48.36666667 | F18: 159.7916667 | G18: 204.1241667 | H18: 1148.930833 | I18: 1438.308333 | J18: 64.695 | K18: 74.85333333
A19: Норма по СанПиН 10 часов (80 % от дневного приывания детей ) | B19: 33.6 | C19: 43.2 | D19: 37.6 | E19: 48 | F19: 162.4 | G19: 208.8 | H19: 1120 | I19: 1440
A20: Норма по СанПиН 2.4.13049-13 с учётом отклонений + - 5 % | B20: 31,92-41,8 | C20: 41,05-55,48 | D20: 35,72-42,56 | E20: 45,6-52,4 | F20: 154,2-163,4 | G20: 198,36-209 | H20: 1064-1185,6 | I20: 1368-1491,88

Sheet Меню раскладка 1 день
B1: Меню-раскладка 1 день
A3: Наименование блюда | B3: номер рецептуры по сборнику | C3: масса порций, в гр. | E3: Пищевая ценность | K3: Энергетическая ценность | M3: Витамин С
E4: белки | G4: жиры | I4: углеводы
A5: Завтрак | C5: 1-3 года | D5: 3-7 лет | E5: 1-3 года | F5: 3-7 лет | G5: 1-3 года | H5: 3-7 лет | I5: 1-3 года | J5: 3-7 лет | K5: 1-3 года | L5: 3-7 лет | M5: 1-3 года | N5: 3-7 лет
A6: Суп молочный с крупой (пшенный) | B6: 101 | C6: 150 | D6: 180 | E6: 5.41 | F6: 6.99 | G6: 6.7 | H6: 8.04 | I6: 16.92 | J6: 19.8 | K6: 105.89 | L6: 128.76 | M6: 1.36 | N6: 1.63
A7: молоко 2,5 % | C7: 125 | D7: 150
A8: пшено | C8: 16 | D8: 20
A9: вода | C9: 25 | D9: 30
A10: сахарный песок | C10: 2 | D10: 3
A11: соль | C11: 1 | D11: 1
A12: масло сливочное 72,5% | C12: 2 | D12: 3
A14: Какао с молоком | B14: 416 | C14: 150 | D14: 200 | E14: 3.06 | F14: 4.08 | G14: 2.96 | H14: 3.94 | I14: 12.47 | J14: 16.6 | K14: 87.6 | L14: 116.8 | M14: 1.07 | N14: 1.42
A15: какао | C15: 2 | D15: 2
A16: сахарный песок | C16: 9 | D16: 12
A17: молоко 2,5% | C17: 92 | D17: 122
A18: вода | C18: 65 | D18: 87
A20: Бутерброд с маслом | B20: 1 | C20: 40/10 | D20: 50/10 | E20: 2.91 | F20: 3.62 | G20: 5.88 | H20: 5.97 | I20: 17.43 | J20: 21.8 | K20: 143 | L20: 164.33 | M20: 0 | N20: 0
A21: батон | C21: 40 | D21: 50
A22: масло сливочное 72,5% | C22: 10 | D22: 10
A24: Итого: | E24: =E20+E14+E6 -> 11.38 | F24: =F20+F14+F6 -> 14.69 | G24: 15.54 | H24: 17.95 | I24: 46.82 | J24: 58.2 | K24: 336.49 | L24: 409.89 | M24: 2.43 | N24: 3.05
A26: 2-ой завтрак
A27: Кисломолочный напиток 5% | B27: 420 | C27: 120 | D27: 150 | E27: 3.12 | F27: 3.9 | G27: 3 | H27: 3.75 | I27: 4.8 | J27: 6 | K27: 52.92 | L27: 66.15 | M27: 0 | N27: 0
A28: Фрукт | C28: 85 | D28: 85 | E28: 1.44 | F28: 1.44 | G28: 0.17 | H28: 0.17 | I28: 6.88 | J28: 6.88 | K28: 32.13 | L28: 32.13 | M28: 51 | N28: 51
A29: Итого: | E29: =E28+E27 -> 4.56 | F29: 5.34 | G29: 3.17 | H29: 3.92 | I29: 11.68 | J29: 12.88 | K29: 85.05 | L29: 98.28 | M29: 51 | N29: 51
A31: Обед
A32: Огурцы свежие | B32: 15 | C32: 40 | D32: 60 | E32: 0.32 | F32: 0.48 | G32: 0.04 | H32: 0.06 | I32: 1.04 | J32: 1.56 | K32: 5.8 | L32: 8.7 | M32: 1.72 | N32: 2.61
A33: Огурцы свежие | C33: 43/40 | D33: 63/60
A35: Борщ с капустой и картофелем со сметаной на мкб | B35: 63 | C35: 180/10/7 | D35: 200/12/8 | E35: 4.69 | F35: 5.23 | G35: 4.51 | H35: 5.03 | I35: 7.17 | J35: 9.58 | K35: 117.34 | L35: 136.82 | M35: 11.22 | N35: 14.3
A36: говядина на кости | C36: 22/16 | D36: 25/19
A37: свекла | C37: 40/29 | D37: 44/32
A38: капуста белокочанная | C38: 34/28 | D38: 36/30
A39: картофель | C39: 53/32 | D39: 61/37
A40: морковь свежая | C40: 12/9 | D40: 14/11
A41: лук репчатый | C41: 8/7 | D41: 9/8
A42: томатная паста | C42: 6 | D42: 7
A43: сахарный песок | C43: 2 | D43: 2
A44: соль | C44: 1 | D44: 1
A45: масло растительное | C45: 2 | D45: 3
A46: вода | C46: 144 | D46: 160
A47: сметана 15% | C47: 7 | D47: 8
A49: Картофельное пюре | B49: 339 | C49: 100 | D49: 130 | E49: 2.28 | F49: 2.96 | G49: 3.77 | H49: 4.72 | I49: 13.92 | J49: 18.09 | K49: 104.96 | L49: 128.3 | M49: 18.2 | N49: 21.87
A50: Картофель | C50: 150/90 | D50: 195/117
A51: молоко 2,5% | C51: 16 | D51: 21
A52: масло сливочное 72,5% | C52: 4 | D52: 5
A53: соль | C53: 1 | D53: 1
A55: Котлета мясная (Ясли) | B55: 299 | C55: 50 | E55: 8.36 | G55: 6.44 | I55: 6.7 | K55: 114.37 | M55: 0.4
A56: мясо говядины на кости | C56: 50/37
A57: хлеб пшеничный | C57: 9
A58: вода | C58: 7
A59: лук репчатый | C59: 5/4
A60: сухари панировочные | C60: 4
A61: соль | C61: 1
A62: масло растительное | C62: 1
A63: яйцо куриное | C63: 2
A65: Сосиски отварные (сад) | D65: 50 | F65: 8.83 | H65: 8.66 | J65: 10.98 | L65: 170 | N65: 0
A66: Сосиски | D66: 53/50
A68: Хлеб ржано -пшеничный | C68: 30 | D68: 50 | E68: 1.91 | F68: 3.19 | G68: 0.24 | H68: 0.4 | I68: 12.43 | J68: 20.71 | K68: 52.61 | L68: 87.68 | M68: 0 | N68: 0
A70: Кисель | C70: 120 | D70: 150 | E70: 0 | F70: 0 | G70: 0 | H70: 0 | I70: 19.44 | J70: 24.3 | K70: 61.98 | L70: 87.48 | M70: 0 | N70: 0
A71: Кисель концентрат | C71: 14 | D71: 18
A72: сахарный песок | C72: 8 | D72: 10
A73: вода | C73: 120 | D73: 150
A75: Итого: | E75: =E32+E35+E49+E55+E65+E68+E70 -> 17.56 | F75: 20.69 | G75: 15 | H75: 18.87 | I75: 60.7 | J75: 85.22 | K75: 457.06 | L75: 618.98 | M75: 31.54 | N75: 38.78
A77: Полдник
A78: Булочка с повидлом | B78: 441 | C78: 60 | D78: 60 | E78: 5.11 | F78: 5.11 | G78: 4.83 | H78: 4.83 | I78: 31.91 | J78: 31.91 | K78: 218.4 | L78: 218.4 | M78: 0.25 | N78: 0.25
A79: Для теста: | B79: 436 | C79: 45 | D79: 45
A80: мука | C80: 29 | D80: 29
A81: молоко 2,5% | C81: 10 | D81: 10
A82: вода | C82: 5 | D82: 5
A83: масло растительное | C83: 3 | D83: 3
A84: соль | C84: 1 | D84: 1
A85: дрожжи сухие | C85: 1 | D85: 1
A86: сахарный песок | C86: 1 | D86: 1
A87: яйцо куриное | C87: 2 | D87: 2
A89: Повидло | C89: 25 | D89: 25
A91: мука в/с | C91: 2 | D91: 2
A92: масло растительное | C92: 1 | D92: 1
A94: Чай с сахаром | B94: 411 | C94: 150/9 | D94: 200/12 | E94: 0.11 | F94: 0.15 | G94: 0.03 | H94: 0.04 | I94: 9.1 | J94: 12.13 | K94: 41.37 | L94: 55.16 | M94: 0.075 | N94: 0.1
A95: Чай заварка (сухая) | C95: 0.5 | D95: 0.7
A96: Сахарный песок | C96: 9 | D96: 12
A97: вода | C97: 157 | D97: 210
A98: Итого: | E98: =E94+E78 -> 5.22 | F98: =F94+F78 -> 5.26 | G98: 4.86 | H98: 4.87 | I98: 41.01 | J98: 44.04 | K98: 259.77 | L98: 273.56 | M98: 0.325 | N98: 0.35
A99: Итого за 1 день: | E99: =E98+E75+E29+E24 -> 38.72 | F99: 45.98 | G99: 38.57 | H99: 45.61 | I99: 160.21 | J99: 200.34 | K99: 1138.37 | L99: 1400.71 | M99: 85.295 | N99: 93.18

Sheet Меню раскладка 2 день
B1: Меню-раскладка 2 день
A3: Наименование блюда | B3: номер рецептуры по сборнику | C3: масса порций, в гр. | E3: Пищевая ценность | K3: Энергетическая ценность | M3: Витамин С
E4: белки | G4: жиры | I4: углеводы
A5: Завтрак | C5: 1-3 года | D5: 3-7 лет | E5: 1-3 года | F5: 3-7 лет | G5: 1-3 года | H5: 3-7 лет | I5: 1-3 года | J5: 3-7 лет | K5: 1-3 года | L5: 3-7 лет | M5: 1-3 года | N5: 3-7 лет
A6: Запеканка творожная с изюмом и со сгущенкой | B6: 251 | C6: 100/20 | D6: 120/20 | E6: 8.4 | F6: 10.08 | G6: 8 | H6: 9.6 | I6: 18.62 | J6: 22.34 | K6: 154.15 | L6: 188 | M6: 0.72 | N6: 0.77
A7: творог 5% | C7: 92 | D7: 110
A8: манная крупа | C8: 6 | D8: 7
A9: молоко 2,5% | C9: 25 | D9: 30
A10: сметана 15% | C10: 5 | D10: 6
A11: яйцо куриное | C11: 5 | D11: 6
A12: сахарный песок | C12: 9 | D12: 11
A13: масло сливочное 72,5% | C13: 5 | D13: 6
A14: изюм | C14: 7 | D14: 8
A15: молоко сгущенное | C15: 20 | D15: 20
A16: сухари | C16: 5 | D16: 6
A18: Кофейный напиток с молоком | B18: 414 | C18: 180 | D18: 200 | E18: 2.52 | F18: 2.8 | G18: 2.59 | H18: 2.87 | I18: 13.68 | J18: 15.2 | K18: 87.14 | L18: 96.82 | M18: 1.17 | N18: 1.75
A19: кофейный напиток | C19: 2 | D19: 3
A20: сахарный песок | C20: 11 | D20: 12
A21: молоко 2,5% | C21: 90 | D21: 100
A22: вода | C22: 108 | D22: 120
A24: Бутерброд с маслом и сыром | B24: 3 | C24: 55 | D24: 70 | E24: 5.8 | F24: 7.89 | G24: 6.67 | H24: 8.1 | I24: 19.65 | J24: 24.64 | K24: 143.62 | L24: 182.71 | M24: 0.02 | N24: 0.04
A25: батон | C25: 40 | D25: 50
A26: масло сливочное 72,5% | C26: 5 | D26: 5
A27: сыр твердый | C27: 10 | D27: 15
A28: Итого: | E28: =E24+E18+E6 -> 16.72 | F28: =F24+F18+F6 -> 20.77 | G28: 17.26 | H28: 20.57 | I28: 51.95 | J28: 62.18 | K28: 384.91 | L28: 467.53 | M28: 1.91 | N28: 2.56
A30: 2-ой завтрак
A31: Сок | B31: 418 | C31: 150 | D31: 150 | E31: 0.75 | F31: 0.75 | G31: 0 | H31: 0 | I31: 8.99 | J31: 8.99 | K31: 61.56 | L31: 61.56 | M31: 3.24 | N31: 3.24
A32: Фрукт | C32: 85 | D32: 85 | E32: 1.2 | F32: 1.2 | G32: 0.12 | H32: 0.12 | I32: 5.18 | J32: 5.18 | K32: 21.77 | L32: 21.77 | M32: 0.1 | N32: 0.1
A33: Итого: | E33: =E32+E31 -> 1.95 | F33: =F32+F31 -> 1.95 | G33: 0.12 | H33: 0.12 | I33: 14.17 | J33: 14.17 | K33: 83.33 | L33: 83.33 | M33: 3.34 | N33: 3.34
A35: Обед
A36: Салат из белокочанной капусты | B36: 21 | C36: 40 | D36: 60 | E36: 0.57 | F36: 0.86 | G36: 1.81 | H36: 2.74 | I36: 3.86 | J36: 5.23 | K36: 37.54 | L36: 49.18 | M36: 13.21 | N36: 19.8
A37: капуста | C37: 40/32 | D37: 60/48
A38: морковь | C38: 7/6 | D38: 10/8
A39: масло растительное | C39: 4 | D39: 6
A40: сахарный песок | C40: 2 | D40: 3
A41: соль | C41: 1 | D41: 1
A43: Суп крестьянский на мкб со сметаной | B43: 98 | C43: 180/10/7 | D43: 200/12/8 | E43: 5.32 | F43: 6.95 | G43: 4.26 | H43: 5.75 | I43: 16.28 | J43: 17.14 | K43: 128.52 | L43: 143.52 | M43: 11.87 | N43: 12.02
A44: Мясо говядины на кости | C44: 22/16 | D44: 25/19
A45: Картофель | C45: 100/60 | D45: 111/67
A46: Морковь | C46: 11/9 | D46: 12/10
A47: Лук репчатый | C47: 17/14 | D47: 18/15
A48: крупа перловая | C48: 9 | D48: 10
A49: Масло растительное | C49: 2 | D49: 3
A50: Вода | C50: 135 | D50: 150
A51: Соль | C51: 1 | D51: 1
A52: Сметана 15% | C52: 7 | D52: 8
A54: Макароны отварные со сливочным маслом | B54: 335 | C54: 100 | D54: 150 | E54: 3.32 | F54: 4.25 | G54: 3.69 | H54: 5.11 | I54: 24.46 | J54: 29.45 | K54: 120.4 | L54: 180.6 | M54: 0 | N54: 0
A55: макаронные изделия | C55: 35 | D55: 52
A56: масло сливочное 72,5% | C56: 5 | D56: 8
A57: соль | C57: 2 | D57: 3
A59: Кнели куриные | B59: 329 | C59: 60 | D59: 75 | E59: 5.54 | F59: 8.1 | G59: 3.72 | H59: 4.65 | I59: 3.85 | J59: 4.81 | K59: 117.5 | L59: 146.87 | M59: 3.62 | N59: 4.53
A60: курица | C60: 80/57 | D60: 100/71
A61: крупа рисовая | C61: 5 | D61: 6
A62: вода | C62: 6 | D62: 7
A63: мука пшеничная в/с | C63: 2 | D63: 3
A64: лук репчатый | C64: 7/6 | D64: 9/7
A65: соль | C65: 1 | D65: 1
A66: яйцо куриное | C66: 1 | D66: 1
A67: масло растительное | C67: 1 | D67: 1
A69: Хлеб ржано -пшеничный | C69: 30 | D69: 50 | E69: 1.91 | F69: 3.19 | G69: 0.24 | H69: 0.4 | I69: 12.43 | J69: 20.71 | K69: 52.61 | L69: 87.68 | M69: 0 | N69: 0
A71: Компот из сухофруктов | B71: 394 | C71: 120 | D71: 150 | E71: 0.03 | F71: 0.04 | I71: 11.32 | J71: 13.4 | K71: 45.42 | L71: 53.79 | M71: 0.024 | N71: 0.03
A72: Смесь компотная | C72: 12 | D72: 15
A73: сахарный песок | C73: 7 | D73: 9
A74: вода | C74: 124 | D74: 157
A76: Итого: | E76: =E71+E69+E59+E54+E43+E36 -> 16.69 | F76: 23.39 | G76: 13.72 | H76: 18.65 | I76: 72.2 | J76: 90.74 | K76: 501.99 | L76: 661.64 | M76: 28.724 | N76: 36.38
A78: Полдник
A79: Кисломолочный напиток | B79: 420 | C79: 200 | D79: 200 | E79: 5.2 | F79: 5.2 | G79: 5 | H79: 5 | I79: 8 | J79: 8 | K79: 88.2 | L79: 88.2 | M79: 0 | N79: 0
A80: Кондитерское изделие | C80: 25 | D80: 50 | E80: 0.64 | F80: 1.29 | G80: 0.56 | H80: 1.13 | I80: 13.24 | J80: 26.48 | K80: 69.26 | L80: 138.52 | M80: 0.13 | N80: 0.26
A81: Итого: | E81: =E80+E79 -> 5.84 | F81: 6.49 | G81: 5.56 | H81: 6.13 | I81: 21.24 | J81: 34.48 | K81: 157.46 | L81: 226.72 | M81: 0.13 | N81: 0.26
A82: Итого за 1 день: | E82: =E81+E76+E33+E28 -> 41.2 | F82: =F81+F76+F33+F28 -> 52.6 | G82: =G81+G76+G33+G28 -> 36.66 | H82: 46.47 | I82: =I81+I76+I33+I28 -> 159.56 | J82: 201.57 | K82: 1127.69 | L82: 1439.22 | M82: 34.104 | N82: 42.54

Sheet Меню раскладка 3 день
B1: Меню-раскладка 3 день
A3: Наименование блюда | B3: номер рецептуры по сборнику | C3: масса порций, в гр. | E3: Пищевая ценность | K3: Энергетическая ценность | M3: Витамин С
E4: белки | G4: жиры | I4: углеводы
A5: Завтрак | C5: 1-3 года | D5: 3-7 лет | E5: 1-3 года | F5: 3-7 лет | G5: 1-3 года | H5: 3-7 лет | I5: 1-3 года | J5: 3-7 лет | K5: 1-3 года | L5: 3-7 лет | M5: 1-3 года | N5: 3-7 лет
A6: каша манная молочная со сливочным маслом | B6: 199 | C6: 150/5/5 | D6: 180/7/7 | E6: 4.83 | F6: 5.8 | G6: 8.13 | H6: 10.46 | I6: 15.63 | J6: 21.27 | K6: 126.72 | L6: 185.85 | M6: 1.79 | N6: 2.14
A7: крупа манная | C7: 15 | D7: 18
A8: молоко 2,5% | C8: 125 | D8: 150
A9: сахарный песок | C9: 5 | D9: 7
A10: соль | C10: 1 | D10: 1
A11: масло сливочное 72,5% | C11: 5 | D11: 7
A12: Вода | C12: 18 | D12: 22
A14: Чай сладкий с молоком | B14: 413 | C14: 150 | D14: 200 | E14: 2.03 | F14: 2.71 | G14: 2.32 | H14: 3.1 | I14: 12.18 | J14: 16.24 | K14: 79.23 | L14: 105.65 | M14: 0.94 | N14: 1.26
A15: Чай заварка | C15: 0.4 | D15: 0.5
A16: Сахарный песок | C16: 9 | D16: 12
A17: вода | C17: 120 | D17: 160
A18: Молоко 2,5% | C18: 40 | D18: 54
A20: Бутерброд с повидлом | B20: 2 | C20: 60 | D20: 75 | E20: 2.47 | F20: 3.28 | G20: 3.5 | H20: 3.7 | I20: 24.29 | J20: 31.57 | K20: 128.12 | L20: 144.13 | M20: 0.07 | N20: 0.1
A21: батон | C21: 40 | D21: 50
A22: масло сливочное 72,5% | C22: 5 | D22: 5
A23: повидло | C23: 15 | D23: 20
A24: Итого: | E24: =E20+E14+E6 -> 9.33 | F24: =F20+F14+F6 -> 11.79 | G24: 13.95 | H24: 17.26 | I24: 52.1 | J24: 69.08 | K24: 334.07 | L24: 435.63 | M24: 2.8 | N24: 3.5
A26: 2-ой завтрак
A27: Сок | B27: 418 | C27: 150 | D27: 150 | E27: 0.75 | F27: 0.75 | G27: 0 | H27: 0 | I27: 8.99 | J27: 8.99 | K27: 61.56 | L27: 61.56 | M27: 3.24 | N27: 3.24
A28: Итого: | E28: =E27 -> 0.75 | F28: 0.75 | G28: 0 | H28: 0 | I28: 8.99 | J28: 8.99 | K28: 61.56 | L28: 61.56 | M28: 3.24 | N28: 3.24
A30: Обед
A31: Салат из моркови с изюмом | B31: 42 | C31: 40 | D31: 60 | E31: 0.5 | F31: 0.75 | G31: 4.03 | H31: 6.04 | I31: 4.8 | J31: 7.2 | K31: 57.59 | L31: 86.38 | M31: 1.95 | N31: 2.92
A32: Морковь свежая | C32: 43/32 | D32: 65/48
A33: Изюм | C33: 5/4 | D33: 7/6
A34: масло растительное | C34: 4 | D34: 6
A35: соль | C35: 1 | D35: 1
A36: сахарный песок | C36: 1 | D36: 2
A38: Щи из свежей капусты с картофелем со сметаной на мкб | B38: 73 | C38: 180/10/7 | D38: 200/12/8 | E38: 4.48 | F38: 6.14 | G38: 5.09 | H38: 7.08 | I38: 6.82 | J38: 7.53 | K38: 109 | L38: 140.9 | M38: 21.86 | N38: 24.21
A39: говядина на кости | C39: 22/16 | D39: 25/19
A40: капуста белокочанная | C40: 55/44 | D40: 61/49
A41: картофель | C41: 73/44 | D41: 81/49
A42: морковь свежая | C42: 11/9 | D42: 12/10
A43: лук репчатый | C43: 9/7 | D43: 10/8
A44: томатная паста | C44: 2 | D44: 2
A45: соль | C45: 1 | D45: 1
A46: масло растительное | C46: 2 | D46: 3
A47: вода | C47: 144 | D47: 160
A48: сметана 15% | C48: 7 | D48: 8
A50: Жаркое по домашнему из говядины | B50: 290 | C50: 160 | D50: 190 | E50: 15.36 | F50: 19.43 | G50: 8.58 | H50: 10.75 | I50: 20.1 | J50: 28.87 | K50: 257.6 | L50: 305.9 | M50: 23.92 | N50: 28.4
A51: Мясо говядины на кости | C51: 82/60 | D51: 90/66
A52: Картофель | C52: 122/73 | D52: 145/87
A53: Лук репчатый | C53: 11/9 | D53: 13/11
A54: Морковь свежая | C54: 20/17 | D54: 24/19
A55: Масло сливочное 72,5% | C55: 4 | D55: 5
A56: Томатная паста | C56: 3 | D56: 4
A57: Вода | C57: 76 | D57: 90
A58: Соль | C58: 1 | D58: 1
A60: Хлеб ржано -пшеничный | C60: 30 | D60: 50 | E60: 1.91 | F60: 3.19 | G60: 0.24 | H60: 0.4 | I60: 12.43 | J60: 20.71 | K60: 52.61 | L60: 87.68 | M60: 0 | N60: 0
A62: Компот из яблок и изюма | B62: 390 | C62: 120 | D62: 150 | E62: 0.17 | F62: 0.21 | G62: 0.05 | H62: 0.06 | I62: 15.13 | J62: 18.92 | K62: 51.7 | L62: 64.62 | M62: 1.76 | N62: 2.21
A63: Яблоки | C63: 14/11 | D63: 17/14
A64: Изюм | C64: 6 | D64: 8
A65: Сахарный песок | C65: 7 | D65: 9
A66: Вода | C66: 122 | D66: 152
A68: Итого: | E68: =E62+E60+E50+E38+E31 -> 22.42 | F68: 29.72 | G68: 17.99 | H68: 24.33 | I68: 59.28 | J68: 83.23 | K68: 528.5 | L68: 685.48 | M68: 49.49 | N68: 57.74
A70: Полдник
A71: Булочка домашняя | B71: 452 | C71: 60 | D71: 60 | E71: 4.86 | F71: 4.86 | G71: 5.3 | H71: 5.3 | I71: 36.8 | J71: 36.8 | K71: 188.32 | L71: 188.32 | M71: 0.15 | N71: 0.15
A72: Для теста: | B72: 436 | C72: 70 | D72: 70
A73: мука в/с | C73: 40 | D73: 40
A74: молоко 72,5% | C74: 12 | D74: 12
A75: вода | C75: 7 | D75: 7
A76: масло растительное | C76: 6 | D76: 6
A77: соль | C77: 1 | D77: 1
A78: дрожжи сухие | C78: 1 | D78: 1
A79: сахарный песок | C79: 6 | D79: 6
A80: яйцо куриное | C80: 2 | D80: 2
A82: мука в/с | C82: 2 | D82: 2
A83: масло растительное | C83: 1 | D83: 1
A85: Кисломолочный напиток | B85: 420 | C85: 150 | D85: 200 | E85: 3.9 | F85: 5.2 | G85: 3.37 | H85: 4.5 | I85: 5.67 | J85: 7.56 | K85: 65.9 | L85: 87.86 | M85: 0.4 | N85: 0.54
A87: Итого: | E87: =E85+E71 -> 8.76 | F87: 10.06 | G87: 8.67 | H87: 9.8 | I87: 42.47 | J87: 44.36 | K87: 254.22 | L87: 276.18 | M87: 0.55 | N87: 0.69
A89: Итого за 1 день: | E89: =E87+E68+E28+E24 -> 41.26 | F89: 52.32 | G89: 40.61 | H89: 51.39 | I89: 162.84 | J89: 205.66 | K89: 1178.35 | L89: 1458.85 | M89: 56.08 | N89: 65.17

Sheet Меню раскладка 4 день
B1: Меню - раскладка 4 день
A3: Наименование блюда | B3: номер рецептуры по сборнику | C3: масса порций, в гр. | E3: Пищевая ценность | K3: Энергетическая ценность | M3: Витамин С
E4: белки | G4: жиры | I4: углеводы
A5: Завтрак | C5: 1-3 года | D5: 3-7 лет | E5: 1-3 года | F5: 3-7 лет | G5: 1-3 года | H5: 3-7 лет | I5: 1-3 года | J5: 3-7 лет | K5: 1-3 года | L5: 3-7 лет | M5: 1-3 года | N5: 3-7 лет
A6: Суп молочный вермишелевый | B6: 100 | C6: 150 | D6: 180 | E6: 4.78 | F6: 5.73 | G6: 4.44 | H6: 5.72 | I6: 17.31 | J6: 20.78 | K6: 106.72 | L6: 129.69 | M6: 1.22 | N6: 1.46
A7: молоко 2,5% | C7: 125 | D7: 150
A8: макаронные изделия (вермишель) | C8: 16 | D8: 19
A9: вода | C9: 25 | D9: 30
A10: сахарный песок | C10: 2 | D10: 3
A11: соль | C11: 1 | D11: 1
A12: масло сливочное 72,5% | C12: 2 | D12: 3
A14: Какао с молоком | B14: 416 | C14: 150 | D14: 200 | E14: 3.06 | F14: 4.08 | G14: 2.96 | H14: 3.94 | I14: 12.47 | J14: 16.6 | K14: 87.6 | L14: 116.8 | M14: 1.07 | N14: 1.42
A15: какао | C15: 2 | D15: 2
A16: сахарный песок | C16: 9 | D16: 12
A17: молоко 2,5% | C17: 92 | D17: 122
A18: вода | C18: 65 | D18: 87
A20: Бутерброд с маслом | B20: 1 | C20: 40/10 | D20: 50/10 | E20: 2.91 | F20: 3.62 | G20: 5.88 | H20: 5.97 | I20: 17.43 | J20: 21.8 | K20: 143 | L20: 164.33 | M20: 0 | N20: 0
A21: батон | C21: 40 | D21: 50
A22: масло сливочное 72,5% | C22: 10 | D22: 10
A23: Итого: | E23: =E20+E14+E6 -> 10.75 | F23: =F20+F14+F6 -> 13.43 | G23: 13.28 | H23: 15.63 | I23: 47.21 | J23: 59.18 | K23: 337.32 | L23: 410.82 | M23: 2.29 | N23: 2.88
A25: 2-ой завтрак
A26: Кисломолочный продукт | B26: 420 | C26: 120 | D26: 150 | E26: 3.12 | F26: 3.9 | G26: 3 | H26: 3.75 | I26: 4.8 | J26: 6 | K26: 52.92 | L26: 66.15 | M26: 0 | N26: 0
A27: Фрукт | C27: 85 | D27: 85 | E27: 0.72 | F27: 0.72 | G27: 0.2 | H27: 0.2 | I27: 6.48 | J27: 6.48 | K27: 34.4 | L27: 34.4 | M27: 48 | N27: 48
A28: Итого: | E28: =E26+E27 -> 3.84 | F28: =F26+F27 -> 4.62 | G28: 3.2 | H28: 3.95 | I28: 11.28 | J28: 12.48 | K28: 87.32 | L28: 100.55 | M28: 48 | N28: 48
A30: Обед
A31: Салат из отварной свеклы | B31: 34 | C31: 40 | D31: 60 | E31: 0.57 | F31: 0.87 | G31: 2.43 | H31: 4.05 | I31: 3.49 | J31: 5.27 | K31: 38.2 | L31: 61.07 | M31: 3.8 | N31: 5.8
A32: Свекла | C32: 49/39 | D32: 73/58
A33: масло растительное | C33: 4 | D33: 6
A35: Суп с клецками на мкб со сметаной | B35: 91 | C35: 180/10/7 | D35: 200/12/8 | E35: 5.36 | F35: 7.55 | G35: 6.66 | H35: 8.55 | I35: 16.79 | J35: 18.57 | K35: 124.36 | L35: 174.21 | M35: 9.57 | N35: 11.09
A36: мясо говядины на кости | C36: 22/16 | D36: 25/19
A37: картофель | C37: 100/60 | D37: 111/67
A38: морковь | C38: 9/7 | D38: 10/8
A39: лук репчатый | C39: 9/8 | D39: 10/9
A40: масло растительное | C40: 2 | D40: 3
A41: вода | C41: 135 | D41: 150
A42: соль | C42: 1 | D42: 1
A43: сметана 15% | C43: 7 | D43: 8
A44: Клецки | B44: 128 | C44: 18 | D44: 20
A45: яйцо куриное | C45: 1.5 | D45: 2
A46: масло сливочное 72,5% | C46: 1 | D46: 1
A47: вода | C47: 8 | D47: 9
A48: мука в/с | C48: 5 | D48: 6
A50: Запеканка рыбная с рисом | C50: 120 | D50: 150 | E50: 6.95 | F50: 8.82 | G50: 7.6 | H50: 9.5 | I50: 20.49 | J50: 22.61 | K50: 188.5 | L50: 235.62 | M50: 17.74 | N50: 22.1
A51: минтай св\мор | C51: 97/83 | D51: 121/103
A52: рисовая крупа | C52: 14 | D52: 18
A53: лук репчатый | C53: 16/13 | D53: 20/16
A54: яйцо куриное | C54: 3 | D54: 4
A55: мука в/с | C55: 4 | D55: 5
A56: молоко 2,5% | C56: 10 | D56: 12
A57: масло сливочное 72,5% | C57: 5 | D57: 6
A58: соль | C58: 1 | D58: 1
A60: Хлеб ржано -пшеничный | C60: 30 | D60: 50 | E60: 1.91 | F60: 3.19 | G60: 0.24 | H60: 0.4 | I60: 12.43 | J60: 20.71 | K60: 52.61 | L60: 87.68 | M60: 0 | N60: 0
A62: Кисель | C62: 120 | D62: 150 | E62: 0 | F62: 0 | G62: 0 | H62: 0 | I62: 19.44 | J62: 21.77 | K62: 71.28 | L62: 87.48 | M62: 0 | N62: 0
A63: Кисель концентрат | C63: 14 | D63: 18
A64: сахарный песок | C64: 8 | D64: 10
A65: вода | C65: 120 | D65: 150
A67: Итого: | E67: =E62+E60+E50+E35+E31 -> 14.79 | F67: 20.43 | G67: 16.93 | H67: 22.5 | I67: 72.64 | J67: 88.93 | K67: 474.95 | L67: 646.06 | M67: 31.11 | N67: 38.99
A69: Полдник
A70: Оладьи со сгущенным молоком | B70: 432 | C70: 80/10 | D70: 120/10 | E70: 5.4 | F70: 8.1 | G70: 4.95 | H70: 7.43 | I70: 32.26 | J70: 48.4 | K70: 200.48 | L70: 289.58 | M70: 0.44 | N70: 0.66
A71: Тесто: | C71: 95 | D71: 141
A72: мука пшеничная в/с | C72: 45 | D72: 68
A73: яйцо куриное | C73: 3 | D73: 4
A74: молоко 2,5% | C74: 39 | D74: 58
A75: дрожжи сухие | C75: 1 | D75: 1
A76: сахарный песок | C76: 1 | D76: 1
A77: соль | C77: 1 | D77: 1
A78: сгущенное молоко | C78: 10 | D78: 10
A79: масло растительное | C79: 4 | D79: 6
A81: Чай без сахара | B81: 411 | C81: 150 | D81: 200 | E81: 0.01 | F81: 0.01 | G81: 0 | H81: 0 | I81: 0.02 | J81: 0.03 | K81: 0.06 | L81: 0.09 | M81: 0.04 | N81: 0.05
A82: Чай заварка (сухая) | C82: 0.5 | D82: 0.7
A83: вода | C83: 157 | D83: 210
A85: Итого: | E85: =E81+E70 -> 5.41 | F85: =F81+F70 -> 8.11 | G85: 4.95 | H85: 7.43 | I85: 32.28 | J85: 48.43 | K85: 200.54 | L85: 289.67 | M85: 0.48 | N85: 0.71
A86: Итого на 1 день: | E86: =E85+E67+E28+E23 -> 34.79 | F86: 46.59 | G86: 38.36 | H86: 49.51 | I86: 163.02 | J86: 208.89 | K86: 1100.13 | L86: 1447.1 | M86: 81.88 | N86: 90.58

Sheet Меню раскладка 5 день
B1: Меню раскладка 5 день:
A3: Наименование блюда | B3: номер рецептуры по сборнику | C3: масса порций, в гр. | E3: Пищевая ценность | K3: Энергетическая ценность | M3: Витамин С
E4: белки | G4: жиры | I4: углеводы
A5: Завтрак | C5: 1-3 года | D5: 3-7 лет | E5: 1-3 года | F5: 3-7 лет | G5: 1-3 года | H5: 3-7 лет | I5: 1-3 года | J5: 3-7 лет | K5: 1-3 года | L5: 3-7 лет | M5: 1-3 года | N5: 3-7 лет
A6: Омлет натуральный со сливочным маслом | B6: 229 | C6: 120/5 | D6: 150/5 | E6: 6.15 | F6: 7.68 | G6: 7.6 | H6: 9.5 | I6: 15.42 | J6: 19.27 | K6: 146.7 | L6: 184.5 | M6: 0.88 | N6: 1.1
A7: яйцо куриное | C7: 65 | D7: 80
A8: молоко 2,5% | C8: 68 | D8: 85
A9: масло сливочное 72,5% | C9: 6 | D9: 8
A10: соль | C10: 1 | D10: 1
A12: Кофейный напиток с молоком | B12: 414 | C12: 180 | D12: 200 | E12: 2.52 | F12: 2.8 | G12: 2.59 | H12: 2.87 | I12: 13.68 | J12: 15.2 | K12: 87.14 | L12: 96.82 | M12: 1.17 | N12: 1.75
A13: кофейный напиток | C13: 2 | D13: 3
A14: сахарный песок | C14: 11 | D14: 12
A15: молоко 2,5% | C15: 90 | D15: 100
A16: вода | C16: 108 | D16: 120
A18: Бутерброд с маслом и сыром | B18: 3 | C18: 55 | D18: 70 | E18: 5.8 | F18: 7.89 | G18: 6.67 | H18: 8.1 | I18: 19.65 | J18: 24.64 | K18: 143.62 | L18: 182.71 | M18: 0.02 | N18: 0.04
A19: батон | C19: 40 | D19: 50 | E19: 8 | F19: 7.89
A20: масло сливочное 72,5% | C20: 5 | D20: 5
A21: сыр твердый | C21: 10 | D21: 15
A22: Итого: | E22: =E18+E12+E6 -> 14.47 | F22: =F18+F12+F6 -> 18.37 | G22: 16.86 | H22: 20.47 | I22: 48.75 | J22: 59.11 | K22: 377.46 | L22: 464.03 | M22: 2.07 | N22: 2.89
A24: 2-ой завтрак
A25: Кисломолочный напиток | B25: 420 | C25: 120 | D25: 150 | E25: 3.12 | F25: 3.9 | G25: 3 | H25: 3.75 | I25: 4.8 | J25: 6 | K25: 52.92 | L25: 66.15 | M25: 0 | N25: 0
A26: Фрукт | C26: 85 | D26: 85 | E26: 1.44 | F26: 1.44 | G26: 0.17 | H26: 0.17 | I26: 6.88 | J26: 6.88 | K26: 32.13 | L26: 32.13 | M26: 51 | N26: 51
A27: Итого: | E27: =E26+E25 -> 4.56 | F27: 5.34 | G27: 3.17 | H27: 3.92 | I27: 11.68 | J27: 12.88 | K27: 85.05 | L27: 98.28 | M27: 51 | N27: 51
A29: Обед
A30: Салат" Витаминный" | B30: 21 | C30: 40 | D30: 60 | E30: 0.57 | F30: 0.86 | G30: 1.81 | H30: 2.74 | I30: 3.86 | J30: 5.23 | K30: 37.54 | L30: 49.18 | M30: 13.21 | N30: 19.8
A31: Капуста свежая | C31: 22/18 | D31: 35/28
A32: Морковь | C32: 8/6 | D32: 10/8
A33: Яблоки свежие | C33: 12/10 | D33: 18/15
A34: Сахарный песок | C34: 2 | D34: 3
A35: Масло растительное | C35: 4 | D35: 6
A36: соль | C36: 1 | D36: 1
A38: Суп картофельный с бобовыми (гороховый) на мкб | B38: 87 | C38: 180/10 | D38: 200/12 | E38: 5.48 | F38: 6.11 | G38: 4.87 | H38: 8.24 | I38: 11.87 | J38: 17.1 | K38: 117.31 | L38: 130.89 | M38: 6.8 | N38: 9.1
A39: мясо говядины на кости | C39: 22/16 | D39: 25/19
A40: горох | C40: 14 | D40: 15
A41: картофель | C41: 100/60 | D41: 111/67
A42: лук репчатый | C42: 8/6 | D42: 9/7
A43: морковь | C43: 9/7 | D43: 10/8
A44: масло растительное | C44: 2 | D44: 3
A45: вода | C45: 130 | D45: 145
A46: соль | C46: 1 | D46: 1
A48: Каша гречневая со сливочным маслом | B48: 330 | C48: 100 | D48: 130 | E48: 4.45 | F48: 5.85 | G48: 4.78 | H48: 6.59 | I48: 25.8 | J48: 33.54 | K48: 148 | L48: 197.37 | M48: 0 | N48: 0
A49: Гречневая крупа | C49: 35 | D49: 46
A50: Соль | C50: 1 | D50: 1
A51: масло сливочное 72,5% | C51: 5 | D51: 7
A53: Гуляш из говядины | B53: 293 | C53: 35/35 | D53: 40/40 | E53: 5.96 | F53: 6.92 | G53: 5 | H53: 5.71 | I53: 14.77 | J53: 16.88 | K53: 157.3 | L53: 187.56 | M53: 1.19 | N53: 1
A54: мясо говядины на кости | C54: 77/57 | D54: 88/65
A55: морковь | C55: 14/12 | D55: 16/14
A56: лук репчатый | C56: 7/5 | D56: 12/10
A57: масло сливочное 72,5% | C57: 3 | D57: 4
A58: томатная паста | C58: 2 | D58: 3
A59: мука в/с | C59: 2 | D59: 3
A60: соль | C60: 1 | D60: 1
A61: вода | C61: 23 | D61: 26
A63: Хлеб ржано -пшеничный | C63: 30 | D63: 50 | E63: 1.91 | F63: 3.19 | G63: 0.24 | H63: 0.4 | I63: 12.43 | J63: 20.71 | K63: 52.61 | L63: 87.68 | M63: 0 | N63: 0
A65: Компот из сухофруктов | B65: 394 | C65: 120 | D65: 150 | E65: 0.03 | F65: 0.04 | I65: 11.32 | J65: 13.4 | K65: 45.42 | L65: 53.79 | M65: 0.024 | N65: 0.03
A66: Смесь компотная | C66: 12 | D66: 15
A67: сахарный песок | C67: 7 | D67: 9
A68: вода | C68: 124 | D68: 157
A69: Итого: | E69: =E65+E63+E53+E48+E38+E30 -> 18.4 | F69: =F65+F63+F53+F48+F38+F30 -> 22.97 | G69: 16.7 | H69: 23.68 | I69: 80.05 | J69: 106.86 | K69: 558.18 | L69: 706.47 | M69: 21.224 | N69: 29.93
A71: Полдник
A72: Сырники из творога | B72: 245 | C72: 50/10 | D72: 80/20 | E72: 4.2 | F72: 6.72 | G72: 2.33 | H72: 2.73 | I72: 8.93 | J72: 14.28 | K72: 74.7 | L72: 122.3 | M72: 0.22 | N72: 0.36
A73: Творог 5% | C73: 51/50 | D73: 82/80
A74: Мука в/с | C74: 6 | D74: 10
A75: Сахарный песок | C75: 5 | D75: 8
A76: Соль | C76: 1 | D76: 1
A77: Яйцо куриное | C77: 2 | D77: 3
A78: молоко сгущенное | C78: 10 | D78: 20
A79: масло растительное | C79: 2 | D79: 4
A81: Чай с сахаром | B81: 411 | C81: 150/9 | D81: 200/12 | E81: 0.11 | F81: 0.15 | G81: 0.03 | H81: 0.04 | I81: 9.1 | J81: 12.13 | K81: 41.37 | L81: 55.16 | M81: 0.075 | N81: 0.1
A82: Чай заварка (сухая) | C82: 0.5 | D82: 0.7
A83: Сахарный песок | C83: 9 | D83: 12
A84: вода | C84: 157 | D84: 210
A85: Итого: | E85: =E81+E72 -> 4.31 | F85: 6.87 | G85: 2.36 | H85: 2.77 | I85: 18.03 | J85: 26.41 | K85: 116.07 | L85: 177.46 | M85: 0.295 | N85: 0.46
A86: Итого за 1 день: | E86: =E85+E69+E27+E22 -> 41.74 | F86: 53.55 | G86: 39.09 | H86: 50.84 | I86: 158.51 | J86: 205.26 | K86: 1136.76 | L86: 1446.24 | M86: 74.589 | N86: 84.28

Sheet Меню раскладка 6 день
B1: Меню раскладка 6 день:
A3: Наименование блюда | B3: номер рецептуры по сборнику | C3: масса порций, в гр. | E3: Пищевая ценность | K3: Энергетическая ценность | M3: Витамин С
E4: белки | G4: жиры | I4: углеводы
A5: Завтрак | C5: 1-3 года | D5: 3-7 лет | E5: 1-3 года | F5: 3-7 лет | G5: 1-3 года | H5: 3-7 лет | I5: 1-3 года | J5: 3-7 лет | K5: 1-3 года | L5: 3-7 лет | M5: 1-3 года | N5: 3-7 лет
A6: Каша молочная пшенная со сливочным маслом | B6: 199 | C6: 150/5/5 | D6: 180/7/7 | E6: 5.49 | F6: 5.8 | G6: 8.52 | H6: 9.99 | I6: 16.62 | J6: 18.34 | K6: 188.7 | L6: 202.44 | M6: 1.52 | N6: 1.75
A7: Крупа пшенная | C7: 19 | D7: 22
A8: молоко 2,5% | C8: 125 | D8: 150
A9: вода | C9: 18 | D9: 22
A10: сахарный песок | C10: 5 | D10: 7
A11: соль | C11: 1 | D11: 1
A12: масло сливочное 72,5% | C12: 5 | D12: 7
A14: Чай сладкий с молоком | B14: 413 | C14: 150 | D14: 200 | E14: 2.03 | F14: 2.71 | G14: 2.32 | H14: 3.1 | I14: 12.18 | J14: 16.24 | K14: 79.23 | L14: 105.65 | M14: 0.94 | N14: 1.26
A15: Чай заварка | C15: 0.4 | D15: 0.5
A16: Сахарный песок | C16: 9 | D16: 12
A17: вода | C17: 120 | D17: 160
A18: Молоко 2,5% | C18: 40 | D18: 54
A20: Батан нарезной | C20: 40 | D20: 50 | E20: 3 | F20: 4.5 | G20: 1.2 | H20: 1.7 | I20: 20.6 | J20: 30.8 | K20: 104.8 | L20: 157.2 | M20: 1.2 | N20: 1.5
A21: батон | C21: 40 | D21: 50
A23: Яйцо отварное | B23: 227 | C23: 40 | D23: 40 | E23: 4.41 | F23: 4.41 | G23: 2.72 | H23: 2.72 | I23: 0.22 | J23: 0.22 | K23: 40.6 | L23: 40.6 | M23: 0 | N23: 0
A24: Итого: | E24: =E23+E20+E14+E6 -> 14.93 | F24: =F23+F20+F14+F6 -> 17.42 | G24: 14.76 | H24: 17.51 | I24: =I23+I14+I6 -> 29.02 | J24: =J23+J14+J6 -> 34.8 | K24: 308.53 | L24: 348.69 | M24: 3.66 | N24: 4.51
A26: 2-ой завтрак
A27: Кисломолочный напиток | B27: 420 | C27: 120 | D27: 150 | E27: 3.12 | F27: 3.9 | G27: 3 | H27: 3.75 | I27: 4.8 | J27: 6 | K27: 52.92 | L27: 66.15 | M27: 0 | N27: 0
A28: Фрукт | C28: 85 | D28: 85 | E28: 1.44 | F28: 1.44 | G28: 0.17 | H28: 0.17 | I28: 6.88 | J28: 6.88 | K28: 32.13 | L28: 32.13 | M28: 51 | N28: 51
A29: Итого: | E29: =E28+E27 -> 4.56 | F29: 5.34 | G29: 3.17 | H29: 3.92 | I29: 11.68 | J29: 12.88 | K29: 85.05 | L29: 98.28 | M29: 51 | N29: 51
A31: Обед
A32: Свекла отварная | B32: 21 | C32: 40 | D32: 60 | E32: 0.58 | F32: 0.87 | G32: 2.69 | H32: 4.04 | I32: 3.51 | J32: 5.27 | K32: 40.71 | L32: 61.07 | M32: 3.86 | N32: 5.8
A33: Свекла | C33: 49/39 | D33: 73/58
A34: Масло растительное | C34: 3 | D34: 4
A36: Суп картофельный с макаронными изделиями на мкб со сметаной | B36: 88 | C36: 180/10/7 | D36: 200/12/8 | E36: 6.35 | F36: 8.02 | G36: 7.25 | H36: 9.62 | I36: 13.5 | J36: 17.9 | K36: 152.63 | L36: 190.4 | M36: 12.81 | N36: 14.39
A37: Мясо говядины на кости | C37: 22/16 | D37: 25/19
A38: картофель | C38: 100/60 | D38: 111/67
A39: лук репчатый | C39: 4/3 | D39: 5/4
A40: морковь свежая | C40: 9/7 | D40: 10/8
A41: масло растительное | C41: 2 | D41: 3
A42: вода | C42: 126 | D42: 140
A43: соль | C43: 1 | D43: 1
A44: вермишель | C44: 9 | D44: 14
A45: Сметана 15% | C45: 7 | D45: 8
A47: Картофель, тушеный в соусе | B47: 144 | C47: 100 | D47: 150 | E47: 1.95 | F47: 3.05 | G47: 5.49 | H47: 9.01 | I47: 17.7 | J47: 26.55 | K47: 120.93 | L47: 190 | M47: 17.5 | N47: 27.54
A48: картофель | C48: 153/92 | D48: 230/138
A49: морковь | C49: 7/5 | D49: 10/8
A50: лук репчатый | C50: 6/5 | D50: 8/7
A51: масло сливочное 72,5% | C51: 5 | D51: 8
A52: Для сметанного соуса: | B52: 372
A53: мука пшеничная в/с | C53: 1 | D53: 1
A54: сметана 15% | C54: 5 | D54: 7.5
A55: соль | C55: 1 | D55: 1
A56: вода | C56: 15 | D56: 22
A58: Тефтели мясные | B58: 304 | C58: 60 | D58: 75 | E58: 5.47 | F58: 6.84 | G58: 4.6 | H58: 5.76 | I58: 14.5 | J58: 18.13 | K58: 142.14 | L58: 177.68 | M58: 1.09 | N58: 1.37
A59: мясо говядины | C59: 52/38 | D59: 65/48
A60: крупа рисовая | C60: 5/15 | D60: 6/18
A61: вода | C61: 6 | D61: 8
A62: лук репчатый | C62: 13/11 | D62: 16/14
A63: мука в/с | C63: 4 | D63: 5
A64: соль | C64: 1 | D64: 1
A65: яйцо куриное | C65: 1 | D65: 1
A66: масло растительное | C66: 1 | D66: 1
A68: Хлеб ржано -пшеничный | C68: 30 | D68: 50 | E68: 1.91 | F68: 3.19 | G68: 0.24 | H68: 0.4 | I68: 12.43 | J68: 20.71 | K68: 52.61 | L68: 87.68 | M68: 0 | N68: 0
A70: Компот из изюма | B70: 394 | C70: 120 | D70: 150 | E70: 0.19 | F70: 0.23 | G70: 0 | H70: 0 | I70: 16.11 | J70: 20.14 | K70: 65.21 | L70: 81.51 | M70: 0.024 | N70: 0.03
A71: Изюм | C71: 11 | D71: 14
A72: сахарный песок | C72: 9 | D72: 12
A73: вода | C73: 124 | D73: 157
A74: Итого: | E74: =E70+E68+E58+E47+E36+E32 -> 16.45 | F74: 22.2 | G74: 20.27 | H74: 28.83 | I74: 77.75 | J74: 108.7 | K74: 574.23 | L74: 788.34 | M74: 35.284 | N74: 49.13
A76: Полдник
A77: Кондитерское изделие | C77: 25 | D77: 50 | E77: 0.64 | F77: 1.29 | G77: 0.56 | H77: 1.13 | I77: 13.24 | J77: 26.48 | K77: 69.26 | L77: 138.52 | M77: 0.13 | N77: 0.26
A79: Кисель | C79: 200 | D79: 200 | E79: 0 | F79: 0 | G79: 0 | H79: 0 | I79: 27.02 | J79: 27.02 | K79: 106.64 | L79: 106.64 | M79: 0 | N79: 0
A80: Кисель концентрат | C80: 24 | D80: 24
A81: сахарный песок | C81: 15 | D81: 15
A82: вода | C82: 203 | D82: 203
A83: Итого: | E83: =E79+E77 -> 0.64 | F83: =F79+F77 -> 1.29 | G83: =G79+G77 -> 0.56 | H83: =H79+H77 -> 1.13 | I83: =I79+I77 -> 40.26 | J83: 52.5 | K83: =K79+K77 -> 175.9 | L83: =L79+L77 -> 245.16 | M83: =M79+M77 -> 0.13 | N83: =N79+N77 -> 0.26
A84: Итого за 1 день: | E84: =E83+E74+E29+E24 -> 36.58 | F84: 46.25 | G84: 38.76 | H84: 51.39 | I84: 158.71 | J84: 208.88 | K84: 1143.71 | L84: 1480.47 | M84: 90.074 | N84: 104.9

Sheet Меню раскладка 7 день
B1: Меню раскладка 7 день
A3: Наименование блюда | B3: номер рецептуры по сборнику | C3: масса порций, в гр. | E3: Пищевая ценность | K3: Энергетическая ценность | M3: Витамин С
E4: белки | G4: жиры | I4: углеводы
A5: Завтрак | C5: 1-3 года | D5: 3-7 лет | E5: 1-3 года | F5: 3-7 лет | G5: 1-3 года | H5: 3-7 лет | I5: 1-3 года | J5: 3-7 лет | K5: 1-3 года | L5: 3-7 лет | M5: 1-3 года | N5: 3-7 лет
A6: Каша молочная геркулесовая со сливочным маслом | B6: 199 | C6: 150/5/5 | D6: 180/7/7 | E6: 5.49 | F6: 5.8 | G6: 8.52 | H6: 9.99 | I6: 20.62 | J6: 26.14 | K6: 192.33 | L6: 222.44 | M6: 1.52 | N6: 1.75
A7: Овсяные хлопья "геркулес" | C7: 19 | D7: 22
A8: молоко 2,5% | C8: 125 | D8: 150
A9: вода | C9: 18 | D9: 22
A10: сахарный песок | C10: 5 | D10: 7
A11: соль | C11: 1 | D11: 1
A12: масло сливочное 72,5% | C12: 5 | D12: 7
A14: Чай сладкий с молоком | B14: 413 | C14: 150 | D14: 200 | E14: 2.03 | F14: 2.71 | G14: 2.32 | H14: 3.1 | I14: 12.18 | J14: 16.24 | K14: 79.23 | L14: 105.65 | M14: 0.94 | N14: 1.26
A15: Чай заварка | C15: 0.4 | D15: 0.5
A16: Сахарный песок | C16: 9 | D16: 12
A17: вода | C17: 120 | D17: 160
A18: Молоко 2,5% | C18: 40 | D18: 54
A20: Бутерброд с повидлом | B20: 2 | C20: 60 | D20: 75 | E20: 2.47 | F20: 3.28 | G20: 3.5 | H20: 3.7 | I20: 24.29 | J20: 31.57 | K20: 128.12 | L20: 144.13 | M20: 0.07 | N20: 0.1
A21: батон | C21: 40 | D21: 50
A22: масло сливочное 72,5% | C22: 5 | D22: 5
A23: повидло | C23: 15 | D23: 20
A24: Итого: | E24: =E20+E14+E6 -> 9.99 | F24: =F20+F14+F6 -> 11.79 | G24: 14.34 | H24: 16.79 | I24: 57.09 | J24: 73.95 | K24: 399.68 | L24: 472.22 | M24: 2.53 | N24: 3.11
A26: 2-ой завтрак
A27: Сок | B27: 418 | C27: 150 | D27: 150 | E27: 0.75 | F27: 0.75 | G27: 0 | H27: 0 | I27: 8.99 | J27: 8.99 | K27: 61.56 | L27: 61.56 | M27: 3.24 | N27: 3.24
A28: Фрукт | C28: 85 | D28: 85 | E28: 0.72 | F28: 0.72 | G28: 0.2 | H28: 0.2 | I28: 6.48 | J28: 6.48 | K28: 34.4 | L28: 34.4 | M28: 48 | N28: 48
A29: Итого: | E29: =E27+E28 -> 1.47 | F29: =F27+F28 -> 1.47 | G29: 0.2 | H29: 0.2 | I29: 15.47 | J29: 15.47 | K29: 95.96 | L29: 95.96 | M29: 51.24 | N29: 51.24
A31: Обед
A32: Салат из моркови | B32: 42 | C32: 40 | D32: 60 | E32: 0.5 | F32: 0.75 | G32: 4.03 | H32: 6.04 | I32: 4.8 | J32: 7.2 | K32: 57.59 | L32: 86.38 | M32: 1.95 | N32: 2.92
A33: Морковь свежая | C33: 48/38 | D33: 73/54
A34: масло растительное | C34: 4 | D34: 6
A35: соль | C35: 1 | D35: 1
A36: сахарный песок | C36: 1 | D36: 3
A38: Борщ с капустой и картофелем со сметаной на мкб | B38: 63 | C38: 180/10/7 | D38: 200/12/8 | E38: 4.69 | F38: 5.23 | G38: 4.51 | H38: 5.03 | I38: 7.17 | J38: 10.58 | K38: 117.34 | L38: 136.82 | M38: 11.22 | N38: 14.3
A39: говядина на кости | C39: 22/16 | D39: 25/19
A40: свекла | C40: 40/29 | D40: 44/32
A41: капуста белокочанная | C41: 34/28 | D41: 36/30
A42: картофель | C42: 53/32 | D42: 61/37
A43: морковь свежая | C43: 12/9 | D43: 14/11
A44: лук репчатый | C44: 8/7 | D44: 9/8
A45: томатная паста | C45: 6 | D45: 7
A46: сахарный песок | C46: 2 | D46: 2
A47: соль | C47: 1 | D47: 1
A48: масло растительное | C48: 2 | D48: 3
A49: вода | C49: 144 | D49: 160
A50: сметана 15% | C50: 7 | D50: 8
A52: Рыба, запеченная в омлете | B52: 263 | C52: 120 | D52: 150 | E52: 13.72 | F52: 17.15 | G52: 7.52 | H52: 9.4 | I52: 8.58 | J52: 11.72 | K52: 152.96 | L52: 191.2 | M52: 1.65 | N52: 2.06
A53: минтай св\мор | C53: 97/83 | D53: 121/103
A54: мука в/с | C54: 4 | D54: 5
A55: яйцо куриное | C55: 30 | D55: 38
A56: молоко 2,5% | C56: 12 | D56: 15
A57: масло сливочное 72,5% | C57: 4 | D57: 5
A58: соль | C58: 1 | D58: 1
A60: Хлеб ржано -пшеничный | C60: 30 | D60: 50 | E60: 1.91 | F60: 3.19 | G60: 0.24 | H60: 0.4 | I60: 12.43 | J60: 20.71 | K60: 52.61 | L60: 87.68 | M60: 0 | N60: 0
A62: Компот из яблок и изюма | B62: 390 | C62: 120 | D62: 150 | E62: 0.17 | F62: 0.21 | G62: 0.05 | H62: 0.06 | I62: 15.13 | J62: 18.92 | K62: 51.7 | L62: 64.62 | M62: 1.76 | N62: 2.21
A63: Яблоки | C63: 14/11 | D63: 17/14
A64: Изюм | C64: 6 | D64: 8
A65: Сахарный песок | C65: 7 | D65: 9
A66: Вода | C66: 122 | D66: 152
A67: Итого: | E67: =E62+E60+E52+E38+E32 -> 20.99 | F67: 26.53 | G67: 16.35 | H67: 20.93 | I67: 48.11 | J67: 69.13 | K67: 432.2 | L67: 566.7 | M67: 16.58 | N67: 21.49
A69: Полдник
A70: Слойка с сахаром | B70: 441 | C70: 60 | D70: 60 | E70: 4.86 | F70: 4.86 | G70: 7.3 | H70: 7.3 | I70: 38.8 | J70: 38.8 | K70: 202.5 | L70: 202.5 | M70: 0.15 | N70: 0.15
A71: Для теста: | B71: 436 | C71: 60 | D71: 60
A72: мука в/с | C72: 39 | D72: 39
A73: молоко 2,5% | C73: 13 | D73: 13
A74: вода | C74: 6 | D74: 6
A75: масло растительное | C75: 4 | D75: 4
A76: соль | C76: 1 | D76: 1
A77: дрожжи сухие | C77: 1 | D77: 1
A78: сахарный песок | C78: 1 | D78: 1
A79: яйцо куриное | C79: 2 | D79: 2
A81: сахарный песок | C81: 5 | D81: 5
A82: Масло растительное | C82: 2 | D82: 2
A84: мука в/с | C84: 2 | D84: 2
A85: масло растительное | C85: 1 | D85: 1
A87: Кисломолочный напиток | B87: 420 | C87: 150 | D87: 200 | E87: 3.9 | F87: 5.2 | G87: 3.37 | H87: 4.5 | I87: 5.67 | J87: 7.56 | K87: 65.9 | L87: 87.86 | M87: 0.4 | N87: 0.54
A88: Итого: | E88: =E87+E70 -> 8.76 | F88: =F87+F70 -> 10.06 | G88: 10.67 | H88: 11.8 | I88: 44.47 | J88: 46.36 | K88: 268.4 | L88: 290.36 | M88: 0.55 | N88: 0.69
A90: Итого за 1 день: | E90: =E88+E67+E29+E24 -> 41.21 | F90: 49.85 | G90: 41.56 | H90: 49.72 | I90: 165.14 | J90: 204.91 | K90: 1196.24 | L90: 1425.24 | M90: 70.9 | N90: 76.53

Sheet Меню раскладка 8 день
B1: Меню-раскладка 8 день
A3: Наименование блюда | B3: номер рецептуры по сборнику | C3: масса порций, в гр. | E3: Пищевая ценность | K3: Энергетическая ценность | M3: Витамин С
E4: белки | G4: жиры | I4: углеводы
A5: Завтрак | C5: 1-3 года | D5: 3-7 лет | E5: 1-3 года | F5: 3-7 лет | G5: 1-3 года | H5: 3-7 лет | I5: 1-3 года | J5: 3-7 лет | K5: 1-3 года | L5: 3-7 лет | M5: 1-3 года | N5: 3-7 лет
A6: Запеканка творожная с изюмом и со сгущенкой | B6: 251 | C6: 100/20 | D6: 120/20 | E6: 8.4 | F6: 10.08 | G6: 6 | H6: 6.5 | I6: 17.62 | J6: 19.02 | K6: 154.15 | L6: 188 | M6: 0.72 | N6: 0.77
A7: творог 5% | C7: 92 | D7: 110
A8: манная крупа | C8: 6 | D8: 7
A9: молоко 2,5% | C9: 25 | D9: 30
A10: сметана 15% | C10: 5 | D10: 6
A11: яйцо куриное | C11: 5 | D11: 6
A12: сахарный песок | C12: 9 | D12: 11
A13: масло сливочное 72,5% | C13: 5 | D13: 6
A14: изюм | C14: 7 | D14: 8
A15: молоко сгущенное | C15: 20 | D15: 20
A16: сухари | C16: 5 | D16: 6
A18: Какао с молоком | B18: 416 | C18: 150 | D18: 200 | E18: 3.06 | F18: 4.08 | G18: 2.96 | H18: 3.94 | I18: 12.47 | J18: 16.6 | K18: 87.6 | L18: 116.8 | M18: 1.07 | N18: 1.42
A19: какао | C19: 2 | D19: 2
A20: сахарный песок | C20: 9 | D20: 12
A21: молоко 2,5% | C21: 92 | D21: 122
A22: вода | C22: 65 | D22: 87
A24: Бутерброд с маслом | B24: 1 | C24: 40/10 | D24: 50/10 | E24: 2.91 | F24: 3.62 | G24: 5.88 | H24: 5.97 | I24: 17.43 | J24: 21.8 | K24: 143 | L24: 164.33 | M24: 0 | N24: 0
A25: батон | C25: 40 | D25: 50
A26: масло сливочное 72,5% | C26: 10 | D26: 10
A28: Яйцо отварное | B28: 227 | C28: 40 | D28: 40 | E28: 4.41 | F28: 4.41 | G28: 2.72 | H28: 2.72 | I28: 0.22 | J28: 0.22 | K28: 40.6 | L28: 40.6 | M28: 0 | N28: 0
A29: Итого: | E29: =E24+E18+E6+E28 -> 18.78 | F29: 22.19 | G29: 17.56 | H29: 19.13 | I29: 47.74 | J29: 57.64 | K29: 425.35 | L29: 509.73 | M29: 1.79 | N29: 2.19
A31: 2-ой завтрак
A32: Кисель | B32: 359 | C32: 120 | D32: 150 | E32: 0 | F32: 0 | G32: 0 | H32: 0 | I32: 19.44 | J32: 21.77 | K32: 71.28 | L32: 87.48 | M32: 0 | N32: 0
A33: Кисель концентрат | C33: 14 | D33: 18
A34: сахарный песок | C34: 8 | D34: 10
A35: вода | C35: 120 | D35: 150
A37: Итого: | E37: =E36+E32 -> 0 | F37: 0 | G37: 0 | H37: 0 | I37: 19.44 | J37: 21.77 | K37: 71.28 | L37: 87.48 | M37: 0 | N37: 0
A38: Обед
A39: Салат" Витаминный" | B39: 21 | C39: 40 | D39: 60 | E39: 0.57 | F39: 0.86 | G39: 1.81 | H39: 2.74 | I39: 3.86 | J39: 5.23 | K39: 37.54 | L39: 49.18 | M39: 13.21 | N39: 19.8
A40: Капуста свежая | C40: 22/18 | D40: 35/28
A41: Морковь | C41: 8/6 | D41: 10/8
A42: Яблоки свежие | C42: 12/10 | D42: 18/15
A43: Сахарный песок | C43: 2 | D43: 3
A44: Масло растительное | C44: 4 | D44: 6
A45: соль | C45: 1 | D45: 1
A47: Суп картофельный с крупой ( гречневый ) на мкб со сметаной | B47: 86 | C47: 180/10/7 | D47: 200/12/8 | E47: 4.58 | F47: 6.18 | G47: 5.78 | H47: 6.8 | I47: 18.84 | J47: 23.1 | K47: 133.91 | L47: 156.6 | M47: 7.87 | N47: 8.82
A48: Мясо говядины на кости | C48: 22/16 | D48: 25/19
A49: картофель | C49: 76/46 | D49: 82/50
A50: лук репчатый | C50: 4/3 | D50: 5/4
A51: морковь свежая | C51: 9/7 | D51: 10/8
A52: крупа гречневая | C52: 10 | D52: 12
A53: масло растительное | C53: 2 | D53: 3
A54: вода | C54: 180 | D54: 200
A55: соль | C55: 1 | D55: 1
A56: сметана 15% | C56: 7 | D56: 8
A58: Рагу овощное | B58: 362 | C58: 100 | D58: 150 | E58: 1.66 | F58: 2.49 | G58: 3.86 | H58: 5.8 | I58: 12.38 | J58: 14.07 | K58: 85.78 | L58: 128.67 | M58: 20.6 | N58: 31
A59: картофель | C59: 67/40 | D59: 100/60
A60: капуста белокочанная | C60: 40/32 | D60: 64/52
A61: морковь | C61: 16/11 | D61: 32/22
A62: лук репчатый | C62: 9/7 | D62: 18/14
A63: масло сливочное 72,5% | C63: 3 | D63: 7
A64: томатная паста | C64: 3 | D64: 7
A65: соль | C65: 1 | D65: 1
A66: мука в/с | C66: 2 | D66: 5
A67: вода | C67: 26 | D67: 39
A69: Котлета куриная | B69: 299 | C69: 60 | D69: 75 | E69: 7.66 | F69: 9.57 | G69: 4.3 | H69: 4.9 | I69: 8.5 | J69: 10.62 | K69: 117.44 | L69: 146.8 | M69: 0.5 | N69: 0.62
A70: курица бройлер | C70: 74/44 | D70: 92/55
A71: хлеб пшеничный | C71: 11 | D71: 14
A72: вода | C72: 9 | D72: 11
A73: лук репчатый | C73: 6/5 | D73: 8/6
A74: мука в/с | C74: 4 | D74: 5
A75: соль | C75: 1 | D75: 1
A76: яйцо куриное | C76: 1 | D76: 1
A77: масло растительное | C77: 1 | D77: 1
A79: Хлеб ржано -пшеничный | C79: 30 | D79: 50 | E79: 1.91 | F79: 3.19 | G79: 0.24 | H79: 0.4 | I79: 12.43 | J79: 20.71 | K79: 52.61 | L79: 87.68 | M79: 0 | N79: 0
A81: Компот из свежих фруктов | B81: 390 | C81: 120 | D81: 150 | E81: 0.03 | F81: 0.04 | G81: 0 | H81: 0 | I81: 10.19 | J81: 12.74 | K81: 41 | L81: 51.11 | M81: 0.02 | N81: 0.03
A82: Яблоки | C82: 30/26 | D82: 38/32
A83: Сахарный песок | C83: 7 | D83: 9
A84: Вода | C84: 122 | D84: 152
A85: Итого: | E85: =E81+E79+E69+E58+E47+E39 -> 16.41 | F85: 22.33 | G85: 15.99 | H85: 20.64 | I85: 66.2 | J85: 86.47 | K85: 468.28 | L85: 620.04 | M85: 42.2 | N85: 60.27
A87: Полдник
A88: Кисломолочный продукт | B88: 420 | C88: 200 | D88: 200 | E88: 5.2 | F88: 5.2 | G88: 5 | H88: 5 | I88: 8 | J88: 8 | K88: 88.2 | L88: 88.2 | M88: 0 | N88: 0
A89: Кондитерское изделие | C89: 25 | D89: 50 | E89: 0.64 | F89: 1.29 | G89: 0.56 | H89: 1.13 | I89: 13.24 | J89: 26.48 | K89: 69.26 | L89: 138.52 | M89: 0.13 | N89: 0.26
A90: Итого: | E90: =E89+E88 -> 5.84 | F90: 6.49 | G90: 5.56 | H90: 6.13 | I90: 21.24 | J90: 34.48 | K90: 157.46 | L90: 226.72 | M90: 0.13 | N90: 0.26
A91: Итого за 1 день: | E91: =E90+E85+E37+E29 -> 41.03 | F91: 51.01 | G91: 39.11 | H91: 45.9 | I91: 154.62 | J91: 200.36 | K91: 1122.37 | L91: 1443.97 | M91: 44.12 | N91: 62.72

Sheet Меню раскладка 9 день
B1: Меню раскладка 9 день
A3: Наименование блюда | B3: номер рецептуры по сборнику | C3: масса порций, в гр. | E3: Пищевая ценность | K3: Энергетическая ценность | M3: Витамин С
E4: белки | G4: жиры | I4: углеводы
A5: Завтрак | C5: 1-3 года | D5: 3-7 лет | E5: 1-3 года | F5: 3-7 лет | G5: 1-3 года | H5: 3-7 лет | I5: 1-3 года | J5: 3-7 лет | K5: 1-3 года | L5: 3-7 лет | M5: 1-3 года | N5: 3-7 лет
A6: Каша"дружба" молочная со сливочным маслом | B6: 199 | C6: 150/5/5 | D6: 180/7/7 | E6: 5.02 | F6: 6.1 | G6: 7.96 | H6: 10.3 | I6: 16.96 | J6: 22.75 | K6: 159.48 | L6: 228.8 | M6: 1.62 | N6: 1.95
A7: рис | C7: 10 | D7: 12
A8: пшено | C8: 10 | D8: 12
A9: молоко 2,5 % | C9: 125 | D9: 150
A10: вода | C10: 18 | D10: 22
A11: сахарный песок | C11: 5 | D11: 7
A12: соль | C12: 1 | D12: 1
A13: масло сливочное 72,5% | C13: 5 | D13: 7
A15: Кофейный напиток с молоком | B15: 414 | C15: 180 | D15: 200 | E15: 2.52 | F15: 2.8 | G15: 2.59 | H15: 2.87 | I15: 13.68 | J15: 15.2 | K15: 87.14 | L15: 96.82 | M15: 1.17 | N15: 1.75
A16: кофейный напиток | C16: 2 | D16: 3
A17: сахарный песок | C17: 11 | D17: 12
A18: молоко 2,5% | C18: 90 | D18: 100
A19: вода | C19: 108 | D19: 120
A21: Бутерброд с маслом и сыром | B21: 3 | C21: 55 | D21: 70 | E21: 5.8 | F21: 7.89 | G21: 6.67 | H21: 8.1 | I21: 19.65 | J21: 24.64 | K21: 143.62 | L21: 182.71 | M21: 0.02 | N21: 0.04
A22: батон | C22: 40 | D22: 50
A23: масло сливочное 72,5% | C23: 5 | D23: 5
A24: сыр твердый | C24: 10 | D24: 15
A25: Итого: | E25: =E21+E15+E6 -> 13.34 | F25: =F21+F15+F6 -> 16.79 | G25: 17.22 | H25: 21.27 | I25: 50.29 | J25: 62.59 | K25: 390.24 | L25: 508.33 | M25: 2.81 | N25: 3.74
A27: 2-ой завтрак
A28: Сок | B28: 418 | C28: 150 | D28: 150 | E28: 0.75 | F28: 0.75 | G28: 0 | H28: 0 | I28: 8.99 | J28: 8.99 | K28: 61.56 | L28: 61.56 | M28: 3.24 | N28: 3.24
A29: Фрукт | C29: 85 | D29: 85 | E29: 1.44 | F29: 1.44 | G29: 0.17 | H29: 0.17 | I29: 6.88 | J29: 6.88 | K29: 32.13 | L29: 32.13 | M29: 51 | N29: 51
A30: Итого: | E30: =E28+E29 -> 2.19 | F30: =F28+F29 -> 2.19 | G30: 0.17 | H30: 0.17 | I30: 15.87 | J30: 15.87 | K30: 93.69 | L30: 93.69 | M30: 54.24 | N30: 54.24
A32: Обед
A33: Салат из отварной свеклы | B33: 34 | C33: 40 | D33: 60 | E33: 0.57 | F33: 0.87 | G33: 2.43 | H33: 4.05 | I33: 3.49 | J33: 5.27 | K33: 38.2 | L33: 61.07 | M33: 3.8 | N33: 5.8
A34: Свекла | C34: 49/39 | D34: 73/58
A35: масло растительное | C35: 4 | D35: 6
A37: Суп картофельный с макаронными изделиями на мкб со сметаной | B37: 88 | C37: 180/10/7 | D37: 200/12/8 | E37: 6.35 | F37: 8.02 | G37: 7.25 | H37: 9.62 | I37: 13.5 | J37: 17.9 | K37: 152.63 | L37: 190.4 | M37: 12.81 | N37: 14.39
A38: Мясо говядины на кости | C38: 22/16 | D38: 25/19
A39: картофель | C39: 100/60 | D39: 111/67
A40: лук репчатый | C40: 4/3 | D40: 5/4
A41: морковь свежая | C41: 9/7 | D41: 10/8
A42: масло растительное | C42: 2 | D42: 3
A43: вода | C43: 126 | D43: 140
A44: соль | C44: 1 | D44: 1
A45: вермишель | C45: 9 | D45: 14
A46: Сметана 15% | C46: 7 | D46: 8
A48: Голубцы ленивые | B48: 315 | C48: 160 | D48: 190 | E48: 4.71 | F48: 5.6 | G48: 5.45 | H48: 6.47 | I48: 13.4 | J48: 18.4 | K48: 155.2 | L48: 184.35 | M48: 40.54 | N48: 48.15
A49: мясо говядины на кости | C49: 51/38 | D49: 61/45
A50: капуста свежая | C50: 108/87 | D50: 129/103
A51: лук репчатый | C51: 11/9 | D51: 13/11
A52: морковь | C52: 14/12 | D52: 17/14
A53: Крупа рисовая | C53: 8 | D53: 9
A54: масло сливочное 72,5% | C54: 2 | D54: 3
A55: соль | C55: 1 | D55: 1
A57: Хлеб ржано -пшеничный | C57: 30 | D57: 50 | E57: 1.91 | F57: 3.19 | G57: 0.24 | H57: 0.4 | I57: 12.43 | J57: 20.71 | K57: 52.61 | L57: 87.68 | M57: 0 | N57: 0
A59: Компот из сухофруктов | B59: 394 | C59: 120 | D59: 150 | E59: 0.03 | F59: 0.04 | I59: 11.32 | J59: 13.4 | K59: 45.42 | L59: 53.79 | M59: 0.024 | N59: 0.03
A60: Смесь компотная | C60: 12 | D60: 15
A61: сахарный песок | C61: 7 | D61: 9
A62: вода | C62: 124 | D62: 157
A63: Итого: | E63: =E59+E57+E48+E37+E33 -> 13.57 | F63: =F59+F57+F48+F37+F33 -> 17.72 | G63: 15.37 | H63: 20.54 | I63: 54.14 | J63: 75.68 | K63: 444.06 | L63: 577.29 | M63: 57.174 | N63: 68.37
A64: Полдник
A65: Булочка домашняя | B65: 452 | C65: 60 | D65: 60 | E65: 4.86 | F65: 4.86 | G65: 5.3 | H65: 5.3 | I65: 36.8 | J65: 36.8 | K65: 188.32 | L65: 188.32 | M65: 0.15 | N65: 0.15
A66: Для теста: | B66: 436 | C66: 70 | D66: 70
A67: мука В/с | C67: 40 | D67: 40
A68: молоко 2,5% | C68: 12 | D68: 12
A69: вода | C69: 7 | D69: 7
A70: масло растительное | C70: 6 | D70: 6
A71: соль | C71: 1 | D71: 1
A72: дрожжи сухие | C72: 1 | D72: 1
A73: сахарный песок | C73: 6 | D73: 6
A74: яйцо куриное | C74: 2 | D74: 2
A76: мука в/с | C76: 2 | D76: 2
A77: масло растительное | C77: 1 | D77: 1
A80: Кисломолочный продукт | B80: 420 | C80: 150 | D80: 200 | E80: 3.9 | F80: 5.2 | G80: 4.2 | H80: 5 | I80: 6 | J80: 8 | K80: 66.15 | L80: 88.2 | M80: 0 | N80: 0
A81: Итого: | E81: =E80+E65 -> 8.76 | F81: 10.06 | G81: 9.5 | H81: 10.3 | I81: 42.8 | J81: 44.8 | K81: 254.47 | L81: 276.52 | M81: 0.15 | N81: 0.15
A83: Итого за 1 день: | E83: =E81+E63+E30+E25 -> 37.86 | F83: 46.76 | G83: 42.26 | H83: 52.28 | I83: 163.1 | J83: 198.94 | K83: 1182.46 | L83: 1455.83 | M83: 114.374 | N83: 126.5

Sheet Меню раскладка 10 день
B1: Меню раскладка 10 день
A3: Наименование блюда | B3: номер рецептуры по сборнику | C3: масса порций, в гр. | E3: Пищевая ценность | K3: Энергетическая ценность | M3: Витамин С
E4: белки | G4: жиры | I4: углеводы
A5: Завтрак | C5: 1-3 года | D5: 3-7 лет | E5: 1-3 года | F5: 3-7 лет | G5: 1-3 года | H5: 3-7 лет | I5: 1-3 года | J5: 3-7 лет | K5: 1-3 года | L5: 3-7 лет | M5: 1-3 года | N5: 3-7 лет
A6: Суп молочный с крупой | B6: 101 | C6: 150 | D6: 180 | E6: 3.41 | F6: 4.06 | G6: 5.41 | H6: 5.7 | I6: 12.52 | J6: 15.02 | K6: 115.89 | L6: 139.06 | M6: 1.36 | N6: 1.63
A7: молоко 2,5% | C7: 125 | D7: 150
A8: рисовая крупа | C8: 14 | D8: 20
A9: вода | C9: 25 | D9: 30
A10: сахарный песок | C10: 2 | D10: 3
A11: соль | C11: 1 | D11: 1
A12: масло сливочное 72,5% | C12: 2 | D12: 3
A14: Чай сладкий с молоком | B14: 413 | C14: 150 | D14: 200 | E14: 2.03 | F14: 2.71 | G14: 2.32 | H14: 3.1 | I14: 12.18 | J14: 16.24 | K14: 79.23 | L14: 105.65 | M14: 0.94 | N14: 1.26
A15: Чай заварка | C15: 0.4 | D15: 0.5
A16: Сахарный песок | C16: 9 | D16: 12
A17: вода | C17: 120 | D17: 160
A18: Молоко 2,5% | C18: 40 | D18: 54
A20: Бутерброд с повидлом | B20: 2 | C20: 60 | D20: 75 | E20: 2.47 | F20: 3.28 | G20: 3.5 | H20: 3.7 | I20: 24.29 | J20: 31.57 | K20: 128.12 | L20: 144.13 | M20: 0.07 | N20: 0.1
A21: батон | C21: 40 | D21: 50
A22: масло сливочное 72,5% | C22: 5 | D22: 5
A23: повидло | C23: 15 | D23: 20
A24: Итого: | E24: =E20+E14+E6 -> 7.91 | F24: =F20+F14+F6 -> 10.05 | G24: 11.23 | H24: 12.5 | I24: 48.99 | J24: 62.83 | K24: 323.24 | L24: 388.84 | M24: 2.37 | N24: 2.99
A26: 2-ой завтрак
A27: Кисломолочный напиток | B27: 420 | C27: 120 | D27: 150 | E27: 3.12 | F27: 3.9 | G27: 2.69 | H27: 3.37 | I27: 4.53 | J27: 5.67 | K27: 52.72 | L27: 65.9 | M27: 0.3 | N27: 0.4
A28: Фрукт | B28: 386 | C28: 85 | D28: 85 | E28: 1.2 | F28: 1.2 | G28: 0.12 | H28: 0.12 | I28: 5.18 | J28: 5.18 | K28: 21.77 | L28: 21.77 | M28: 0.1 | N28: 0.1
A29: Итого: | E29: =E28+E27 -> 4.32 | F29: 5.1 | G29: 2.81 | H29: 3.49 | I29: 9.71 | J29: 10.85 | K29: 74.49 | L29: 87.67 | M29: 0.4 | N29: 0.5
A31: Обед
A32: Огурцы свежие | B32: 15 | C32: 40 | D32: 60 | E32: 0.32 | F32: 0.48 | G32: 0.04 | H32: 0.06 | I32: 1.04 | J32: 1.56 | K32: 5.8 | L32: 8.7 | M32: 1.72 | N32: 2.61
A33: Огурцы свежие | C33: 43/40 | D33: 63/60
A35: Щи из свежей капусты с картофелем со сметаной на мкб | B35: 73 | C35: 180/10/7 | D35: 200/12/8 | E35: 4.48 | F35: 6.14 | G35: 7.09 | H35: 9.58 | I35: 6.82 | J35: 7.53 | K35: 109 | L35: 140.9 | M35: 21.86 | N35: 24.21
A36: говядина на кости | C36: 22/16 | D36: 25/19
A37: капуста белокочанная | C37: 55/44 | D37: 61/49
A38: картофель | C38: 73/44 | D38: 81/49
A39: морковь свежая | C39: 11/9 | D39: 12/10
A40: лук репчатый | C40: 9/7 | D40: 10/8
A41: томатная паста | C41: 2 | D41: 2
A42: соль | C42: 1 | D42: 1
A43: масло растительное | C43: 2 | D43: 3
A44: вода | C44: 144 | D44: 160
A45: сметана 15% | C45: 7 | D45: 8
A47: Картофельное пюре | B47: 339 | C47: 100 | D47: 130 | E47: 2.28 | F47: 2.96 | G47: 3.77 | H47: 4.72 | I47: 13.92 | J47: 18.09 | K47: 104.96 | L47: 128.3 | M47: 18.2 | N47: 21.87
A48: Картофель | C48: 150/90 | D48: 195/117
A49: молоко 2,5% | C49: 16 | D49: 21
A50: масло сливочное 72,5% | C50: 4 | D50: 5
A51: соль | C51: 1 | D51: 1
A53: Биточки рыбные из минтая | B53: 272 | C53: 60 | D53: 75 | E53: 10 | F53: 12.5 | G53: 4.3 | H53: 5.1 | I53: 6.95 | J53: 8.68 | K53: 91.51 | L53: 114.38 | M53: 2.04 | N53: 2.5
A54: минтай св\мор | C54: 60/40 | D54: 75/50
A55: хлеб пшеничный | C55: 7 | D55: 9
A56: вода | C56: 16 | D56: 20
A57: лук репчатый | C57: 14/12 | D57: 18/16
A58: яйцо куриное | C58: 3 | D58: 4
A59: сухари | C59: 5 | D59: 6
A60: соль | C60: 1 | D60: 1
A61: Масло растительное | C61: 1 | D61: 1
A63: Хлеб ржано -пшеничный | C63: 30 | D63: 50 | E63: 1.91 | F63: 3.19 | G63: 0.24 | H63: 0.4 | I63: 12.43 | J63: 20.71 | K63: 52.61 | L63: 87.68 | M63: 0 | N63: 0
A65: Компот из яблок и изюма | B65: 390 | C65: 120 | D65: 150 | E65: 0.17 | F65: 0.21 | G65: 0.05 | H65: 0.06 | I65: 15.13 | J65: 18.92 | K65: 51.7 | L65: 64.62 | M65: 1.76 | N65: 2.21
A66: Яблоки | C66: 14/11 | D66: 17/14
A67: Изюм | C67: 6 | D67: 8
A68: Сахарный песок | C68: 7 | D68: 9
A69: Вода | C69: 122 | D69: 152
A70: Итого: | E70: =E65+E63+E53+E47+E35+E32 -> 19.16 | F70: 25.48 | G70: 15.49 | H70: 19.92 | I70: 56.29 | J70: 75.49 | K70: 415.58 | L70: 544.58 | M70: 45.58 | N70: 53.4
A71: Полдник
A72: Оладьи со сгущенкой | B72: 432 | C72: 80/10 | D72: 120/10 | E72: 5.4 | F72: 8.1 | G72: 4.95 | H72: 7.43 | I72: 39.26 | J72: 54.4 | K72: 240.8 | L72: 289.58 | M72: 0.44 | N72: 0.66
A73: Тесто: | C73: 95 | D73: 141
A74: мука пшеничная в/с | C74: 45 | D74: 68
A75: яйцо куриное | C75: 3 | D75: 4
A76: молоко 2,5% | C76: 39 | D76: 58
A77: дрожжи сухие | C77: 1 | D77: 1
A78: сахарный песок | C78: 1 | D78: 1
A79: соль | C79: 1 | D79: 1
A80: сгущенное молоко | C80: 10 | D80: 10
A81: масло растительное | C81: 4 | D81: 6
A83: Чай без сахара | B83: 411 | C83: 150 | D83: 200 | E83: 0.01 | F83: 0.01 | G83: 0 | H83: 0 | I83: 0.02 | J83: 0.03 | K83: 0.06 | L83: 0.09 | M83: 0.04 | N83: 0.05
A84: Чай заварка (сухая) | C84: 0.5 | D84: 0.7
A85: вода | C85: 157 | D85: 210
A86: Итого: | E86: =E83+E72 -> 5.41 | F86: =F83+F72 -> 8.11 | G86: 4.95 | H86: 7.43 | I86: 39.28 | J86: 54.43 | K86: 240.86 | L86: 289.67 | M86: 0.48 | N86: 0.71
A88: Итого за 1 день: | E88: =E86+E70+E29+E24 -> 36.8 | F88: =F86+F70+F29+F24 -> 48.74 | G88: 38.48 | H88: 47.34 | I88: =I86+I70+I29+I24 -> 154.27 | J88: =J86+J70+J29+J24 -> 203.6 | K88: 1154.17 | L88: 1410.76 | M88: =M86+M70+M29+M24 -> 48.83 | N88: =N86+N70+N29+N24 -> 57.6

Sheet Меню раскладка 11 дней
B1: Меню раскладка 11 день
A3: Наименование блюда | B3: номер рецептуры по сборнику | C3: масса порций, в гр. | E3: Пищевая ценность | K3: Энергетическая ценность | M3: Витамин С
E4: белки | G4: жиры | I4: углеводы
A5: Завтрак | C5: 1-3 года | D5: 3-7 лет | E5: 1-3 года | F5: 3-7 лет | G5: 1-3 года | H5: 3-7 лет | I5: 1-3 года | J5: 3-7 лет | K5: 1-3 года | L5: 3-7 лет | M5: 1-3 года | N5: 3-7 лет
A6: Каша ячневая молочная жидкая со сливочным маслом | B6: 199 | C6: 150/5/5 | D6: 180/7/7 | E6: 4.17 | F6: 5.3 | G6: 6.98 | H6: 9.37 | I6: 20.22 | J6: 24.26 | K6: 145.17 | L6: 189 | M6: 1.45 | N6: 1.89
A7: крупа ячневая | C7: 14 | D7: 19
A8: молоко 2,5% | C8: 125 | D8: 150
A9: вода | C9: 18 | D9: 22
A10: сахарный песок | C10: 5 | D10: 7
A11: соль | C11: 1 | D11: 1
A12: масло сливочное 72,5% | C12: 5 | D12: 7
A14: Какао с молоком | B14: 416 | C14: 150 | D14: 200 | E14: 3.06 | F14: 4.08 | G14: 2.96 | H14: 3.94 | I14: 12.47 | J14: 16.6 | K14: 87.6 | L14: 116.8 | M14: 1.07 | N14: 1.42
A15: какао | C15: 2 | D15: 2
A16: сахарный песок | C16: 9 | D16: 12
A17: молоко 2,5% | C17: 92 | D17: 122
A18: вода | C18: 65 | D18: 87
A20: Бутерброд с маслом | B20: 1 | C20: 40/10 | D20: 50/10 | E20: 2.91 | F20: 3.62 | G20: 5.88 | H20: 5.97 | I20: 17.43 | J20: 21.8 | K20: 143 | L20: 164.33 | M20: 0 | N20: 0
A21: батон | C21: 40 | D21: 50
A22: масло сливочное 72,5% | C22: 10 | D22: 10
A24: Итого: | E24: =E20+E14+E6 -> 10.14 | F24: =F20+F14+F6 -> 13 | G24: 15.82 | H24: 19.28 | I24: 50.12 | J24: 62.66 | K24: 375.77 | L24: 470.13 | M24: 2.52 | N24: 3.31
A26: 2-ой завтрак
A27: Сок | B27: 418 | C27: 150 | D27: 150 | E27: 0.75 | F27: 0.75 | G27: 0 | H27: 0 | I27: 8.99 | J27: 8.99 | K27: 61.56 | L27: 61.56 | M27: 3.24 | N27: 3.24
A28: Фрукт | B28: 386 | C28: 85 | D28: 85 | E28: 0.3 | F28: 0.3 | G28: 0.11 | H28: 0.11 | I28: 10.31 | J28: 10.31 | K28: 48.45 | L28: 48.45 | M28: 4.2 | N28: 4.2
A29: Итого: | E29: =E28+E27 -> 1.05 | F29: =F28+F27 -> 1.05 | G29: 0.11 | H29: 0.11 | I29: 19.3 | J29: 19.3 | K29: 110.01 | L29: 110.01 | M29: 7.44 | N29: 7.44
A31: Обед
A32: Салат из белокочанной капусты | B32: 21 | C32: 40 | D32: 60 | E32: 0.57 | F32: 0.86 | G32: 1.81 | H32: 2.74 | I32: 3.86 | J32: 5.23 | K32: 37.54 | L32: 49.18 | M32: 13.21 | N32: 19.8
A33: капуста | C33: 40/32 | D33: 60/48
A34: морковь | C34: 7/6 | D34: 10/8
A35: масло растительное | C35: 4 | D35: 6
A36: сахар | C36: 2 | D36: 3
A37: соль | C37: 1 | D37: 1
A39: Суп картофельный с бобовыми (гороховый) на мкб | B39: 87 | C39: 180/10 | D39: 200/12 | E39: 5.48 | F39: 6.11 | G39: 4.87 | H39: 8.24 | I39: 11.87 | J39: 17.1 | K39: 117.31 | L39: 130.89 | M39: 6.8 | N39: 9.1
A40: мясо говядины на кости | C40: 22/16 | D40: 25/19
A41: горох | C41: 14 | D41: 15
A42: картофель | C42: 100/60 | D42: 111/67
A43: лук репчатый | C43: 8/6 | D43: 9/7
A44: морковь | C44: 9/7 | D44: 10/8
A45: масло растительное | C45: 2 | D45: 3
A46: вода | C46: 130 | D46: 145
A47: соль | C47: 1 | D47: 1
A49: Плов из говядины | C49: 160 | D49: 190 | E49: 11.33 | F49: 13.46 | G49: 7.92 | H49: 9.4 | I49: 25.8 | J49: 30.69 | K49: 244.15 | L49: 279 | M49: 0.82 | N49: 0.99
A50: мясо говядины на кости | C50: 70/52 | D50: 83/62
A51: Крупа рисовая | C51: 39 | D51: 46
A52: лук репчатый | C52: 7/6 | D52: 8/6
A53: морковь | C53: 11/8 | D53: 13/10
A54: Масло сливочное 72,5% | C54: 7 | D54: 8
A55: Соль | C55: 1 | D55: 1
A56: вода | C56: 105 | D56: 125
A58: Хлеб ржано -пшеничный | C58: 30 | D58: 50 | E58: 1.91 | F58: 3.19 | G58: 0.24 | H58: 0.4 | I58: 12.43 | J58: 20.71 | K58: 52.61 | L58: 87.68 | M58: 0 | N58: 0
A60: Компот из свежих фруктов | B60: 390 | C60: 120 | D60: 150 | E60: 0.03 | F60: 0.04 | G60: 0 | H60: 0 | I60: 10.19 | J60: 12.74 | K60: 41 | L60: 51.11 | M60: 0.02 | N60: 0.03
A61: Яблоки | C61: 30/26 | D61: 38/32
A62: Сахарный песок | C62: 7 | D62: 12
A63: Вода | C63: 122 | D63: 152
A64: Итого: | E64: =E60+E58+E49+E39+E32 -> 19.32 | F64: 23.66 | G64: 14.84 | H64: 20.78 | I64: 64.15 | J64: 86.47 | K64: 492.61 | L64: 597.86 | M64: 20.85 | N64: 29.92
A66: Полдник
A67: Кондитерское изделие | C67: 25 | D67: 50 | E67: 0.64 | F67: 1.29 | G67: 0.56 | H67: 1.13 | I67: 14.24 | J67: 28.48 | K67: 69.26 | L67: 138.52 | M67: 0.13 | N67: 0.26
A69: Кисломолочный продукт | B69: 420 | C69: 200 | D69: 200 | E69: 5.2 | F69: 5.2 | G69: 5 | H69: 5 | I69: 8 | J69: 8 | K69: 88.2 | L69: 88.2 | M69: 0 | N69: 0
A70: Итого: | E70: =E69+E67 -> 5.84 | F70: 6.49 | G70: 5.56 | H70: 6.13 | I70: 22.24 | J70: 36.48 | K70: 157.46 | L70: 226.72 | M70: 0.13 | N70: 0.26
A71: Итого за 1 день: | E71: =E70+E64+E29+E24 -> 36.35 | F71: 44.2 | G71: 36.33 | H71: 46.3 | I71: 155.81 | J71: 204.91 | K71: 1135.85 | L71: 1404.72 | M71: 30.94 | N71: 40.93

Sheet Меню раскладка 12 день
B1: Меню раскладка 12 день
A3: Наименование блюда | B3: номер рецептуры по сборнику | C3: масса порций, в гр. | E3: Пищевая ценность | K3: Энергетическая ценность | M3: Витамин С
E4: белки | G4: жиры | I4: углеводы
A5: Завтрак | C5: 1-3 года | D5: 3-7 лет | E5: 1-3 года | F5: 3-7 лет | G5: 1-3 года | H5: 3-7 лет | I5: 1-3 года | J5: 3-7 лет | K5: 1-3 года | L5: 3-7 лет | M5: 1-3 года | N5: 3-7 лет
A6: Запеканка творожная с изюмом и со сгущенкой | B6: 251 | C6: 100/20 | D6: 120/20 | E6: 8.4 | F6: 10.08 | G6: 6 | H6: 6.5 | I6: 17.62 | J6: 19.02 | K6: 154.15 | L6: 188 | M6: 0.72 | N6: 0.77
A7: творог 5% | C7: 92 | D7: 110
A8: манная крупа | C8: 6 | D8: 7
A9: молоко 2,5% | C9: 25 | D9: 30
A10: сметана 15% | C10: 5 | D10: 6
A11: яйцо куриное | C11: 5 | D11: 6
A12: сахарный песок | C12: 9 | D12: 11
A13: масло сливочное 72,5% | C13: 5 | D13: 6
A14: изюм | C14: 7 | D14: 8
A15: молоко сгущенное | C15: 20 | D15: 20
A16: сухари | C16: 5 | D16: 6
A18: Кофейный напиток с молоком | B18: 414 | C18: 180 | D18: 200 | E18: 2.52 | F18: 2.8 | G18: 2.59 | H18: 2.87 | I18: 13.68 | J18: 15.2 | K18: 87.14 | L18: 96.82 | M18: 1.17 | N18: 1.75
A19: кофейный напиток | C19: 2 | D19: 3
A20: сахарный песок | C20: 11 | D20: 12
A21: молоко 2,5% | C21: 90 | D21: 100
A22: вода | C22: 108 | D22: 120
A24: Бутерброд с маслом и сыром | B24: 3 | C24: 55 | D24: 70 | E24: 5.8 | F24: 7.89 | G24: 6.67 | H24: 8.1 | I24: 19.65 | J24: 24.64 | K24: 143.62 | L24: 182.71 | M24: 0.02 | N24: 0.04
A25: батон | C25: 40 | D25: 50
A26: масло сливочное 72,5% | C26: 5 | D26: 5
A27: сыр твердый | C27: 10 | D27: 15
A28: Итого: | E28: =E24+E18+E6 -> 16.72 | F28: =F24+F18+F6 -> 20.77 | G28: 15.26 | H28: 17.47 | I28: 50.95 | J28: 58.86 | K28: 384.91 | L28: 467.53 | M28: 1.91 | N28: 2.56
A30: 2-ой завтрак
A31: Сок | B31: 418 | C31: 150 | D31: 150 | E31: 0.75 | F31: 0.75 | G31: 0 | H31: 0 | I31: 8.99 | J31: 8.99 | K31: 61.56 | L31: 61.56 | M31: 3.24 | N31: 3.24
A32: Фрукт | B32: 386 | C32: 85 | D32: 85 | E32: 0.3 | F32: 0.3 | G32: 0.11 | H32: 0.11 | I32: 10.31 | J32: 10.31 | K32: 48.45 | L32: 48.45 | M32: 4.2 | N32: 4.2
A33: Итого: | E33: =E32+E31 -> 1.05 | F33: =F32+F31 -> 1.05 | G33: 0.11 | H33: 0.11 | I33: 19.3 | J33: 19.3 | K33: 110.01 | L33: 110.01 | M33: 7.44 | N33: 7.44
A35: Обед
A36: Свекла отварная | B36: 21 | C36: 40 | D36: 60 | E36: 0.58 | F36: 0.87 | G36: 2.69 | H36: 4.04 | I36: 3.51 | J36: 5.27 | K36: 40.71 | L36: 61.07 | M36: 3.86 | N36: 5.8
A37: Свекла | C37: 49/39 | D37: 73/58
A38: Масло растительное | C38: 3 | D38: 4
A40: Суп картофельный с крупой ( пшенный) на мкб со сметаной | B40: 86 | C40: 180/10/7 | D40: 200/12/8 | E40: 4.58 | F40: 6.18 | G40: 8.78 | H40: 9.75 | I40: 12.84 | J40: 14.26 | K40: 103.91 | L40: 115.45 | M40: 7.87 | N40: 8.82
A41: Мясо говядины на кости | C41: 22/16 | D41: 25/19
A42: картофель | C42: 76/46 | D42: 82/50
A43: лук репчатый | C43: 4/3 | D43: 5/4
A44: морковь свежая | C44: 9/7 | D44: 10/8
A45: крупа пшенная | C45: 10 | D45: 12
A46: масло растительное | C46: 2 | D46: 3
A47: вода | C47: 180 | D47: 200
A48: соль | C48: 1 | D48: 1
A49: сметана 15% | C49: 7 | D49: 8
A51: Жаркое по домашнему из говядины | B51: 290 | C51: 160 | D51: 190 | E51: 15.36 | F51: 19.43 | G51: 8.58 | H51: 10.75 | I51: 20.1 | J51: 28.87 | K51: 257.6 | L51: 305.9 | M51: 23.92 | N51: 28.4
A52: Мясо говядины на кости | C52: 82/60 | D52: 90/66
A53: Картофель | C53: 122/73 | D53: 145/87
A54: Лук репчатый | C54: 11/9 | D54: 13/11
A55: Морковь свежая | C55: 20/17 | D55: 24/19
A56: Масло сливочное 72,5% | C56: 4 | D56: 5
A57: Томатная паста | C57: 3 | D57: 4
A58: Вода | C58: 76 | D58: 90
A59: Соль | C59: 1 | D59: 1
A61: Хлеб ржано -пшеничный | C61: 30 | D61: 50 | E61: 1.91 | F61: 3.19 | G61: 0.24 | H61: 0.4 | I61: 12.43 | J61: 20.71 | K61: 52.61 | L61: 87.68 | M61: 0 | N61: 0
A63: Компот из сухофруктов | B63: 394 | C63: 120 | D63: 150 | E63: 0.03 | F63: 0.04 | G63: 0 | H63: 0 | I63: 11.32 | J63: 13.4 | K63: 45.42 | L63: 53.79 | M63: 0.024 | N63: 0.03
A64: Смесь компотная | C64: 12 | D64: 15
A65: сахарный песок | C65: 7 | D65: 9
A66: вода | C66: 124 | D66: 157
A67: Итого: | E67: =E63+E61+E51+E40+E36 -> 22.46 | F67: 29.71 | G67: 20.29 | H67: 24.94 | I67: 60.2 | J67: 82.51 | K67: 500.25 | L67: 623.89 | M67: 35.674 | N67: 43.05
A69: Полдник
A70: Кондитерское изделие | C70: 25 | D70: 50 | E70: 0.64 | F70: 1.29 | G70: 0.56 | H70: 1.13 | I70: 14.24 | J70: 28.48 | K70: 69.26 | L70: 138.52 | M70: 0.13 | N70: 0.26
A72: Кисель | B72: 359 | C72: 200 | D72: 200 | E72: 0 | F72: 0 | G72: 0 | H72: 0 | I72: 27.02 | J72: 27.02 | K72: 106.64 | L72: 106.64 | M72: 0 | N72: 0
A73: Кисель концентрат | C73: 24 | D73: 24
A74: сахарный песок | C74: 15 | D74: 15
A75: вода | C75: 203 | D75: 203
A76: Итого: | E76: =E72+E70 -> 0.64 | F76: 1.29 | G76: 0.56 | H76: 1.13 | I76: 41.26 | J76: 55.5 | K76: 175.9 | L76: 245.16 | M76: 0.13 | N76: 0.26
A77: Итого за 1 день: | E77: 40.87 | F77: 52.82 | G77: 36.22 | H77: 43.65 | I77: 161.71 | J77: 206.17 | K77: 1171.07 | L77: 1446.59 | M77: 45.154 | N77: 53.31

Sheet Ведомость питания
A1: Продукты САД | B1: День 1 | C1: день 2 | D1: день 3 | E1: день 4 | F1: день 5 | G1: день 6 | H1: день 7 | I1: день 8 | J1: день 9 | K1: день 10 | L1: день 11 | M1: день 12 | N1: Итого за 12 дней | O1: Усредненные данные в сутки | P1: СанПиН
A2: Молоко | B2: 303 | C2: 150 | D2: 216 | E2: 352 | F2: 205 | G2: 204 | H2: 232 | I2: 152 | J2: 262 | K2: 283 | L2: 272 | M2: 150 | N2: =B2+C2+D2+E2+F2+H2+I2+J2+K2+L2+B3+C3+D3+E3+F3+H3+I3+J3+K3+L3+G2+G3+M2+M3 -> 4731 | O2: =N2/12 -> 394.25 | P2: 340
A3: Кисломолочные продукты | B3: 150 | C3: 200 | D3: 200 | E3: 150 | F3: 150 | G3: 150 | H3: 200 | I3: 200 | J3: 200 | K3: 150 | L3: 200
A4: сметана | B4: 8 | C4: 14 | D4: 8 | E4: 8 | G4: 15.5 | H4: 8 | I4: 14 | J4: 8 | K4: 8 | M4: 14 | N4: =B4+C4+D4+E4+F4+H4+I4+J4+K4+L4+G4+M4 -> 105.5 | O4: 8.79 | P4: 8
A5: творог | C5: 110 | F5: 80 | I5: 110 | M5: 110 | N5: =B5+C5+D5+E5+F5+H5+I5+J5+K5+L5+G5+M5 -> 410 | O5: 34.16 | P5: 30
A6: сыр | C6: 15 | F6: 15 | J6: 15 | M6: 15 | N6: 60 | O6: =N6/12 -> 5 | P6: 4.8
A7: мясо говядины | B7: 25 | C7: 25 | D7: 115 | E7: 25 | F7: 113 | G7: 90 | H7: 25 | I7: 25 | J7: 86 | K7: 25 | L7: 108 | M7: 115 | N7: 777 | O7: 64.75 | P7: 56.25
A8: курица | C8: 100 | I8: 92 | N8: 192 | O8: 16 | P8: 20
A9: рыба | E9: 121 | H9: 121 | K9: 75 | N9: 317 | O9: 26.41 | P9: 29.25
A10: колбасные | B10: 53 | N10: 53 | O10: 4.42 | P10: 5.2
A11: яйцо | B11: 2 | C11: 6 | D11: 2 | E11: 10 | F11: 83 | G11: 41 | H11: 40 | I11: 46 | J11: 2 | K11: 8 | M11: 6 | N11: 246 | O11: 20.5 | P11: 20
A12: картофель | B12: 256 | C12: 111 | D12: 226 | E12: 111 | F12: 111 | G12: 341 | H12: 61 | I12: 180 | J12: 111 | K12: 276 | L12: 111 | M12: 227 | N12: 2122 | O12: 176.83 | P12: 145
A13: овощи (томаты, огурцы) | B13: 63 | D13: 62 | H13: 62 | K13: 63 | N13: =B13+C13+D13+E13+F13+H13+I13+J13+K13+L13+B14+C14+D14+E14+F14+H14+I14+J14+K14+L14+B15+C15+D15+E15+F15+H15+I15+J15+K15+L15+M15+M14+M13+G15+G14+G13 -> 1758 | O13: =N13/12 -> 146.5 | P13: 244
A14: овощи (капуста) | B14: 36 | C14: 60 | D14: 61 | F14: 35 | H14: 26 | I14: 95 | J14: 129 | K14: 61 | L14: 60
A15: овощи( морковь, лук, свекла) | B15: 63 | C15: 49 | D15: 51 | E15: 113 | F15: 57 | G15: 122 | H15: 87 | I15: 70 | J15: 118 | K15: 40 | L15: 50 | M15: 125
A16: фрукты | B16: 85 | C16: 85 | D16: 17 | E16: 85 | F16: 100 | G16: 85 | H16: 87 | I16: 56 | J16: 85 | K16: 102 | L16: 123 | M16: 85 | N16: =B16+D16+C16+E16+F16+H16+I16+J16+K16+L16+G16+M16 -> 995 | O16: 82.91 | P16: 85.5
A17: Смесь компотная | C17: 15 | F17: 15 | J17: 15 | M17: 15 | N17: =B17+C17+D17+E17+F17+H17+I17+J17+K17+L17+B18+C18+D18+E18+F18+H18+I18+J18+K18+L18+M17+M18+G17+G18 -> 129 | O17: =N17/12 -> 10.75 | P17: 8.25
A18: Изюм | C18: 8 | D18: 15 | G18: 14 | H18: 8 | I18: 8 | K18: 8 | M18: 8
A19: сок | C19: 150 | D19: 150 | H19: 150 | J19: 150 | L19: 150 | M19: 150 | N19: =B19+C19+D19+E19+F19+H19+I19+J19+K19+L19+G19+M19 -> 900 | O19: =N19/12 -> 75 | P19: 75
A20: крупы | B20: 20 | C20: 26 | D20: 18 | E20: 18 | F20: 61 | G20: 28 | H20: 22 | I20: 19 | J20: 33 | K20: 20 | L20: 80 | M20: 19 | N20: =B20+C20+D20+E20+F20+H20+I20+J20+K20+L20+G20+M20 -> 364 | O20: 30.3 | P20: 32
A21: макароны | C21: 53 | E21: 19 | G21: 14 | J21: 14 | N21: 100 | O21: 8.3 | P21: 9
A22: соль | B22: 4 | C22: 4 | D22: 5 | E22: 4 | F22: 4 | G22: 4 | H22: 5 | I22: 3 | J22: 4 | K22: 5 | L22: 4 | M22: 2 | N22: 48 | O22: =N22/12 -> 4 | P22: 4.5
A23: Сахарный песок | B23: 40 | C23: 35 | D23: 34 | E23: 25 | F23: 36 | G23: 43 | H23: 36 | I23: 44 | J23: 34 | K23: 25 | L23: 34 | M23: 54 | N23: 440 | O23: 36.66 | P23: 35.25
A24: дрожжи | B24: 1 | D24: 1 | E24: 1 | H24: 1 | J24: 1 | N24: 5 | O24: 0.42 | P24: 0.4
A25: масло растительное | B25: 7 | C25: 10 | D25: 14 | E25: 13 | F25: 13 | G25: 12 | H25: 15 | I25: 10 | J25: 14 | K25: 10 | L25: 9 | M25: 7 | N25: 134 | O25: 11.16 | P25: 8.25
A26: масло сливочное | B26: 18 | C26: 21 | D26: 17 | E26: 20 | F26: 24 | G26: 20 | H26: 17 | I26: 21 | J26: 15 | K26: 13 | L26: 25 | M26: 16 | N26: 227 | O26: 18.91 | P26: 16
A27: Томатная паста | B27: 7 | D27: 6 | F27: 3 | H27: 7 | I27: 5 | K27: 2 | M27: 4 | N27: 34 | O27: 2.8
A28: Чай | B28: 0.7 | D28: 0.5 | E28: 0.7 | F28: 0.7 | G28: 0.5 | H28: 0.5 | K28: 1.2 | N28: 4.8 | O28: 0.4 | P28: 0.45
A29: Какао | B29: 2 | E29: 2 | I29: 2 | N29: 6 | O29: 0.5 | P29: 0.45
A30: кофейный напиток | C30: 3 | F30: 3 | J30: 3 | M30: 3 | N30: 12 | O30: 1 | P30: 0.9
A31: хлеб | B31: 111 | C31: 100 | D31: 100 | E31: 100 | F31: 100 | G31: 100 | H31: 100 | I31: 114 | J31: 100 | K31: 109 | L31: 100 | M31: 100 | N31: 1234 | O31: 102.83 | P31: 100
A32: мука | B32: 31 | C32: 6 | D32: 42 | E32: 79 | F32: 13 | G32: 6 | H32: 46 | I32: 5 | J32: 42 | K32: 74 | M32: 6 | N32: 350 | O32: 29.16 | P32: 22
A33: кисель | B33: 18 | E33: 18 | G33: 24 | I33: 18 | M33: 24 | N33: 102 | O33: 8.5
A34: кондитерка | C34: 50 | G34: 50 | I34: 50 | L34: 50 | M34: 50 | N34: 250 | O34: 20.83 | P34: 15
A35: повидло | B35: 25 | D35: 20 | H35: 20 | K35: 20 | N35: 85 | O35: 7.08
A37: Продукты Ясли | B37: День 1 | C37: день 2 | D37: день 3 | E37: день 4 | F37: день 5 | G37: день 6 | H37: день 7 | I37: день 8 | J37: день 9 | K37: день 10 | L37: день 11 | M37: день 12 | N37: Итого за 12 дней | O37: Усредненные данные в сутки | P37: Норма СанПиН
A38: Молоко | B38: 243 | C38: 135 | D38: 177 | E38: 276 | F38: 168 | G38: 165 | H38: 190 | I38: 117 | J38: 227 | K38: 220 | L38: 217 | M38: 135 | N38: =B38+C38+D38+E38+F38+H38+I38+J38+K38+L38+B39+C39+D39+E39+F39+H39+I39+J39+K39+L39+M38+M39+G38+G39 -> 3920 | O38: 326.6 | P38: 290
A39: Кисломолочные продукты | B39: 120 | C39: 200 | D39: 150 | E39: 120 | F39: 120 | G39: 120 | H39: 150 | I39: 200 | J39: 150 | K39: 120 | L39: 200
A40: сметана | B40: 7 | C40: 12 | D40: 7 | E40: 7 | G40: 12 | H40: 7 | I40: 12 | J40: 7 | K40: 7 | M40: 12 | N40: =B40+C40+D40+E40+F40+H40+I40+J40+K40+L40+M40+G40 -> 90 | O40: =N40/12 -> 7.5 | P40: 7
A41: творог | C41: 92 | F41: 50 | I41: 92 | M41: 92 | N41: =B41+C41+D41+E41+F41+H41+I41+J41+K41+L41+M41+G41 -> 326 | O41: 27.16 | P41: 22.5
A42: сыр | C42: 10 | F42: 10 | J42: 10 | M42: 10 | N42: 40 | O42: 3.3 | P42: 3.2
A43: мясо говядины | B43: 72 | C43: 22 | D43: 104 | E43: 22 | F43: 99 | G43: 74 | H43: 22 | I43: 22 | J43: 73 | K43: 22 | L43: 92 | M43: 104 | N43: 728 | O43: 60.6 | P43: 51
A44: курица | C44: 80 | I44: 74 | N44: 154 | O44: 12.83 | P44: 17
A45: рыба | E45: 97 | H45: 97 | K45: 60 | N45: 254 | O45: 21.16 | P45: 25.5
A46: колбасные | N46: 0 | O46: =N46/12 -> 0 | P46: 0
A47: яйцо | B47: 3 | C47: 5 | D47: 2 | E47: 7.5 | F47: 67 | G47: 41 | H47: 32 | I47: 45 | J47: 2 | K47: 6 | L47: 0 | M47: 5 | N47: 215.5 | O47: 17.95 | P47: 16
A48: картофель | B48: 203 | C48: 100 | D48: 195 | E48: 100 | F48: 100 | G48: 253 | H48: 53 | I48: 139 | J48: 100 | K48: 223 | L48: 100 | M48: 198 | N48: 1764 | O48: 147 | P48: 126
A49: овощи (томаты, огурцы) | B49: 43 | D49: 42 | H49: 42 | K49: 43 | N49: =B49+B50+B51+C49+C50+C51+D49+D50+D51+E49+E50+E51+F49+F50+F51+H49+H50+H51+I49+I50+I51+J49+J50+J51+K49+K50+K51+L49+L50+L51+M49+M50+M51+G49+G50+G51 -> 1360 | O49: 113.36 | P49: 192
A50: овощи (капуста) | B50: 34 | C50: 40 | D50: 55 | F50: 22 | H50: 24 | I50: 62 | J50: 108 | K50: 55 | L50: 40
A51: овощи( морковь, лук, свекла) | B51: 65 | C51: 42 | D51: 46 | E51: 83 | F51: 46 | G51: 88 | H51: 72 | I51: 52 | J51: 87 | K51: 34 | L51: 42 | M51: 93
A52: фрукты | B52: 85 | C52: 85 | D52: 14 | E52: 85 | F52: 97 | G52: 85 | H52: 89 | I52: 42 | J52: 85 | K52: 99 | L52: 115 | M52: 85 | N52: =B52+C52+D52+E52+F52+H52+I52+J52+K52+L52+M52+G52 -> 966 | O52: =N52/12 -> 80.5 | P52: 81
A53: Смесь компотная | C53: 12 | F53: 12 | J53: 12 | M53: 12 | N53: =B53+B54+C53+C54+D53+D54+E53+E54+F53+F54+H53+H54+I53+I54+J53+J54+K53+K54+L53+L54+M53+M54+G53+G54 -> 103 | O53: 8.58 | P53: 7
A54: Изюм | C54: 7 | D54: 11 | G54: 11 | H54: 6 | I54: 7 | K54: 6 | M54: 7
A55: сок | C55: 150 | D55: 150 | H55: 150 | J55: 150 | L55: 150 | M55: 150 | N55: =B55+C55+D55+E55+F55+I55+H55+J55+K55+L55+M55+G55 -> 900 | O55: =N55/12 -> 75 | P55: 75
A56: крупы | B56: 16 | C56: 20 | D56: 15 | E56: 14 | F56: 49 | G56: 24 | H56: 19 | I56: 16 | J56: 28 | K56: 14 | L56: 67 | M56: 16 | N56: =B56+C56+D56+E56+F56+I56+H56+J56+K56+L56+M56+G56 -> 298 | O56: 24.83 | P56: 22.5
A57: макароны | C57: 35 | E57: 16 | G57: 9 | J57: 9 | N57: 69 | O57: =N57/12 -> 5.75 | P57: 6
A58: соль | B58: 5 | C58: 4 | D58: 5 | E58: 4 | F58: 4 | G58: 4 | H58: 5 | I58: 3 | J58: 4 | K58: 5 | L58: 4 | M58: 2 | N58: 49 | O58: 4.08 | P58: 3
A59: Сахарный песок | B59: 32 | C59: 29 | D59: 27 | E59: 17 | F59: 29 | G59: 35 | H59: 29 | I59: 32 | J59: 29 | K59: 19 | L59: 23 | M59: 39 | N59: 340 | O59: 28.33 | P59: 28
A60: дрожжи | B60: 1 | D60: 1 | E60: 1 | H60: 1 | J60: 1 | N60: 5 | O60: 0.41 | P60: 0.3
A61: масло растительное | B61: 7 | C61: 7 | D61: 11 | E61: 8 | F61: 8 | G61: 6 | H61: 11 | I61: 7 | J61: 11 | K61: 7 | L61: 6 | M61: 5 | N61: 94 | O61: 7.83 | P61: 6.75
A62: масло сливочное | B62: 16 | C62: 17 | D62: 14 | E62: 18 | F62: 19 | G62: 14 | H62: 14 | I62: 18 | J62: 12 | K62: 11 | L62: 22 | M62: 14 | N62: 189 | O62: 15.75 | P62: 13.5
A63: Томатная паста | B63: 6 | D63: 5 | F63: 2 | H63: 6 | I63: 3 | K63: 2 | M63: 3 | N63: 27 | O63: 2.25
A64: Чай | B64: 0.5 | D64: 0.4 | E64: 0.5 | F64: 0.5 | G64: 0.4 | H64: 0.4 | K64: 0.9 | N64: 3.6 | O64: 0.3 | P64: 0.4
A65: Какао | B65: 2 | E65: 2 | I65: 2 | N65: 6 | O65: 0.5 | P65: 0.4
A66: кофейный напиток | C66: 2 | F66: 2 | J66: 2 | M66: 2 | N66: 8 | O66: 0.66 | P66: 0.75
A67: хлеб | B67: 79 | C67: 70 | D67: 70 | E67: 70 | F67: 70 | G67: 70 | H67: 70 | I67: 81 | J67: 70 | K67: 77 | L67: 70 | M67: 70 | N67: 867 | O67: 72.25 | P67: 75
A68: мука | B68: 35 | C68: 5 | D68: 42 | E68: 54 | F68: 8 | G68: 4 | H68: 45 | I68: 4 | J68: 42 | K68: 50 | M68: 5 | N68: 294 | O68: 24.5 | P68: 19
A69: кисель | B69: 14 | E69: 14 | G69: 24 | I69: 14 | M69: 24 | N69: 90 | O69: 7.5
A70: кондитерка | C70: 25 | G70: 25 | I70: 25 | L70: 25 | M70: 25 | N70: 125 | O70: 10.41 | P70: 5
A71: повидло | B71: 25 | D71: 15 | H71: 15 | K71: 15 | N71: 70 | O71: 5.83

Sheet 2 с 1 марта
B1: Меню-раскладка 2 день
A3: Наименование блюда | B3: номер рецептуры по сборнику | C3: масса порций, в гр. | E3: Пищевая ценность | K3: Энергетическая ценность | M3: Витамин С
E4: белки | G4: жиры | I4: углеводы
A5: Завтрак | C5: 1-3 года | D5: 3-7 лет | E5: 1-3 года | F5: 3-7 лет | G5: 1-3 года | H5: 3-7 лет | I5: 1-3 года | J5: 3-7 лет | K5: 1-3 года | L5: 3-7 лет | M5: 1-3 года | N5: 3-7 лет
A6: Запеканка творожная с изюмом и со сгущенкой | B6: 251 | C6: 100/20 | D6: 120/20 | E6: 8.4 | F6: 10.08 | G6: 8 | H6: 9.6 | I6: 18.62 | J6: 22.34 | K6: 154.15 | L6: 188 | M6: 0.72 | N6: 0.77
A7: творог 5% | C7: 92 | D7: 110
A8: манная крупа | C8: 6 | D8: 7
A9: молоко 2,5% | C9: 25 | D9: 30
A10: сметана 15% | C10: 5 | D10: 6
A11: яйцо куриное | C11: 5 | D11: 6
A12: сахарный песок | C12: 9 | D12: 11
A13: масло сливочное 72,5% | C13: 5 | D13: 6
A14: изюм | C14: 7 | D14: 8
A15: молоко сгущенное | C15: 20 | D15: 20
A16: сухари | C16: 5 | D16: 6
A18: Кофейный напиток с молоком | B18: 414 | C18: 180 | D18: 200 | E18: 2.52 | F18: 2.8 | G18: 2.59 | H18: 2.87 | I18: 13.68 | J18: 15.2 | K18: 87.14 | L18: 96.82 | M18: 1.17 | N18: 1.75
A19: кофейный напиток | C19: 2 | D19: 3
A20: сахарный песок | C20: 11 | D20: 12
A21: молоко 2,5% | C21: 90 | D21: 100
A22: вода | C22: 108 | D22: 120
A24: Бутерброд с маслом и сыром | B24: 3 | C24: 55 | D24: 70 | E24: 5.8 | F24: 7.89 | G24: 6.67 | H24: 8.1 | I24: 19.65 | J24: 24.64 | K24: 143.62 | L24: 182.71 | M24: 0.02 | N24: 0.04
A25: батон | C25: 40 | D25: 50
A26: масло сливочное 72,5% | C26: 5 | D26: 5
A27: сыр твердый | C27: 10 | D27: 15
A28: Итого: | E28: =E24+E18+E6 -> 16.72 | F28: =F24+F18+F6 -> 20.77 | G28: 17.26 | H28: 20.57 | I28: 51.95 | J28: 62.18 | K28: 384.91 | L28: 467.53 | M28: 1.91 | N28: 2.56
A30: 2-ой завтрак
A31: Сок | B31: 418 | C31: 150 | D31: 150 | E31: 0.75 | F31: 0.75 | G31: 0 | H31: 0 | I31: 8.99 | J31: 8.99 | K31: 61.56 | L31: 61.56 | M31: 3.24 | N31: 3.24
A32: Фрукт | C32: 85 | D32: 85 | E32: 1.2 | F32: 1.2 | G32: 0.12 | H32: 0.12 | I32: 5.18 | J32: 5.18 | K32: 21.77 | L32: 21.77 | M32: 0.1 | N32: 0.1
A33: Итого: | E33: =E32+E31 -> 1.95 | F33: =F32+F31 -> 1.95 | G33: 0.12 | H33: 0.12 | I33: 14.17 | J33: 14.17 | K33: 83.33 | L33: 83.33 | M33: 3.34 | N33: 3.34
A35: Обед
A36: Винегрет овощной | B36: 67 | C36: 40 | D36: 60 | E36: 1.12 | F36: 1.68 | G36: 2.46 | H36: 3.7 | I36: 2.31 | J36: 3.468 | K36: 42.48 | L36: 53.11 | M36: 10 | N36: 15
A37: картофель | C37: 24/15 | D37: 36/22
A38: морковь | C38: 5/4 | D38: 8/7
A39: свекла | C39: 9/7 | D39: 13/10
A40: лук репчатый | C40: 7/5 | D40: 10/8
A41: огурцы соленые | C41: 8/7 | D41: 12/11
A42: масло растительное | C42: 4 | D42: 6
A43: соль пищевая | C43: 1 | D43: 1
A45: Суп крестьянский на мкб со сметаной | B45: 98 | C45: 180/10/7 | D45: 200/12/8 | E45: 5.32 | F45: 6.95 | G45: 4.26 | H45: 5.75 | I45: 16.28 | J45: 17.14 | K45: 128.52 | L45: 143.52 | M45: 11.87 | N45: 12.02
A46: Мясо говядины на кости | C46: 22/16 | D46: 25/19
A47: Картофель | C47: 100/60 | D47: 111/67
A48: Морковь | C48: 11/9 | D48: 12/10
A49: Лук репчатый | C49: 17/14 | D49: 18/15
A50: крупа перловая | C50: 9 | D50: 10
A51: Масло растительное | C51: 2 | D51: 3
A52: Вода | C52: 135 | D52: 150
A53: Соль | C53: 1 | D53: 1
A54: Сметана 15% | C54: 7 | D54: 8
A56: Макароны отварные со сливочным маслом | B56: 335 | C56: 100 | D56: 150 | E56: 3.32 | F56: 4.25 | G56: 3.69 | H56: 5.11 | I56: 24.46 | J56: 29.45 | K56: 120.4 | L56: 180.6 | M56: 0 | N56: 0
A57: макаронные изделия | C57: 35 | D57: 52
A58: масло сливочное 72,5% | C58: 5 | D58: 8
A59: соль | C59: 2 | D59: 3
A61: Кнели куриные | B61: 329 | C61: 60 | D61: 75 | E61: 5.54 | F61: 8.1 | G61: 3.72 | H61: 4.65 | I61: 3.85 | J61: 4.81 | K61: 117.5 | L61: 146.87 | M61: 3.62 | N61: 4.53
A62: курица | C62: 80/57 | D62: 100/71
A63: крупа рисовая | C63: 5 | D63: 6
A64: вода | C64: 6 | D64: 7
A65: мука пшеничная в/с | C65: 2 | D65: 3
A66: лук репчатый | C66: 7/6 | D66: 9/7
A67: соль | C67: 1 | D67: 1
A68: яйцо куриное | C68: 1 | D68: 1
A69: масло растительное | C69: 1 | D69: 1
A71: Хлеб ржано -пшеничный | C71: 30 | D71: 50 | E71: 1.91 | F71: 3.19 | G71: 0.24 | H71: 0.4 | I71: 12.43 | J71: 20.71 | K71: 52.61 | L71: 87.68 | M71: 0 | N71: 0
A73: Компот из сухофруктов | B73: 394 | C73: 120 | D73: 150 | E73: 0.03 | F73: 0.04 | I73: 11.32 | J73: 13.4 | K73: 45.42 | L73: 53.79 | M73: 0.024 | N73: 0.03
A74: Смесь компотная | C74: 12 | D74: 15
A75: сахарный песок | C75: 7 | D75: 9
A76: вода | C76: 124 | D76: 157
A78: Итого: | E78: =E73+E71+E61+E56+E45+E36 -> 17.24 | F78: 24.21 | G78: 14.37 | H78: 19.61 | I78: 70.65 | J78: 88.978 | K78: 506.93 | L78: 665.57 | M78: 25.514 | N78: 31.58
A80: Полдник
A81: Кисломолочный напиток | B81: 420 | C81: 200 | D81: 200 | E81: 5.2 | F81: 5.2 | G81: 5 | H81: 5 | I81: 8 | J81: 8 | K81: 88.2 | L81: 88.2 | M81: 0 | N81: 0
A82: Кондитерское изделие | C82: 25 | D82: 50 | E82: 0.64 | F82: 1.29 | G82: 0.56 | H82: 1.13 | I82: 13.24 | J82: 26.48 | K82: 69.26 | L82: 138.52 | M82: 0.13 | N82: 0.26
A83: Итого: | E83: =E82+E81 -> 5.84 | F83: 6.49 | G83: 5.56 | H83: 6.13 | I83: 21.24 | J83: 34.48 | K83: 157.46 | L83: 226.72 | M83: 0.13 | N83: 0.26
A84: Итого за 1 день: | E84: =E83+E78+E33+E28 -> 41.75 | F84: =F83+F78+F33+F28 -> 53.42 | G84: =G83+G78+G33+G28 -> 37.31 | H84: 46.47 | I84: =I83+I78+I33+I28 -> 158.01 | J84: 199.808 | K84: 1132.63 | L84: 1443.15 | M84: 30.894 | N84: 37.74

Sheet 3 с 1 марта
B1: Меню-раскладка 3 день
A3: Наименование блюда | B3: номер рецептуры по сборнику | C3: масса порций, в гр. | E3: Пищевая ценность | K3: Энергетическая ценность | M3: Витамин С
E4: белки | G4: жиры | I4: углеводы
A5: Завтрак | C5: 1-3 года | D5: 3-7 лет | E5: 1-3 года | F5: 3-7 лет | G5: 1-3 года | H5: 3-7 лет | I5: 1-3 года | J5: 3-7 лет | K5: 1-3 года | L5: 3-7 лет | M5: 1-3 года | N5: 3-7 лет
A6: каша манная молочная со сливочным маслом | B6: 199 | C6: 150/5/5 | D6: 180/7/7 | E6: 4.83 | F6: 5.8 | G6: 8.13 | H6: 10.46 | I6: 15.63 | J6: 21.27 | K6: 126.72 | L6: 185.85 | M6: 1.79 | N6: 2.14
A7: крупа манная | C7: 15 | D7: 18
A8: молоко 2,5% | C8: 125 | D8: 150
A9: сахарный песок | C9: 5 | D9: 7
A10: соль | C10: 1 | D10: 1
A11: масло сливочное 72,5% | C11: 5 | D11: 7
A12: Вода | C12: 18 | D12: 22
A14: Чай сладкий с молоком | B14: 413 | C14: 150 | D14: 200 | E14: 2.03 | F14: 2.71 | G14: 2.32 | H14: 3.1 | I14: 12.18 | J14: 16.24 | K14: 79.23 | L14: 105.65 | M14: 0.94 | N14: 1.26
A15: Чай заварка | C15: 0.4 | D15: 0.5
A16: Сахарный песок | C16: 9 | D16: 12
A17: вода | C17: 120 | D17: 160
A18: Молоко 2,5% | C18: 40 | D18: 54
A20: Бутерброд с повидлом | B20: 2 | C20: 60 | D20: 75 | E20: 2.47 | F20: 3.28 | G20: 3.5 | H20: 3.7 | I20: 24.29 | J20: 31.57 | K20: 128.12 | L20: 144.13 | M20: 0.07 | N20: 0.1
A21: батон | C21: 40 | D21: 50
A22: масло сливочное 72,5% | C22: 5 | D22: 5
A23: повидло | C23: 15 | D23: 20
A24: Итого: | E24: =E20+E14+E6 -> 9.33 | F24: =F20+F14+F6 -> 11.79 | G24: 13.95 | H24: 17.26 | I24: 52.1 | J24: 69.08 | K24: 334.07 | L24: 435.63 | M24: 2.8 | N24: 3.5
A26: 2-ой завтрак
A27: Сок | B27: 418 | C27: 150 | D27: 150 | E27: 0.75 | F27: 0.75 | G27: 0 | H27: 0 | I27: 8.99 | J27: 8.99 | K27: 61.56 | L27: 61.56 | M27: 3.24 | N27: 3.24
A28: Итого: | E28: =E27 -> 0.75 | F28: 0.75 | G28: 0 | H28: 0 | I28: 8.99 | J28: 8.99 | K28: 61.56 | L28: 61.56 | M28: 3.24 | N28: 3.24
A30: Обед
A31: Зеленый горошек консервированный | B31: 10 | C31: 40 | D31: 60 | E31: 1.17 | F31: 1.76 | G31: 2.07 | H31: 3.11 | I31: 2.47 | J31: 3.7 | K31: 33.25 | L31: 49.88 | M31: 3.8 | N31: 5.7
A32: горошек консервированный | C32: 46/38 | D32: 69/57
A33: масло растительное | C33: 2 | D33: 3
A35: Щи из свежей капусты с картофелем со сметаной на мкб | B35: 73 | C35: 180/10/7 | D35: 200/12/8 | E35: 4.48 | F35: 6.14 | G35: 5.09 | H35: 7.08 | I35: 6.82 | J35: 7.53 | K35: 109 | L35: 140.9 | M35: 21.86 | N35: 24.21
A36: говядина на кости | C36: 22/16 | D36: 25/19
A37: капуста белокочанная | C37: 55/44 | D37: 61/49
A38: картофель | C38: 73/44 | D38: 81/49
A39: морковь свежая | C39: 11/9 | D39: 12/10
A40: лук репчатый | C40: 9/7 | D40: 10/8
A41: томатная паста | C41: 2 | D41: 2
A42: соль | C42: 1 | D42: 1
A43: масло растительное | C43: 2 | D43: 3
A44: вода | C44: 144 | D44: 160
A45: сметана 15% | C45: 7 | D45: 8
A47: Жаркое по домашнему из говядины | B47: 290 | C47: 160 | D47: 190 | E47: 15.36 | F47: 19.43 | G47: 8.58 | H47: 10.75 | I47: 20.1 | J47: 28.87 | K47: 257.6 | L47: 305.9 | M47: 23.92 | N47: 28.4
A48: Мясо говядины на кости | C48: 82/60 | D48: 90/66
A49: Картофель | C49: 122/73 | D49: 145/87
A50: Лук репчатый | C50: 11/9 | D50: 13/11
A51: Морковь свежая | C51: 20/17 | D51: 24/19
A52: Масло сливочное 72,5% | C52: 4 | D52: 5
A53: Томатная паста | C53: 3 | D53: 4
A54: Вода | C54: 76 | D54: 90
A55: Соль | C55: 1 | D55: 1
A57: Хлеб ржано -пшеничный | C57: 30 | D57: 50 | E57: 1.91 | F57: 3.19 | G57: 0.24 | H57: 0.4 | I57: 12.43 | J57: 20.71 | K57: 52.61 | L57: 87.68 | M57: 0 | N57: 0
A59: Компот из яблок и изюма | B59: 390 | C59: 120 | D59: 150 | E59: 0.17 | F59: 0.21 | G59: 0.05 | H59: 0.06 | I59: 15.13 | J59: 18.92 | K59: 51.7 | L59: 64.62 | M59: 1.76 | N59: 2.21
A60: Яблоки | C60: 14/11 | D60: 17/14
A61: Изюм | C61: 6 | D61: 8
A62: Сахарный песок | C62: 7 | D62: 9
A63: Вода | C63: 122 | D63: 152
A65: Итого: | E65: =E59+E57+E47+E35+E31 -> 23.09 | F65: 30.73 | G65: 16.03 | H65: 21.4 | I65: 56.95 | J65: 79.73 | K65: 504.16 | L65: 648.98 | M65: 51.34 | N65: 60.52
A67: Полдник
A68: Булочка домашняя | B68: 452 | C68: 60 | D68: 60 | E68: 4.86 | F68: 4.86 | G68: 5.3 | H68: 5.3 | I68: 36.8 | J68: 36.8 | K68: 188.32 | L68: 188.32 | M68: 0.15 | N68: 0.15
A69: Для теста: | B69: 436 | C69: 70 | D69: 70
A70: мука в/с | C70: 40 | D70: 40
A71: молоко 72,5% | C71: 12 | D71: 12
A72: вода | C72: 7 | D72: 7
A73: масло растительное | C73: 6 | D73: 6
A74: соль | C74: 1 | D74: 1
A75: дрожжи сухие | C75: 1 | D75: 1
A76: сахарный песок | C76: 6 | D76: 6
A77: яйцо куриное | C77: 2 | D77: 2
A79: мука в/с | C79: 2 | D79: 2
A80: масло растительное | C80: 1 | D80: 1
A82: Кисломолочный напиток | B82: 420 | C82: 150 | D82: 200 | E82: 3.9 | F82: 5.2 | G82: 3.37 | H82: 4.5 | I82: 5.67 | J82: 7.56 | K82: 65.9 | L82: 87.86 | M82: 0.4 | N82: 0.54
A84: Итого: | E84: =E82+E68 -> 8.76 | F84: 10.06 | G84: 8.67 | H84: 9.8 | I84: 42.47 | J84: 44.36 | K84: 254.22 | L84: 276.18 | M84: 0.55 | N84: 0.69
A86: Итого за 1 день: | E86: =E84+E65+E28+E24 -> 41.93 | F86: 53.33 | G86: 38.65 | H86: 48.46 | I86: 160.51 | J86: 202.16 | K86: 1154.01 | L86: 1422.35 | M86: 57.93 | N86: 67.95

Sheet 5 с 1 марта
B1: Меню раскладка 5 день:
A3: Наименование блюда | B3: номер рецептуры по сборнику | C3: масса порций, в гр. | E3: Пищевая ценность | K3: Энергетическая ценность | M3: Витамин С
E4: белки | G4: жиры | I4: углеводы
A5: Завтрак | C5: 1-3 года | D5: 3-7 лет | E5: 1-3 года | F5: 3-7 лет | G5: 1-3 года | H5: 3-7 лет | I5: 1-3 года | J5: 3-7 лет | K5: 1-3 года | L5: 3-7 лет | M5: 1-3 года | N5: 3-7 лет
A6: Омлет натуральный со сливочным маслом | B6: 229 | C6: 120/5 | D6: 150/5 | E6: 6.15 | F6: 7.68 | G6: 7.6 | H6: 9.5 | I6: 15.42 | J6: 19.27 | K6: 146.7 | L6: 184.5 | M6: 0.88 | N6: 1.1
A7: яйцо куриное | C7: 65 | D7: 80
A8: молоко 2,5% | C8: 68 | D8: 85
A9: масло сливочное 72,5% | C9: 6 | D9: 8
A10: соль | C10: 1 | D10: 1
A12: Кофейный напиток с молоком | B12: 414 | C12: 180 | D12: 200 | E12: 2.52 | F12: 2.8 | G12: 2.59 | H12: 2.87 | I12: 13.68 | J12: 15.2 | K12: 87.14 | L12: 96.82 | M12: 1.17 | N12: 1.75
A13: кофейный напиток | C13: 2 | D13: 3
A14: сахарный песок | C14: 11 | D14: 12
A15: молоко 2,5% | C15: 90 | D15: 100
A16: вода | C16: 108 | D16: 120
A18: Бутерброд с маслом и сыром | B18: 3 | C18: 55 | D18: 70 | E18: 5.8 | F18: 7.89 | G18: 6.67 | H18: 8.1 | I18: 19.65 | J18: 24.64 | K18: 143.62 | L18: 182.71 | M18: 0.02 | N18: 0.04
A19: батон | C19: 40 | D19: 50 | E19: 8 | F19: 7.89
A20: масло сливочное 72,5% | C20: 5 | D20: 5
A21: сыр твердый | C21: 10 | D21: 15
A22: Итого: | E22: =E18+E12+E6 -> 14.47 | F22: =F18+F12+F6 -> 18.37 | G22: 16.86 | H22: 20.47 | I22: 48.75 | J22: 59.11 | K22: 377.46 | L22: 464.03 | M22: 2.07 | N22: 2.89
A24: 2-ой завтрак
A25: Кисломолочный напиток | B25: 420 | C25: 120 | D25: 150 | E25: 3.12 | F25: 3.9 | G25: 3 | H25: 3.75 | I25: 4.8 | J25: 6 | K25: 52.92 | L25: 66.15 | M25: 0 | N25: 0
A26: Фрукт | C26: 85 | D26: 85 | E26: 1.44 | F26: 1.44 | G26: 0.17 | H26: 0.17 | I26: 6.88 | J26: 6.88 | K26: 32.13 | L26: 32.13 | M26: 51 | N26: 51
A27: Итого: | E27: =E26+E25 -> 4.56 | F27: 5.34 | G27: 3.17 | H27: 3.92 | I27: 11.68 | J27: 12.88 | K27: 85.05 | L27: 98.28 | M27: 51 | N27: 51
A29: Обед
A30: Салат картофельный с солеными огурцами | B30: 23 | C30: 40 | D30: 60 | E30: 0.46 | F30: 0.7 | G30: 2.04 | H30: 3.06 | I30: 4.43 | J30: 6.65 | K30: 42.4 | L30: 63.6 | M30: 0 | N30: 0
A31: картофель | C31: 27/16 | D31: 40//24
A32: огурцы соленые | C32: 9/8 | D32: 13/12
A33: лук репчатый | C33: 5/4 | D33: 7/6
A34: яйцо куриное | C34: 4 | D34: 6
A35: Морковь | C35: 6/4 | D35: 9/6
A36: Масло растительное | C36: 4 | D36: 6
A37: соль | C37: 1 | D37: 1
A39: Суп картофельный с бобовыми (гороховый) на мкб | B39: 87 | C39: 180/10 | D39: 200/12 | E39: 5.48 | F39: 6.11 | G39: 4.87 | H39: 8.24 | I39: 11.87 | J39: 17.1 | K39: 117.31 | L39: 130.89 | M39: 6.8 | N39: 9.1
A40: мясо говядины на кости | C40: 22/16 | D40: 25/19
A41: горох | C41: 14 | D41: 15
A42: картофель | C42: 100/60 | D42: 111/67
A43: лук репчатый | C43: 8/6 | D43: 9/7
A44: морковь | C44: 9/7 | D44: 10/8
A45: масло растительное | C45: 2 | D45: 3
A46: вода | C46: 130 | D46: 145
A47: соль | C47: 1 | D47: 1
A49: Каша гречневая со сливочным маслом | B49: 330 | C49: 100 | D49: 130 | E49: 4.45 | F49: 5.85 | G49: 4.78 | H49: 6.59 | I49: 25.8 | J49: 33.54 | K49: 148 | L49: 197.37 | M49: 0 | N49: 0
A50: Гречневая крупа | C50: 35 | D50: 46
A51: Соль | C51: 1 | D51: 1
A52: масло сливочное 72,5% | C52: 5 | D52: 7
A54: Гуляш из говядины | B54: 293 | C54: 35/35 | D54: 40/40 | E54: 5.96 | F54: 6.92 | G54: 5 | H54: 5.71 | I54: 14.77 | J54: 16.88 | K54: 157.3 | L54: 187.56 | M54: 1.19 | N54: 1
A55: мясо говядины на кости | C55: 77/57 | D55: 88/65
A56: морковь | C56: 14/12 | D56: 16/14
A57: лук репчатый | C57: 7/5 | D57: 12/10
A58: масло сливочное 72,5% | C58: 3 | D58: 4
A59: томатная паста | C59: 2 | D59: 3
A60: мука в/с | C60: 2 | D60: 3
A61: соль | C61: 1 | D61: 1
A62: вода | C62: 23 | D62: 26
A64: Хлеб ржано -пшеничный | C64: 30 | D64: 50 | E64: 1.91 | F64: 3.19 | G64: 0.24 | H64: 0.4 | I64: 12.43 | J64: 20.71 | K64: 52.61 | L64: 87.68 | M64: 0 | N64: 0
A66: Компот из сухофруктов | B66: 394 | C66: 120 | D66: 150 | E66: 0.03 | F66: 0.04 | I66: 11.32 | J66: 13.4 | K66: 45.42 | L66: 53.79 | M66: 0.024 | N66: 0.03
A67: Смесь компотная | C67: 12 | D67: 15
A68: сахарный песок | C68: 7 | D68: 9
A69: вода | C69: 124 | D69: 157
A70: Итого: | E70: =E66+E64+E54+E49+E39+E30 -> 18.29 | F70: 22.81 | G70: 16.93 | H70: 24 | I70: 80.62 | J70: 108.28 | K70: 563.04 | L70: 720.89 | M70: 8.014 | N70: 10.13
A72: Полдник
A73: Сырники из творога | B73: 245 | C73: 50/10 | D73: 80/20 | E73: 4.2 | F73: 6.72 | G73: 2.33 | H73: 2.73 | I73: 8.93 | J73: 14.28 | K73: 74.7 | L73: 122.3 | M73: 0.22 | N73: 0.36
A74: Творог 5% | C74: 51/50 | D74: 82/80
A75: Мука в/с | C75: 6 | D75: 10
A76: Сахарный песок | C76: 5 | D76: 8
A77: Соль | C77: 1 | D77: 1
A78: Яйцо куриное | C78: 2 | D78: 3
A79: молоко сгущенное | C79: 10 | D79: 20
A80: масло растительное | C80: 2 | D80: 4
A82: Чай с сахаром | B82: 411 | C82: 150/9 | D82: 200/12 | E82: 0.11 | F82: 0.15 | G82: 0.03 | H82: 0.04 | I82: 9.1 | J82: 12.13 | K82: 41.37 | L82: 55.16 | M82: 0.075 | N82: 0.1
A83: Чай заварка (сухая) | C83: 0.5 | D83: 0.7
A84: Сахарный песок | C84: 9 | D84: 12
A85: вода | C85: 157 | D85: 210
A86: Итого: | E86: =E82+E73 -> 4.31 | F86: 6.87 | G86: 2.36 | H86: 2.77 | I86: 18.03 | J86: 26.41 | K86: 116.07 | L86: 177.46 | M86: 0.295 | N86: 0.46
A87: Итого за 1 день: | E87: =E86+E70+E27+E22 -> 41.63 | F87: 53.39 | G87: 39.32 | H87: 51.16 | I87: 159.08 | J87: 206.68 | K87: 1141.62 | L87: 1460.66 | M87: 61.379 | N87: 64.48

Sheet 7 с 1 марта
B1: Меню раскладка 7 день
A3: Наименование блюда | B3: номер рецептуры по сборнику | C3: масса порций, в гр. | E3: Пищевая ценность | K3: Энергетическая ценность | M3: Витамин С
E4: белки | G4: жиры | I4: углеводы
A5: Завтрак | C5: 1-3 года | D5: 3-7 лет | E5: 1-3 года | F5: 3-7 лет | G5: 1-3 года | H5: 3-7 лет | I5: 1-3 года | J5: 3-7 лет | K5: 1-3 года | L5: 3-7 лет | M5: 1-3 года | N5: 3-7 лет
A6: Каша молочная геркулесовая со сливочным маслом | B6: 199 | C6: 150/5/5 | D6: 180/7/7 | E6: 5.49 | F6: 5.8 | G6: 8.52 | H6: 9.99 | I6: 20.62 | J6: 26.14 | K6: 192.33 | L6: 222.44 | M6: 1.52 | N6: 1.75
A7: Овсяные хлопья "геркулес" | C7: 19 | D7: 22
A8: молоко 2,5% | C8: 125 | D8: 150
A9: вода | C9: 18 | D9: 22
A10: сахарный песок | C10: 5 | D10: 7
A11: соль | C11: 1 | D11: 1
A12: масло сливочное 72,5% | C12: 5 | D12: 7
A14: Чай сладкий с молоком | B14: 413 | C14: 150 | D14: 200 | E14: 2.03 | F14: 2.71 | G14: 2.32 | H14: 3.1 | I14: 12.18 | J14: 16.24 | K14: 79.23 | L14: 105.65 | M14: 0.94 | N14: 1.26
A15: Чай заварка | C15: 0.4 | D15: 0.5
A16: Сахарный песок | C16: 9 | D16: 12
A17: вода | C17: 120 | D17: 160
A18: Молоко 2,5% | C18: 40 | D18: 54
A20: Бутерброд с повидлом | B20: 2 | C20: 60 | D20: 75 | E20: 2.47 | F20: 3.28 | G20: 3.5 | H20: 3.7 | I20: 24.29 | J20: 31.57 | K20: 128.12 | L20: 144.13 | M20: 0.07 | N20: 0.1
A21: батон | C21: 40 | D21: 50
A22: масло сливочное 72,5% | C22: 5 | D22: 5
A23: повидло | C23: 15 | D23: 20
A24: Итого: | E24: =E20+E14+E6 -> 9.99 | F24: =F20+F14+F6 -> 11.79 | G24: 14.34 | H24: 16.79 | I24: 57.09 | J24: 73.95 | K24: 399.68 | L24: 472.22 | M24: 2.53 | N24: 3.11
A26: 2-ой завтрак
A27: Сок | B27: 418 | C27: 150 | D27: 150 | E27: 0.75 | F27: 0.75 | G27: 0 | H27: 0 | I27: 8.99 | J27: 8.99 | K27: 61.56 | L27: 61.56 | M27: 3.24 | N27: 3.24
A28: Фрукт | C28: 85 | D28: 85 | E28: 0.72 | F28: 0.72 | G28: 0.2 | H28: 0.2 | I28: 6.48 | J28: 6.48 | K28: 34.4 | L28: 34.4 | M28: 48 | N28: 48
A29: Итого: | E29: =E27+E28 -> 1.47 | F29: =F27+F28 -> 1.47 | G29: 0.2 | H29: 0.2 | I29: 15.47 | J29: 15.47 | K29: 95.96 | L29: 95.96 | M29: 51.24 | N29: 51.24
A31: Обед
A32: Салат из припущенной моркови с яблоками | B32: 42 | C32: 40 | D32: 60 | E32: 0.49 | F32: 0.73 | G32: 4.06 | H32: 6.09 | I32: 4.49 | J32: 6.73 | K32: 52.48 | L32: 78.72 | M32: 2.8 | N32: 3.12
A33: Морковь свежая | C33: 38/28 | D33: 57/42
A34: яблоки | C34: 10/8 | D34: 14/12
A35: масло растительное | C35: 4 | D35: 6
A36: соль | C36: 1 | D36: 1
A37: сахарный песок | C37: 1 | D37: 1
A39: Борщ с капустой и картофелем со сметаной на мкб | B39: 63 | C39: 180/10/7 | D39: 200/12/8 | E39: 4.69 | F39: 5.23 | G39: 4.51 | H39: 5.03 | I39: 7.17 | J39: 10.58 | K39: 117.34 | L39: 136.82 | M39: 11.22 | N39: 14.3
A40: говядина на кости | C40: 22/16 | D40: 25/19
A41: свекла | C41: 40/29 | D41: 44/32
A42: капуста белокочанная | C42: 34/28 | D42: 36/30
A43: картофель | C43: 53/32 | D43: 61/37
A44: морковь свежая | C44: 12/9 | D44: 14/11
A45: лук репчатый | C45: 8/7 | D45: 9/8
A46: томатная паста | C46: 6 | D46: 7
A47: сахарный песок | C47: 2 | D47: 2
A48: соль | C48: 1 | D48: 1
A49: масло растительное | C49: 2 | D49: 3
A50: вода | C50: 144 | D50: 160
A51: сметана 15% | C51: 7 | D51: 8
A53: Рыба, запеченная в омлете | B53: 263 | C53: 120 | D53: 150 | E53: 13.72 | F53: 17.15 | G53: 7.52 | H53: 9.4 | I53: 8.58 | J53: 11.72 | K53: 152.96 | L53: 191.2 | M53: 1.65 | N53: 2.06
A54: минтай св\мор | C54: 97/83 | D54: 121/103
A55: мука в/с | C55: 4 | D55: 5
A56: яйцо куриное | C56: 30 | D56: 38
A57: молоко 2,5% | C57: 12 | D57: 15
A58: масло сливочное 72,5% | C58: 4 | D58: 5
A59: соль | C59: 1 | D59: 1
A61: Хлеб ржано -пшеничный | C61: 30 | D61: 50 | E61: 1.91 | F61: 3.19 | G61: 0.24 | H61: 0.4 | I61: 12.43 | J61: 20.71 | K61: 52.61 | L61: 87.68 | M61: 0 | N61: 0
A63: Компот из яблок и изюма | B63: 390 | C63: 120 | D63: 150 | E63: 0.17 | F63: 0.21 | G63: 0.05 | H63: 0.06 | I63: 15.13 | J63: 18.92 | K63: 51.7 | L63: 64.62 | M63: 1.76 | N63: 2.21
A64: Яблоки | C64: 14/11 | D64: 17/14
A65: Изюм | C65: 6 | D65: 8
A66: Сахарный песок | C66: 7 | D66: 9
A67: Вода | C67: 122 | D67: 152
A68: Итого: | E68: =E63+E61+E53+E39+E32 -> 20.98 | F68: 26.51 | G68: 16.38 | H68: 20.98 | I68: 47.8 | J68: 68.66 | K68: 427.09 | L68: 559.04 | M68: 17.43 | N68: 21.69
A70: Полдник
A71: Слойка с сахаром | B71: 441 | C71: 60 | D71: 60 | E71: 4.86 | F71: 4.86 | G71: 7.3 | H71: 7.3 | I71: 38.8 | J71: 38.8 | K71: 202.5 | L71: 202.5 | M71: 0.15 | N71: 0.15
A72: Для теста: | B72: 436 | C72: 60 | D72: 60
A73: мука в/с | C73: 39 | D73: 39
A74: молоко 2,5% | C74: 13 | D74: 13
A75: вода | C75: 6 | D75: 6
A76: масло растительное | C76: 4 | D76: 4
A77: соль | C77: 1 | D77: 1
A78: дрожжи сухие | C78: 1 | D78: 1
A79: сахарный песок | C79: 1 | D79: 1
A80: яйцо куриное | C80: 2 | D80: 2
A82: сахарный песок | C82: 5 | D82: 5
A83: Масло растительное | C83: 2 | D83: 2
A85: мука в/с | C85: 2 | D85: 2
A86: масло растительное | C86: 1 | D86: 1
A88: Кисломолочный напиток | B88: 420 | C88: 150 | D88: 200 | E88: 3.9 | F88: 5.2 | G88: 3.37 | H88: 4.5 | I88: 5.67 | J88: 7.56 | K88: 65.9 | L88: 87.86 | M88: 0.4 | N88: 0.54
A89: Итого: | E89: =E88+E71 -> 8.76 | F89: =F88+F71 -> 10.06 | G89: 10.67 | H89: 11.8 | I89: 44.47 | J89: 46.36 | K89: 268.4 | L89: 290.36 | M89: 0.55 | N89: 0.69
A91: Итого за 1 день: | E91: =E89+E68+E29+E24 -> 41.2 | F91: 49.83 | G91: 41.59 | H91: 49.77 | I91: 164.83 | J91: 204.44 | K91: 1191.13 | L91: 1417.58 | M91: 71.75 | N91: 76.73

Sheet 8 с 1 марта
B1: Меню-раскладка 8 день
A3: Наименование блюда | B3: номер рецептуры по сборнику | C3: масса порций, в гр. | E3: Пищевая ценность | K3: Энергетическая ценность | M3: Витамин С
E4: белки | G4: жиры | I4: углеводы
A5: Завтрак | C5: 1-3 года | D5: 3-7 лет | E5: 1-3 года | F5: 3-7 лет | G5: 1-3 года | H5: 3-7 лет | I5: 1-3 года | J5: 3-7 лет | K5: 1-3 года | L5: 3-7 лет | M5: 1-3 года | N5: 3-7 лет
A6: Запеканка творожная с изюмом и со сгущенкой | B6: 251 | C6: 100/20 | D6: 120/20 | E6: 8.4 | F6: 10.08 | G6: 6 | H6: 6.5 | I6: 17.62 | J6: 19.02 | K6: 154.15 | L6: 188 | M6: 0.72 | N6: 0.77
A7: творог 5% | C7: 92 | D7: 110
A8: манная крупа | C8: 6 | D8: 7
A9: молоко 2,5% | C9: 25 | D9: 30
A10: сметана 15% | C10: 5 | D10: 6
A11: яйцо куриное | C11: 5 | D11: 6
A12: сахарный песок | C12: 9 | D12: 11
A13: масло сливочное 72,5% | C13: 5 | D13: 6
A14: изюм | C14: 7 | D14: 8
A15: молоко сгущенное | C15: 20 | D15: 20
A16: сухари | C16: 5 | D16: 6
A18: Какао с молоком | B18: 416 | C18: 150 | D18: 200 | E18: 3.06 | F18: 4.08 | G18: 2.96 | H18: 3.94 | I18: 12.47 | J18: 16.6 | K18: 87.6 | L18: 116.8 | M18: 1.07 | N18: 1.42
A19: какао | C19: 2 | D19: 2
A20: сахарный песок | C20: 9 | D20: 12
A21: молоко 2,5% | C21: 92 | D21: 122
A22: вода | C22: 65 | D22: 87
A24: Бутерброд с маслом | B24: 1 | C24: 40/10 | D24: 50/10 | E24: 2.91 | F24: 3.62 | G24: 5.88 | H24: 5.97 | I24: 17.43 | J24: 21.8 | K24: 143 | L24: 164.33 | M24: 0 | N24: 0
A25: батон | C25: 40 | D25: 50
A26: масло сливочное 72,5% | C26: 10 | D26: 10
A28: Яйцо отварное | B28: 227 | C28: 40 | D28: 40 | E28: 4.41 | F28: 4.41 | G28: 2.72 | H28: 2.72 | I28: 0.22 | J28: 0.22 | K28: 40.6 | L28: 40.6 | M28: 0 | N28: 0
A29: Итого: | E29: =E24+E18+E6+E28 -> 18.78 | F29: 22.19 | G29: 17.56 | H29: 19.13 | I29: 47.74 | J29: 57.64 | K29: 425.35 | L29: 509.73 | M29: 1.79 | N29: 2.19
A31: 2-ой завтрак
A32: Кисель | B32: 359 | C32: 120 | D32: 150 | E32: 0 | F32: 0 | G32: 0 | H32: 0 | I32: 19.44 | J32: 21.77 | K32: 71.28 | L32: 87.48 | M32: 0 | N32: 0
A33: Кисель концентрат | C33: 14 | D33: 18
A34: сахарный песок | C34: 8 | D34: 10
A35: вода | C35: 120 | D35: 150
A37: Итого: | E37: =E36+E32 -> 0 | F37: 0 | G37: 0 | H37: 0 | I37: 19.44 | J37: 21.77 | K37: 71.28 | L37: 87.48 | M37: 0 | N37: 0
A38: Обед
A39: Огурцы соленые | B39: 70 | C39: 40 | D39: 60 | E39: 0.45 | F39: 0.67 | G39: 2.43 | H39: 3.64 | I39: 4.9 | J39: 7.35 | K39: 43.3 | L39: 64.95 | M39: 1.44 | N39: 2.16
A40: Огурцы соленые | C40: 43/40 | D40: 64/60
A42: Суп картофельный с крупой ( гречневый ) на мкб со сметаной | B42: 86 | C42: 180/10/7 | D42: 200/12/8 | E42: 4.58 | F42: 6.18 | G42: 5.78 | H42: 6.8 | I42: 18.84 | J42: 23.1 | K42: 133.91 | L42: 156.6 | M42: 7.87 | N42: 8.82
A43: Мясо говядины на кости | C43: 22/16 | D43: 25/19
A44: картофель | C44: 76/46 | D44: 82/50
A45: лук репчатый | C45: 4/3 | D45: 5/4
A46: морковь свежая | C46: 9/7 | D46: 10/8
A47: крупа гречневая | C47: 10 | D47: 12
A48: масло растительное | C48: 2 | D48: 3
A49: вода | C49: 180 | D49: 200
A50: соль | C50: 1 | D50: 1
A51: сметана 15% | C51: 7 | D51: 8
A53: Рагу овощное | B53: 362 | C53: 100 | D53: 150 | E53: 1.66 | F53: 2.49 | G53: 3.86 | H53: 5.8 | I53: 12.38 | J53: 14.07 | K53: 85.78 | L53: 128.67 | M53: 20.6 | N53: 31
A54: картофель | C54: 67/40 | D54: 100/60
A55: капуста белокочанная | C55: 40/32 | D55: 64/52
A56: морковь | C56: 16/11 | D56: 32/22
A57: лук репчатый | C57: 9/7 | D57: 18/14
A58: масло сливочное 72,5% | C58: 3 | D58: 7
A59: томатная паста | C59: 3 | D59: 7
A60: соль | C60: 1 | D60: 1
A61: мука в/с | C61: 2 | D61: 5
A62: вода | C62: 26 | D62: 39
A64: Котлета куриная | B64: 299 | C64: 60 | D64: 75 | E64: 7.66 | F64: 9.57 | G64: 4.3 | H64: 4.9 | I64: 8.5 | J64: 10.62 | K64: 117.44 | L64: 146.8 | M64: 0.5 | N64: 0.62
A65: курица бройлер | C65: 74/44 | D65: 92/55
A66: хлеб пшеничный | C66: 11 | D66: 14
A67: вода | C67: 9 | D67: 11
A68: лук репчатый | C68: 6/5 | D68: 8/6
A69: мука в/с | C69: 4 | D69: 5
A70: соль | C70: 1 | D70: 1
A71: яйцо куриное | C71: 1 | D71: 1
A72: масло растительное | C72: 1 | D72: 1
A74: Хлеб ржано -пшеничный | C74: 30 | D74: 50 | E74: 1.91 | F74: 3.19 | G74: 0.24 | H74: 0.4 | I74: 12.43 | J74: 20.71 | K74: 52.61 | L74: 87.68 | M74: 0 | N74: 0
A76: Компот из свежих фруктов | B76: 390 | C76: 120 | D76: 150 | E76: 0.03 | F76: 0.04 | G76: 0 | H76: 0 | I76: 10.19 | J76: 12.74 | K76: 41 | L76: 51.11 | M76: 0.02 | N76: 0.03
A77: Яблоки | C77: 30/26 | D77: 38/32
A78: Сахарный песок | C78: 7 | D78: 9
A79: Вода | C79: 122 | D79: 152
A80: Итого: | E80: =E76+E74+E64+E53+E42+E39 -> 16.29 | F80: 22.14 | G80: 16.61 | H80: 21.54 | I80: 67.24 | J80: 88.59 | K80: 474.04 | L80: 635.81 | M80: 30.43 | N80: 42.63
A82: Полдник
A83: Кисломолочный продукт | B83: 420 | C83: 200 | D83: 200 | E83: 5.2 | F83: 5.2 | G83: 5 | H83: 5 | I83: 8 | J83: 8 | K83: 88.2 | L83: 88.2 | M83: 0 | N83: 0
A84: Кондитерское изделие | C84: 25 | D84: 50 | E84: 0.64 | F84: 1.29 | G84: 0.56 | H84: 1.13 | I84: 13.24 | J84: 26.48 | K84: 69.26 | L84: 138.52 | M84: 0.13 | N84: 0.26
A85: Итого: | E85: =E84+E83 -> 5.84 | F85: 6.49 | G85: 5.56 | H85: 6.13 | I85: 21.24 | J85: 34.48 | K85: 157.46 | L85: 226.72 | M85: 0.13 | N85: 0.26
A86: Итого за 1 день: | E86: =E85+E80+E37+E29 -> 40.91 | F86: 50.82 | G86: 39.73 | H86: 46.8 | I86: 155.66 | J86: 202.48 | K86: 1128.13 | L86: 1459.74 | M86: 32.35 | N86: 45.08

Sheet 11 с 1 марта
B1: Меню раскладка 11 день
A3: Наименование блюда | B3: номер рецептуры по сборнику | C3: масса порций, в гр. | E3: Пищевая ценность | K3: Энергетическая ценность | M3: Витамин С
E4: белки | G4: жиры | I4: углеводы
A5: Завтрак | C5: 1-3 года | D5: 3-7 лет | E5: 1-3 года | F5: 3-7 лет | G5: 1-3 года | H5: 3-7 лет | I5: 1-3 года | J5: 3-7 лет | K5: 1-3 года | L5: 3-7 лет | M5: 1-3 года | N5: 3-7 лет
A6: Каша ячневая молочная жидкая со сливочным маслом | B6: 199 | C6: 150/5/5 | D6: 180/7/7 | E6: 4.17 | F6: 5.3 | G6: 6.98 | H6: 9.37 | I6: 20.22 | J6: 24.26 | K6: 145.17 | L6: 189 | M6: 1.45 | N6: 1.89
A7: крупа ячневая | C7: 14 | D7: 19
A8: молоко 2,5% | C8: 125 | D8: 150
A9: вода | C9: 18 | D9: 22
A10: сахарный песок | C10: 5 | D10: 7
A11: соль | C11: 1 | D11: 1
A12: масло сливочное 72,5% | C12: 5 | D12: 7
A14: Какао с молоком | B14: 416 | C14: 150 | D14: 200 | E14: 3.06 | F14: 4.08 | G14: 2.96 | H14: 3.94 | I14: 12.47 | J14: 16.6 | K14: 87.6 | L14: 116.8 | M14: 1.07 | N14: 1.42
A15: какао | C15: 2 | D15: 2
A16: сахарный песок | C16: 9 | D16: 12
A17: молоко 2,5% | C17: 92 | D17: 122
A18: вода | C18: 65 | D18: 87
A20: Бутерброд с маслом | B20: 1 | C20: 40/10 | D20: 50/10 | E20: 2.91 | F20: 3.62 | G20: 5.88 | H20: 5.97 | I20: 17.43 | J20: 21.8 | K20: 143 | L20: 164.33 | M20: 0 | N20: 0
A21: батон | C21: 40 | D21: 50
A22: масло сливочное 72,5% | C22: 10 | D22: 10
A24: Итого: | E24: =E20+E14+E6 -> 10.14 | F24: =F20+F14+F6 -> 13 | G24: 15.82 | H24: 19.28 | I24: 50.12 | J24: 62.66 | K24: 375.77 | L24: 470.13 | M24: 2.52 | N24: 3.31
A26: 2-ой завтрак
A27: Сок | B27: 418 | C27: 150 | D27: 150 | E27: 0.75 | F27: 0.75 | G27: 0 | H27: 0 | I27: 8.99 | J27: 8.99 | K27: 61.56 | L27: 61.56 | M27: 3.24 | N27: 3.24
A28: Фрукт | B28: 386 | C28: 85 | D28: 85 | E28: 0.3 | F28: 0.3 | G28: 0.11 | H28: 0.11 | I28: 10.31 | J28: 10.31 | K28: 48.45 | L28: 48.45 | M28: 4.2 | N28: 4.2
A29: Итого: | E29: =E28+E27 -> 1.05 | F29: =F28+F27 -> 1.05 | G29: 0.11 | H29: 0.11 | I29: 19.3 | J29: 19.3 | K29: 110.01 | L29: 110.01 | M29: 7.44 | N29: 7.44
A31: Обед
A32: Винегрет овощной | B32: 67 | C32: 40 | D32: 60 | E32: 1.12 | F32: 1.68 | G32: 2.46 | H32: 3.7 | I32: 2.31 | J32: 3.468 | K32: 42.48 | L32: 53.11 | M32: 10 | N32: 15
A33: картофель | C33: 24/15 | D33: 36/22
A34: морковь | C34: 5/4 | D34: 8/7
A35: свекла | C35: 9/7 | D35: 13/10
A36: лук репчатый | C36: 7/5 | D36: 10/8
A37: огурцы соленые | C37: 8/7 | D37: 12/11
A38: масло растительное | C38: 4 | D38: 6
A39: соль пищевая | C39: 1 | D39: 1
A41: Суп картофельный с бобовыми (гороховый) на мкб | B41: 87 | C41: 180/10 | D41: 200/12 | E41: 5.48 | F41: 6.11 | G41: 4.87 | H41: 8.24 | I41: 11.87 | J41: 17.1 | K41: 117.31 | L41: 130.89 | M41: 6.8 | N41: 9.1
A42: мясо говядины на кости | C42: 22/16 | D42: 25/19
A43: горох | C43: 14 | D43: 15
A44: картофель | C44: 100/60 | D44: 111/67
A45: лук репчатый | C45: 8/6 | D45: 9/7
A46: морковь | C46: 9/7 | D46: 10/8
A47: масло растительное | C47: 2 | D47: 3
A48: вода | C48: 130 | D48: 145
A49: соль | C49: 1 | D49: 1
A51: Плов из говядины | C51: 160 | D51: 190 | E51: 11.33 | F51: 13.46 | G51: 7.92 | H51: 9.4 | I51: 25.8 | J51: 30.69 | K51: 244.15 | L51: 279 | M51: 0.82 | N51: 0.99
A52: мясо говядины на кости | C52: 70/52 | D52: 83/62
A53: Крупа рисовая | C53: 39 | D53: 46
A54: лук репчатый | C54: 7/6 | D54: 8/6
A55: морковь | C55: 11/8 | D55: 13/10
A56: Масло сливочное 72,5% | C56: 7 | D56: 8
A57: Соль | C57: 1 | D57: 1
A58: вода | C58: 105 | D58: 125
A60: Хлеб ржано -пшеничный | C60: 30 | D60: 50 | E60: 1.91 | F60: 3.19 | G60: 0.24 | H60: 0.4 | I60: 12.43 | J60: 20.71 | K60: 52.61 | L60: 87.68 | M60: 0 | N60: 0
A62: Компот из свежих фруктов | B62: 390 | C62: 120 | D62: 150 | E62: 0.03 | F62: 0.04 | G62: 0 | H62: 0 | I62: 10.19 | J62: 12.74 | K62: 41 | L62: 51.11 | M62: 0.02 | N62: 0.03
A63: Яблоки | C63: 30/26 | D63: 38/32
A64: Сахарный песок | C64: 7 | D64: 12
A65: Вода | C65: 122 | D65: 152
A66: Итого: | E66: =E62+E60+E51+E41+E32 -> 19.87 | F66: 24.48 | G66: 15.49 | H66: 21.74 | I66: 62.6 | J66: 84.708 | K66: 497.55 | L66: 601.79 | M66: 17.64 | N66: 25.12
A68: Полдник
A69: Кондитерское изделие | C69: 25 | D69: 50 | E69: 0.64 | F69: 1.29 | G69: 0.56 | H69: 1.13 | I69: 14.24 | J69: 28.48 | K69: 69.26 | L69: 138.52 | M69: 0.13 | N69: 0.26
A71: Кисломолочный продукт | B71: 420 | C71: 200 | D71: 200 | E71: 5.2 | F71: 5.2 | G71: 5 | H71: 5 | I71: 8 | J71: 8 | K71: 88.2 | L71: 88.2 | M71: 0 | N71: 0
A72: Итого: | E72: =E71+E69 -> 5.84 | F72: 6.49 | G72: 5.56 | H72: 6.13 | I72: 22.24 | J72: 36.48 | K72: 157.46 | L72: 226.72 | M72: 0.13 | N72: 0.26
A73: Итого за 1 день: | E73: =E72+E66+E29+E24 -> 36.9 | F73: 45.02 | G73: 36.98 | H73: 47.26 | I73: 154.26 | J73: 203.148 | K73: 1140.79 | L73: 1408.65 | M73: 27.73 | N73: 36.13
